Directorate,Department,Expenditure Type,Ref.Doc.1,Vendor Name,Expenditure Amount (exc VAT),Payment Date
COMMERCIAL,ENVIRONMENT,Other Services,60144205,TMP (UK) LTD,359.00,30/11/2019
COMMERCIAL,ENVIRONMENT,Other Services,60144283,Conway Aecom Ltd,36.39,29/11/2019
COMMERCIAL,ENVIRONMENT,Other Services,10015494,Conway Aecom Ltd,"15,776.90",08/11/2019
COMMERCIAL,ENVIRONMENT,Other Services,60143274,Conway Aecom Ltd,"15,103.22",18/11/2019
COMMERCIAL,ENVIRONMENT,Other Services,60143489,Conway Aecom Ltd,"54,800.00",21/11/2019
COMMERCIAL,ENVIRONMENT,Advertising,60144167,TMP (UK) LTD,332.00,28/11/2019
COMMERCIAL,ENVIRONMENT,Other Services,60143925,Conway Aecom Ltd,"1,636.48",27/11/2019
COMMERCIAL,ENVIRONMENT,Other Services,60143954,Conway Aecom Ltd,"2,475.00",27/11/2019
COMMERCIAL,ENVIRONMENT,Other Services,60144066,Conway Aecom Ltd,"2,799.00",27/11/2019
COMMERCIAL,ENVIRONMENT,Equipment and Materials Purcha,60143818,Bouygues E&S Infrastructure UK Ltd,"33,687.26",27/11/2019
COMMERCIAL,ENVIRONMENT,Other Services,60142574,Conway Aecom Ltd,"2,774.70",07/11/2019
COMMERCIAL,ENVIRONMENT,Other Services,60143148,Conway Aecom Ltd,"2,637.64",15/11/2019
COMMERCIAL,ENVIRONMENT,Other Services,60143461,Conway Aecom Ltd,792.25,21/11/2019
COMMERCIAL,ENVIRONMENT,Other Services,60142603,IRIS GARDENING SERVICES LTD,"2,695.00",07/11/2019
COMMERCIAL,ENVIRONMENT,Other Services,60142711,Cycle Confident Ltd,"26,542.67",08/11/2019
COMMERCIAL,ENVIRONMENT,Other Services,60143256,WOODHOUSE COLLEGE,"5,000.00",19/11/2019
COMMERCIAL,ENVIRONMENT,Other Services,60143747,ST MARTIN'S SCHOOL,680.00,28/11/2019
COMMERCIAL,ENVIRONMENT,Other Services,60143845,WREN ACADEMY,"5,000.00",29/11/2019
COMMERCIAL,ENVIRONMENT,Other Services,60143463,THE PARDES HOUSE GRAMMAR SCHOOL,"5,000.00",21/11/2019
COMMERCIAL,ENVIRONMENT,Other Services,60143738,SOUTHGATE COACHES LTD,"6,924.00",25/11/2019
COMMERCIAL,ENVIRONMENT,Other Services,60142313,The Riot Act Limited,"9,520.00",07/11/2019
COMMERCIAL,ENVIRONMENT,Equipment and Materials Purcha,60140264,Bouygues E&S Infrastructure UK Ltd,"17,285.80",07/11/2019
COMMERCIAL,ENVIRONMENT,Equipment and Materials Purcha,60140723,Bouygues E&S Infrastructure UK Ltd,"36,862.34",07/11/2019
COMMERCIAL,ENVIRONMENT,Other Services,60137716,Bouygues E&S Infrastructure UK Ltd,"24,065.98",07/11/2019
COMMERCIAL,ENVIRONMENT,Capital Construction and Works,60139167,Conway Aecom Ltd,151.20,07/11/2019
COMMERCIAL,ENVIRONMENT,Capital Construction and Works,60137711,Bouygues E&S Infrastructure UK Ltd,"14,425.44",07/11/2019
COMMERCIAL,ENVIRONMENT,Other Services,60137310,Bouygues E&S Infrastructure UK Ltd,"1,998.50",07/11/2019
COMMERCIAL,ENVIRONMENT,Other Services,60141096,Bouygues E&S Infrastructure UK Ltd,578.96,07/11/2019
COMMERCIAL,ENVIRONMENT,Other Services,60141935,Bouygues E&S Infrastructure UK Ltd,"6,168.11",07/11/2019
COMMERCIAL,ENVIRONMENT,Other Services,60143861,Conway Aecom Ltd,"1,853.57",27/11/2019
COMMERCIAL,ENVIRONMENT,Other Services,60143339,Bouygues E&S Infrastructure UK Ltd,416.31,18/11/2019
COMMERCIAL,ENVIRONMENT,Other Services,60143509,Conway Aecom Ltd,"2,589.65",22/11/2019
COMMERCIAL,ENVIRONMENT,Other Services,60141739,Conway Aecom Ltd,"18,832.46",06/11/2019
COMMERCIAL,ENVIRONMENT,Other Services,60142495,Conway Aecom Ltd,"1,378.57",07/11/2019
COMMERCIAL,ENVIRONMENT,Other Services,60142515,Conway Aecom Ltd,"41,248.50",07/11/2019
COMMERCIAL,ENVIRONMENT,Other Services,60142517,Conway Aecom Ltd,"12,727.25",07/11/2019
COMMERCIAL,ENVIRONMENT,Other Services,60142572,Conway Aecom Ltd,"5,591.33",07/11/2019
COMMERCIAL,ENVIRONMENT,Other Services,60143511,Conway Aecom Ltd,"67,264.13",22/11/2019
COMMERCIAL,ENVIRONMENT,Other Services,60143872,Conway Aecom Ltd,"9,448.53",27/11/2019
COMMERCIAL,ENVIRONMENT,Other Services,60142528,Conway Aecom Ltd,"7,831.89",07/11/2019
COMMERCIAL,ENVIRONMENT,Other Services,60143042,Conway Aecom Ltd,"30,664.00",15/11/2019
COMMERCIAL,ENVIRONMENT,Other Services,60143430,Conway Aecom Ltd,"20,760.21",21/11/2019
COMMERCIAL,ENVIRONMENT,Other Services,60143433,Conway Aecom Ltd,"17,474.87",21/11/2019
COMMERCIAL,ENVIRONMENT,Other Services,60143035,Conway Aecom Ltd,"7,588.44",15/11/2019
COMMERCIAL,ENVIRONMENT,Consultants Fees,60143328,Bouygues E&S Infrastructure UK Ltd,"4,019.25",20/11/2019
COMMERCIAL,ENVIRONMENT,Professional Services,60142910,BLAKEDOWN LANDSCAPE (SE) LTD,"492,514.21",12/11/2019
COMMERCIAL,ENVIRONMENT,Professional Services,60143158,APPLEYARD & TREW LLP,"4,292.06",15/11/2019
COMMERCIAL,ENVIRONMENT,Other Services,60143069,Conway Aecom Ltd,"4,029.86",15/11/2019
COMMERCIAL,HOUSING REVENUE ACCOUNT,Other Services,80031214,REDACTED - PERSONAL DATA,250.00,29/11/2019
Commercial,HRA,Consultants Fees,60142893,THE BARNETGROUP LIMITED,"7,025.83",13/11/2019
Commercial,HRA,Other Services,80030312,AFFINITY WATER LIMITED,114.52,20/11/2019
Commercial,HRA,Other Services,80030314,AFFINITY WATER LIMITED,249.28,20/11/2019
Commercial,HRA,Other Services,80030316,AFFINITY WATER LIMITED,"781,588.83",20/11/2019
Commercial,HRA,Other Services,80030318,AFFINITY WATER LIMITED,"7,081.15",20/11/2019
Commercial,HRA,Other Services,60125960,THE BARNETGROUP LIMITED,"220,841.23",04/11/2019
Commercial,HRA,Other Services,60143722,THE BARNETGROUP LIMITED,"2,020,145.93",27/11/2019
Commercial,HRA,Private Contractors - Third Pa,80030437,REDACTED - PERSONAL DATA,"3,000.00",01/11/2019
Commercial,HRA,Private Contractors - Third Pa,80030502,REDACTED - PERSONAL DATA,"1,500.00",29/11/2019
Commercial,HRA,Private Contractors - Third Pa,80030672,REDACTED - PERSONAL DATA,"2,769.12",15/11/2019
Commercial,HRA,Private Contractors - Third Pa,80030913,REDACTED - PERSONAL DATA,"2,518.61",29/11/2019
Commercial,HRA,Private Contractors - Third Pa,80030919,REDACTED - PERSONAL DATA,974.87,29/11/2019
Commercial,HRA,Private Contractors - Third Pa,80030925,REDACTED - PERSONAL DATA,"2,874.31",29/11/2019
Commercial,HRA,Private Contractors - Third Pa,80030873,REDACTED - PERSONAL DATA,"3,500.00",18/11/2019
Commercial,Regional Enterprise,Legal and Court Fees,80028469,Henry Planning Limited,"1,612.00",19/11/2019
Commercial,Regional Enterprise,Legal and Court Fees,80030753,SFPL Ltd,"2,472.65",20/11/2019
Commercial,Regional Enterprise,Other Services,10015495,Conway Aecom Ltd,"22,574.71",08/11/2019
Commercial,Regional Enterprise,Other Services,60144276,Conway Aecom Ltd,73.23,29/11/2019
Commercial,Regional Enterprise,Other Services,60144319,Conway Aecom Ltd,299.48,29/11/2019
Commercial,Regional Enterprise,Other Services,60144326,Conway Aecom Ltd,978.21,29/11/2019
Commercial,Regional Enterprise,Other Services,60144335,Conway Aecom Ltd,146.46,29/11/2019
Commercial,Regional Enterprise,Other Services,60144344,Conway Aecom Ltd,73.23,29/11/2019
Commercial,Regional Enterprise,Other Services,60144348,Conway Aecom Ltd,759.46,29/11/2019
Commercial,Regional Enterprise,Other Services,60144362,Conway Aecom Ltd,73.23,29/11/2019
Commercial,Regional Enterprise,Other Services,60144382,Conway Aecom Ltd,74.87,29/11/2019
Commercial,Regional Enterprise,Other Services,60129709,Affinity For Business,152.92,26/11/2019
Commercial,Regional Enterprise,Other Services,60136471,Affinity For Business,98.98,26/11/2019
Commercial,Regional Enterprise,Other Services,60143261,Affinity For Business,852.07,18/11/2019
Commercial,Regional Enterprise,Advertising,60121292,TMP (UK) LTD,90.00,21/11/2019
Commercial,Regional Enterprise,Advertising,60121317,TMP (UK) LTD,153.00,21/11/2019
Commercial,Regional Enterprise,Advertising,60121325,TMP (UK) LTD,188.00,21/11/2019
Commercial,Regional Enterprise,Advertising,60121386,TMP (UK) LTD,170.00,21/11/2019
Commercial,Regional Enterprise,Advertising,60123814,TMP (UK) LTD,197.00,21/11/2019
Commercial,Regional Enterprise,Other Services,60122987,TMP (UK) LTD,117.00,21/11/2019
Commercial,Regional Enterprise,Other Services,60128059,Conway Aecom Ltd,420.00,07/11/2019
Commercial,Regional Enterprise,Other Services,60128061,Conway Aecom Ltd,330.75,07/11/2019
Commercial,Regional Enterprise,Other Services,60128090,Conway Aecom Ltd,680.40,07/11/2019
Commercial,Regional Enterprise,Other Services,60132572,Conway Aecom Ltd,869.40,07/11/2019
Commercial,Regional Enterprise,Professional Services,60142283,LONDON BOROUGH OF ENFIELD,100.00,08/11/2019
Commercial,Regional Enterprise,Professional Services,10015497,WATES PROPERTY SERVICES LTD,286.58,11/11/2019
Commercial,Regional Enterprise,Professional Services,60143332,WATES PROPERTY SERVICES LTD,27.29,18/11/2019
Commercial,Regional Enterprise,Professional Services,60143371,WATES PROPERTY SERVICES LTD,136.47,20/11/2019
Commercial,Regional Enterprise,Professional Services,60143378,WATES PROPERTY SERVICES LTD,56.80,20/11/2019
Commercial,Regional Enterprise,Professional Services,60143379,WATES PROPERTY SERVICES LTD,93.01,20/11/2019
Commercial,Regional Enterprise,Professional Services,60143390,WATES PROPERTY SERVICES LTD,286.58,20/11/2019
Commercial,Regional Enterprise,Refunds,80030550,Calfordseaden LLP,471.25,27/11/2019
Commercial,Regional Enterprise,Advertising,60143300,TMP (UK) LTD,287.00,18/11/2019
Commercial,Regional Enterprise,Advertising,60143351,TMP (UK) LTD,480.00,18/11/2019
Commercial,Regional Enterprise,Advertising,60144085,TMP (UK) LTD,656.00,28/11/2019
Commercial,Regional Enterprise,Other Services,60144291,Conway Aecom Ltd,"9,517.76",29/11/2019
Commercial,Regional Enterprise,Other Services,10015491,Conway Aecom Ltd,47.32,15/11/2019
Commercial,Regional Enterprise,Other Services,60128255,Conway Aecom Ltd,60.70,07/11/2019
Commercial,Regional Enterprise,Other Services,60128293,Conway Aecom Ltd,50.87,07/11/2019
Commercial,Regional Enterprise,Other Services,60128299,Conway Aecom Ltd,64.79,07/11/2019
Commercial,Regional Enterprise,Other Services,60128303,Conway Aecom Ltd,137.09,08/11/2019
Commercial,Regional Enterprise,Other Services,60128312,Conway Aecom Ltd,83.00,06/11/2019
Commercial,Regional Enterprise,Other Services,60128338,Conway Aecom Ltd,54.93,08/11/2019
Commercial,Regional Enterprise,Other Services,60128364,Conway Aecom Ltd,96.53,08/11/2019
Commercial,Regional Enterprise,Other Services,60128374,Conway Aecom Ltd,180.71,08/11/2019
Commercial,Regional Enterprise,Other Services,60129132,Conway Aecom Ltd,50.96,08/11/2019
Commercial,Regional Enterprise,Other Services,60132863,Conway Aecom Ltd,47.32,06/11/2019
Commercial,Regional Enterprise,Other Services,60133874,Conway Aecom Ltd,46.11,06/11/2019
Commercial,Regional Enterprise,Other Services,60134863,Conway Aecom Ltd,37.76,06/11/2019
Commercial,Regional Enterprise,Other Services,60141278,Conway Aecom Ltd,75.94,06/11/2019
Commercial,Regional Enterprise,Other Services,60141289,Conway Aecom Ltd,62.36,06/11/2019
Commercial,Regional Enterprise,Other Services,60141291,Conway Aecom Ltd,78.76,06/11/2019
Commercial,Regional Enterprise,Other Services,60141360,Conway Aecom Ltd,35.33,06/11/2019
Commercial,Regional Enterprise,Other Services,60141424,Conway Aecom Ltd,35.33,06/11/2019
Commercial,Regional Enterprise,Other Services,60141435,Conway Aecom Ltd,35.33,06/11/2019
Commercial,Regional Enterprise,Other Services,60141443,Conway Aecom Ltd,35.33,06/11/2019
Commercial,Regional Enterprise,Other Services,60141472,Conway Aecom Ltd,47.32,06/11/2019
Commercial,Regional Enterprise,Other Services,60143007,Conway Aecom Ltd,64.72,13/11/2019
Commercial,Regional Enterprise,Other Services,60143113,Conway Aecom Ltd,621.45,15/11/2019
Commercial,Regional Enterprise,Other Services,60144268,Conway Aecom Ltd,64.42,29/11/2019
Commercial,Regional Enterprise,Other Services,60144271,Conway Aecom Ltd,64.42,29/11/2019
Commercial,Regional Enterprise,Other Services,60144285,Conway Aecom Ltd,467.23,29/11/2019
Commercial,Regional Enterprise,Other Services,60144328,Conway Aecom Ltd,147.28,29/11/2019
Commercial,Regional Enterprise,Other Services,60144333,Conway Aecom Ltd,454.12,29/11/2019
Commercial,Regional Enterprise,Other Services,60144334,Conway Aecom Ltd,608.51,29/11/2019
Commercial,Regional Enterprise,Other Services,60144370,Conway Aecom Ltd,64.42,29/11/2019
Commercial,Regional Enterprise,Other Services,60144387,Conway Aecom Ltd,125.63,29/11/2019
Commercial,Regional Enterprise,Fees and Charges,80030776,H M Courts & Tribunals Service,100.00,15/11/2019
Commercial,Regional Enterprise,Other Services,60132552,Conway Aecom Ltd,"1,102.50",08/11/2019
Commercial,Regional Enterprise,Other Services,60132575,Conway Aecom Ltd,"1,411.20",08/11/2019
Commercial,Regional Enterprise,Other Services,60132576,Conway Aecom Ltd,"1,527.75",08/11/2019
Commercial,Regional Enterprise,Other Services,60132591,Conway Aecom Ltd,453.60,08/11/2019
Commercial,Regional Enterprise,Other Services,60132612,Conway Aecom Ltd,907.20,08/11/2019
Commercial,Regional Enterprise,Other Services,60132618,Conway Aecom Ltd,831.60,08/11/2019
Commercial,Regional Enterprise,Other Services,60132624,Conway Aecom Ltd,907.20,08/11/2019
Commercial,Regional Enterprise,Other Services,60132629,Conway Aecom Ltd,"1,585.50",08/11/2019
Commercial,Regional Enterprise,Other Services,60132635,Conway Aecom Ltd,604.80,08/11/2019
Commercial,Regional Enterprise,Other Services,60132654,Conway Aecom Ltd,756.00,08/11/2019
Commercial,Regional Enterprise,Other Services,60132660,Conway Aecom Ltd,913.50,08/11/2019
Commercial,Regional Enterprise,Other Services,60134541,Conway Aecom Ltd,"1,121.40",08/11/2019
Commercial,Regional Enterprise,Other Services,60134546,Conway Aecom Ltd,"1,575.00",08/11/2019
Commercial,Regional Enterprise,Other Services,60134561,Conway Aecom Ltd,"1,108.80",08/11/2019
Commercial,Regional Enterprise,Other Services,60134572,Conway Aecom Ltd,"1,039.50",08/11/2019
Commercial,Regional Enterprise,Other Services,60134606,Conway Aecom Ltd,680.40,08/11/2019
Commercial,Regional Enterprise,Other Services,60134610,Conway Aecom Ltd,"1,386.00",08/11/2019
Commercial,Regional Enterprise,Other Services,60134664,Conway Aecom Ltd,850.50,08/11/2019
Commercial,Regional Enterprise,Other Services,60134668,Conway Aecom Ltd,"1,134.00",08/11/2019
Commercial,Regional Enterprise,Other Services,60134683,Conway Aecom Ltd,"2,293.20",07/11/2019
Commercial,Regional Enterprise,Other Services,60134684,Conway Aecom Ltd,735.00,08/11/2019
Commercial,Regional Enterprise,Other Services,60134708,Conway Aecom Ltd,352.80,08/11/2019
Commercial,Regional Enterprise,Other Services,60137017,Conway Aecom Ltd,680.40,08/11/2019
Commercial,Regional Enterprise,Other Services,60144266,Conway Aecom Ltd,478.80,29/11/2019
Commercial,Regional Enterprise,Other Services,60144277,Conway Aecom Ltd,945.00,29/11/2019
Commercial,Regional Enterprise,Other Services,60144278,Conway Aecom Ltd,"1,323.00",29/11/2019
Commercial,Regional Enterprise,Other Services,60144281,Conway Aecom Ltd,724.50,29/11/2019
Commercial,Regional Enterprise,Other Services,60144286,Conway Aecom Ltd,945.00,29/11/2019
Commercial,Regional Enterprise,Other Services,60144287,Conway Aecom Ltd,982.80,29/11/2019
Commercial,Regional Enterprise,Other Services,60144296,Conway Aecom Ltd,"1,058.40",29/11/2019
Commercial,Regional Enterprise,Other Services,60144300,Conway Aecom Ltd,756.00,29/11/2019
Commercial,Regional Enterprise,Other Services,60144313,Conway Aecom Ltd,554.40,29/11/2019
Commercial,Regional Enterprise,Other Services,60144325,Conway Aecom Ltd,264.60,29/11/2019
Commercial,Regional Enterprise,Other Services,60144331,Conway Aecom Ltd,310.80,29/11/2019
Commercial,Regional Enterprise,Other Services,60144340,Conway Aecom Ltd,935.55,29/11/2019
Commercial,Regional Enterprise,Other Services,60144341,Conway Aecom Ltd,579.60,29/11/2019
Commercial,Regional Enterprise,Other Services,60144342,Conway Aecom Ltd,"1,020.60",29/11/2019
Commercial,Regional Enterprise,Other Services,60144345,Conway Aecom Ltd,504.00,29/11/2019
Commercial,Regional Enterprise,Other Services,60144346,Conway Aecom Ltd,340.20,29/11/2019
Commercial,Regional Enterprise,Other Services,60144349,Conway Aecom Ltd,"1,102.50",29/11/2019
Commercial,Regional Enterprise,Other Services,60144350,Conway Aecom Ltd,579.60,29/11/2019
Commercial,Regional Enterprise,Other Services,60144351,Conway Aecom Ltd,378.00,29/11/2019
Commercial,Regional Enterprise,Other Services,60144360,Conway Aecom Ltd,491.40,29/11/2019
Commercial,Regional Enterprise,Other Services,60144368,Conway Aecom Ltd,415.80,29/11/2019
Commercial,Regional Enterprise,Other Services,60144374,Conway Aecom Ltd,567.00,29/11/2019
Commercial,Regional Enterprise,Other Services,60144377,Conway Aecom Ltd,840.00,29/11/2019
Commercial,Regional Enterprise,Other Services,60144378,Conway Aecom Ltd,756.00,29/11/2019
Commercial,Regional Enterprise,Other Services,60144380,Conway Aecom Ltd,338.10,29/11/2019
Commercial,Regional Enterprise,Other Services,60144388,Conway Aecom Ltd,451.50,29/11/2019
Commercial,Regional Enterprise,Grant Payments,80030542,Amwell Construction Ltd,114.00,19/11/2019
Commercial,Regional Enterprise,Other Establishments - Third P,80030504,Transport For London,"1,139,007.54",22/11/2019
Commercial,Regional Enterprise,Consultants Fees,60144086,Gowling WLG,"6,325.40",29/11/2019
Commercial,Regional Enterprise,Consultants Fees,60144142,Gowling WLG,"2,960.75",28/11/2019
Commercial,Regional Enterprise,Consultants Fees,60144150,Gowling WLG,"1,574.40",28/11/2019
Commercial,Regional Enterprise,Consultants Fees,60144210,Gowling WLG,"1,590.20",29/11/2019
Commercial,Regional Enterprise,Consultants Fees,60144224,Gowling WLG,"1,375.20",29/11/2019
Commercial,Regional Enterprise,Consultants Fees,60142328,Bouygues E&S Infrastructure UK Ltd,"5,750.00",06/11/2019
Commercial,Regional Enterprise,Consultants Fees,60142618,CBRE INDIRECT INVESTMENT SERVS. LTD,"30,000.00",08/11/2019
Commercial,Regional Enterprise,Consultants Fees,60144133,Gowling WLG,374.50,28/11/2019
Commercial,Regional Enterprise,Consultants Fees,60144152,Gowling WLG,"2,218.05",29/11/2019
Commercial,Regional Enterprise,Consultants Fees,60144154,Gowling WLG,654.44,29/11/2019
Commercial,Regional Enterprise,Consultants Fees,60144200,Gowling WLG,"2,291.99",29/11/2019
Commercial,Regional Enterprise,Consultants Fees,60144242,Gowling WLG,"4,214.30",29/11/2019
Commercial,Regional Enterprise,Consultants Fees,60144247,Gowling WLG,"4,683.08",29/11/2019
Commercial,Regional Enterprise,Consultants Fees,60144259,Gowling WLG,570.00,29/11/2019
Commercial,Regional Enterprise,Consultants Fees,60144261,Gowling WLG,"13,725.41",29/11/2019
Commercial,Regional Enterprise,RE Services Contract Payment,60133178,RE (REGIONAL ENTERPRISE) LIMITED,"11,000.00",08/11/2019
Commercial,Regional Enterprise,RE Services Contract Payment,60133190,RE (REGIONAL ENTERPRISE) LIMITED,"1,368.00",15/11/2019
Commercial,Regional Enterprise,RE Services Contract Payment,60133203,RE (REGIONAL ENTERPRISE) LIMITED,"11,000.00",08/11/2019
Commercial,Regional Enterprise,RE Services Contract Payment,60133226,RE (REGIONAL ENTERPRISE) LIMITED,"1,368.00",15/11/2019
Commercial,Regional Enterprise,RE Services Contract Payment,60133233,RE (REGIONAL ENTERPRISE) LIMITED,"11,000.00",08/11/2019
Corporate Accounting,Corporate Accounting,Other Local Authorities - Thir,80030797,GLA LEVIES,"1,519,940.00",15/11/2019
Corporate Accounting,Corporate Accounting,Other Local Authorities - Thir,80030995,GLA LEVIES,"4,665,343.56",20/11/2019
Corporate Accounting,Corporate Accounting,Other Local Authorities - Thir,80031097,GLA LEVIES,"227,824.00",21/11/2019
Corporate Accounting,Corporate Accounting,Government departments - Third,80030353,Department for Communities & Local Gov.,"437,870.49",21/11/2019
Corporate Accounting,Corporate Accounting,Grant Payments,80030505,Disability Sports Coach,"2,300.00",19/11/2019
Corporate Accounting,Corporate Accounting,Other Agencies - Third Party P,60143791,THE BARNETGROUP LIMITED,"91,666.67",27/11/2019
Corporate Accounting,Corporate Accounting,Other Agencies - Third Party P,80030706,Buttle UK,"1,246.00",13/11/2019
Corporate Accounting,Corporate Accounting,Other Transfer Payments to Soc,80030451,Wirecard (FS instant 2040880892973),"18,554.02",04/11/2019
Corporate Accounting,Corporate Accounting,Other Transfer Payments to Soc,80030455,Wirecard (FS ongoing 2040881670310,"26,576.40",05/11/2019
Corporate Accounting,Corporate Accounting,Private Contractors - Third Pa,80030835,REDACTED - PERSONAL DATA,"1,250.00",20/11/2019
Corporate Accounting,Corporate Accounting,Refunds,80028333,Mott MacDonald Ltd/Cambridge Education,661.00,08/11/2019
Corporate Accounting,Corporate Accounting,Fees and Charges,80029897,Landcore Ltd,"1,600.00",26/11/2019
Corporate Accounting,Corporate Accounting,Fees and Charges,80031147,FIROKA (ALEXANDRA PALACE) LTD,"2,000.00",28/11/2019
Corporate Accounting,Corporate Accounting,Fees and Charges,80026477,South East Eco Utilties,500.00,20/11/2019
Corporate Accounting,Corporate Accounting,Fees and Charges,80030195,Adroit Utility Design Installation & Con,"4,070.40",29/11/2019
Corporate Accounting,Corporate Accounting,Fees and Charges,80030570,BISHOPSWOOD ESTATES LTD,"3,800.00",26/11/2019
Corporate Accounting,Corporate Accounting,Fees and Charges,80030568,D & N SCAFFOLDING LTD,"1,000.00",22/11/2019
Corporate Accounting,Corporate Accounting,Fees and Charges,80031165,The Price Company (Eaton Bray) Ltd T/A M,551.00,25/11/2019
DELIVERY UNITS,ADULTS AND COMMUNITIES,Ttl IT & Comms,60142228,Trojan Consultants Ltd,"2,570.00",20/11/2019
Delivery Units,Adults and Health,Voluntary Associations - Third,50005440,SANCTUARY HOUSING ASSOCIATION,"6,206.40",22/11/2019
Delivery Units,Adults and Health,Voluntary Associations - Third,50005436,BARNET MENCAP,"11,142.65",22/11/2019
Delivery Units,Adults and Health,Voluntary Associations - Third,50005439,METROPOLITAN SUPPORT TRUST,"5,533.20",22/11/2019
Delivery Units,Adults and Health,Equipment and Materials Purcha,60141805,Millbrook Healthcare Ltd,"217,570.31",06/11/2019
Delivery Units,Adults and Health,Equipment and Materials Purcha,60141866,Millbrook Healthcare Ltd,"37,249.45",06/11/2019
Delivery Units,Adults and Health,Equipment and Materials Purcha,60143194,Millbrook Healthcare Ltd,"251,193.64",26/11/2019
Delivery Units,Adults and Health,Equipment and Materials Purcha,60143292,Millbrook Healthcare Ltd,"37,249.45",26/11/2019
Delivery Units,Adults and Health,Other Contributions,60142985,O'Dwyer Independent Funeral Directors,465.00,22/11/2019
Delivery Units,Adults and Health,Other Contributions,60143038,O'Dwyer Independent Funeral Directors,430.00,22/11/2019
Delivery Units,Adults and Health,Other Contributions,60143764,O'Dwyer Independent Funeral Directors,844.00,25/11/2019
Delivery Units,Adults and Health,Professional Services,60142862,ALZHEIMER'S SOCIETY (BARNET),"18,000.00",13/11/2019
Delivery Units,Adults and Health,Professional Services,60142875,ALZHEIMER'S SOCIETY (BARNET),"18,000.00",13/11/2019
Delivery Units,Adults and Health,Professional Services,60142892,ALZHEIMER'S SOCIETY (BARNET),"18,000.00",13/11/2019
Delivery Units,Adults and Health,Professional Services,60142919,ALZHEIMER'S SOCIETY (BARNET),"18,000.00",13/11/2019
Delivery Units,Adults and Health,Professional Services,60142922,ALZHEIMER'S SOCIETY (BARNET),"18,000.00",13/11/2019
Delivery Units,Adults and Health,Other Services,60142815,POhWER,"3,870.00",11/11/2019
Delivery Units,Adults and Health,Voluntary Associations - Third,50005438,MIDDLESEX ASSOCIATION  FOR THE BLIN,"2,394.00",22/11/2019
Delivery Units,Adults and Health,Voluntary Associations - Third,50005437,BARNET MENCAP,"28,583.00",22/11/2019
Delivery Units,Adults and Health,Voluntary Associations - Third,50005435,AGE CONCERN,"58,333.00",22/11/2019
Delivery Units,Adults and Health,Other Services,60143299,COMMUNITY BARNET,"10,666.67",19/11/2019
Delivery Units,Adults and Health,Consultants Fees,60143268,Goldsmith Consulting & Mediation Ltd,"1,500.00",18/11/2019
Delivery Units,Adults and Health,Translation Exp / Interpret,60143001,D.A. Languages Ltd,23.40,13/11/2019
Delivery Units,Adults and Health,Other Services,60143801,HUNTERSJOY LTD,360.00,26/11/2019
Delivery Units,Adults and Health,Travelling Expenses,60142833,M1 EXPRESS CAR SERVICES,139.00,11/11/2019
Delivery Units,Adults and Health,Travelling Expenses,60143462,M1 EXPRESS CAR SERVICES,359.90,21/11/2019
Delivery Units,Adults and Health,Other Services,60136643,D.A. Languages Ltd,37.96,01/11/2019
Delivery Units,Adults and Health,Other Services,60143008,D.A. Languages Ltd,41.08,14/11/2019
Delivery Units,Adults and Health,Other Services,60142609,Staples UK Ltd,40.52,21/11/2019
Delivery Units,Adults and Health,Other Services,60142650,Staples UK Ltd,40.52,21/11/2019
Delivery Units,Adults and Health,Other Services,10015506,Respond,"10,000.00",12/11/2019
Delivery Units,Adults and Health,Other Services,60142734,REDACTED - PERSONAL DATA,"1,350.00",08/11/2019
Delivery Units,Adults and Health,Other Transfer Payments to Soc,60143101,Ariana Banqueting Hall,"1,220.00",15/11/2019
Delivery Units,Adults and Health,Gas,60142443,KENT COUNTY COUNCIL (KCS),135.26,05/11/2019
Delivery Units,Adults and Health,Gas,60143761,BRITISH GAS BUSINESS,938.50,25/11/2019
Delivery Units,Adults and Health,Electricity,60142811,KENT COUNTY COUNCIL (KCS),189.51,11/11/2019
Delivery Units,Adults and Health,Water Services,60143740,Castle Water Ltd,13.61,25/11/2019
Delivery Units,Adults and Health,Food Costs,60142310,Muller Milk & Ingredients,0.88,01/11/2019
Delivery Units,Adults and Health,Food Costs,60142342,Muller Milk & Ingredients,0.88,01/11/2019
Delivery Units,Adults and Health,Translation Exp / Interpret,60142960,D.A. Languages Ltd,40.50,13/11/2019
Delivery Units,Adults and Health,Translation Exp / Interpret,60142976,D.A. Languages Ltd,27.00,14/11/2019
Delivery Units,Adults and Health,Translation Exp / Interpret,60142980,D.A. Languages Ltd,22.00,14/11/2019
Delivery Units,Adults and Health,Training,60143696,MICHAEL MANDELSTAM LTD,850.00,25/11/2019
Delivery Units,Adults and Health,Training,60144025,MICHAEL MANDELSTAM LTD,850.00,28/11/2019
Delivery Units,Adults and Health,Training,60142499,HUNTERSJOY LTD,750.00,08/11/2019
Delivery Units,Adults and Health,Training,60142732,HUNTERSJOY LTD,750.00,08/11/2019
Delivery Units,Adults and Health,Training,60144198,HUNTERSJOY LTD,"1,099.80",28/11/2019
Delivery Units,Adults and Health,Training,60142785,FRONTLINE TRAINING,850.00,12/11/2019
Delivery Units,Adults and Health,Training,60144078,Louise Fox Consulting Ltd,"2,260.00",29/11/2019
Delivery Units,Adults and Health,Training,60142775,REDACTED - PERSONAL DATA,550.00,12/11/2019
Delivery Units,Adults and Health,Stationery,60142166,Staples UK Ltd,40.00,05/11/2019
Delivery Units,Adults and Health,Other Services,80028612,REDACTED - PERSONAL DATA,7.45,05/11/2019
Delivery Units,Adults and Health,Other Services,80030562,REDACTED - PERSONAL DATA,5.52,29/11/2019
Delivery Units,Adults and Health,Other Services,80028599,REDACTED - PERSONAL DATA,6.44,05/11/2019
Delivery Units,Adults and Health,Other Services,80030535,REDACTED - PERSONAL DATA,5.34,05/11/2019
Delivery Units,Adults and Health,Other Services,60143025,REDACTED - PERSONAL DATA,"1,650.00",13/11/2019
Delivery Units,Adults and Health,Translation Exp / Interpret,60142743,PHOTOSYMBOLS,"3,600.00",08/11/2019
Delivery Units,Adults and Health,Advertising,60141486,TMP (UK) LTD,795.61,05/11/2019
Delivery Units,Adults and Health,Other Services,60143019,D.A. Languages Ltd,98.00,14/11/2019
Delivery Units,Adults and Health,Pool Transport Charges,60142699,Mott MacDonald Ltd/Cambridge Education,135.00,08/11/2019
Delivery Units,Adults and Health,Translation Exp / Interpret,60142961,D.A. Languages Ltd,44.00,14/11/2019
Delivery Units,Adults and Health,Translation Exp / Interpret,60143000,D.A. Languages Ltd,22.00,14/11/2019
Delivery Units,Adults and Health,Translation Exp / Interpret,60143009,D.A. Languages Ltd,19.80,14/11/2019
Delivery Units,Adults and Health,Other Services,60142668,PRIME PRODUCTION LTD,300.00,08/11/2019
Delivery Units,Adults and Health,Translation Exp / Interpret,60142956,D.A. Languages Ltd,27.00,14/11/2019
Delivery Units,Adults and Health,Translation Exp / Interpret,60142987,D.A. Languages Ltd,40.50,14/11/2019
Delivery Units,Adults and Health,Translation Exp / Interpret,60143005,D.A. Languages Ltd,27.00,14/11/2019
Delivery Units,Adults and Health,Translation Exp / Interpret,60143029,D.A. Languages Ltd,47.25,14/11/2019
Delivery Units,Adults and Health,Translation Exp / Interpret,60143030,D.A. Languages Ltd,27.56,14/11/2019
Delivery Units,Adults and Health,Translation Exp / Interpret,60143180,D.A. Languages Ltd,55.00,15/11/2019
Delivery Units,Adults and Health,Other Services,60142415,ANGEL SPRINGS LTD,26.46,06/11/2019
Delivery Units,Adults and Health,Other Services,60142416,ANGEL SPRINGS LTD,26.46,06/11/2019
Delivery Units,Adults and Health,Other Services,60142441,ANGEL SPRINGS LTD,62.86,06/11/2019
Delivery Units,Adults and Health,Other Services,80030654,Move O'clock,150.00,11/11/2019
Delivery Units,Adults and Health,Translation Exp / Interpret,60142979,D.A. Languages Ltd,27.00,14/11/2019
Delivery Units,Adults and Health,Other Services,60142814,KMCA Consultancy Services Ltd,"2,911.48",15/11/2019
Delivery Units,Adults and Health,Other Services,60142884,KMCA Consultancy Services Ltd,"1,861.96",13/11/2019
Delivery Units,Adults and Health,Other Services,80031122,REDACTED - PERSONAL DATA,250.00,25/11/2019
Delivery Units,Adults and Health,Other Services,80031126,REDACTED - PERSONAL DATA,271.00,25/11/2019
Delivery Units,Adults and Health,Other Transfer Payments to Soc,60143309,ACTION FIRST RECRUITMENT,"1,380.00",18/11/2019
Delivery Units,Adults and Health,Other Transfer Payments to Soc,60143331,ACTION FIRST RECRUITMENT,"1,615.00",18/11/2019
Delivery Units,Adults and Health,Other Transfer Payments to Soc,60143336,ACTION FIRST RECRUITMENT,335.00,18/11/2019
Delivery Units,Adults and Health,Other Transfer Payments to Soc,60143344,ASHPRI LIMITED,"9,222.60",18/11/2019
Delivery Units,Adults and Health,Other Transfer Payments to Soc,60141433,KORU MEDICAL LTD,"2,010.21",12/11/2019
Delivery Units,Adults and Health,Other Transfer Payments to Soc,60142427,KORU MEDICAL LTD,"1,839.91",12/11/2019
Delivery Units,Adults and Health,Other Transfer Payments to Soc,60143469,KORU MEDICAL LTD,"1,003.78",21/11/2019
Delivery Units,Adults and Health,Other Transfer Payments to Soc,60142506,POhWER,221.03,08/11/2019
Delivery Units,Adults and Health,Other Transfer Payments to Soc,60142516,POhWER,165.70,08/11/2019
Delivery Units,Adults and Health,Other Transfer Payments to Soc,60142525,POhWER,279.32,08/11/2019
Delivery Units,Adults and Health,Other Transfer Payments to Soc,60142538,POhWER,182.35,08/11/2019
Delivery Units,Adults and Health,Other Transfer Payments to Soc,60142583,POhWER,214.31,08/11/2019
Delivery Units,Adults and Health,Other Transfer Payments to Soc,60143179,POhWER,150.87,18/11/2019
Delivery Units,Adults and Health,Other Transfer Payments to Soc,60143109,Eduhez Ltd,"3,760.00",15/11/2019
Delivery Units,Adults and Health,Other Transfer Payments to Soc,60143237,Eduhez Ltd,"3,915.00",18/11/2019
Delivery Units,Adults and Health,Other Transfer Payments to Soc,60138507,Favore Didio Ltd,"3,570.00",12/11/2019
Delivery Units,Adults and Health,Other Transfer Payments to Soc,60143251,Favore Didio Ltd,"3,400.00",19/11/2019
Delivery Units,Adults and Health,Other Transfer Payments to Soc,10015448,Peaceable Habitation Ltd,493.20,11/11/2019
Delivery Units,Adults and Health,Other Transfer Payments to Soc,60141498,Peaceable Habitation Ltd,638.88,15/11/2019
Delivery Units,Adults and Health,Other Services,60141578,BACK CARE SOLUTIONS LIMITED,"2,539.49",20/11/2019
Delivery Units,Adults and Health,Other Agencies - Third Party P,90210814,NIGHTINGALE HOUSE,"2,952.35",18/11/2019
Delivery Units,Adults and Health,Other Agencies - Third Party P,90210816,NIGHTINGALE HOUSE,"2,437.71",18/11/2019
Delivery Units,Adults and Health,Other Agencies - Third Party P,90213772,NIGHTINGALE HOUSE,"2,437.71",28/11/2019
Delivery Units,Adults and Health,Other Agencies - Third Party P,90211666,JEWISH CARE,"2,649.36",19/11/2019
Delivery Units,Adults and Health,Other Agencies - Third Party P,90211667,JEWISH CARE,"2,649.36",19/11/2019
Delivery Units,Adults and Health,Other Agencies - Third Party P,90211670,JEWISH CARE,"2,410.28",19/11/2019
Delivery Units,Adults and Health,Other Agencies - Third Party P,90211673,JEWISH CARE,"2,649.36",19/11/2019
Delivery Units,Adults and Health,Other Agencies - Third Party P,90211692,JEWISH CARE,"2,410.28",19/11/2019
Delivery Units,Adults and Health,Other Agencies - Third Party P,90211693,JEWISH CARE,"2,410.28",19/11/2019
Delivery Units,Adults and Health,Other Agencies - Third Party P,90211703,JEWISH CARE,"13,401.36",19/11/2019
Delivery Units,Adults and Health,Other Agencies - Third Party P,90211719,JEWISH CARE,"2,649.36",19/11/2019
Delivery Units,Adults and Health,Other Agencies - Third Party P,90211721,JEWISH CARE,"2,649.36",19/11/2019
Delivery Units,Adults and Health,Other Agencies - Third Party P,90211722,JEWISH CARE,"2,410.28",19/11/2019
Delivery Units,Adults and Health,Other Agencies - Third Party P,90211724,JEWISH CARE,"2,649.36",19/11/2019
Delivery Units,Adults and Health,Other Agencies - Third Party P,90211732,JEWISH CARE,"2,410.28",19/11/2019
Delivery Units,Adults and Health,Other Agencies - Third Party P,90211741,JEWISH CARE,"2,410.28",19/11/2019
Delivery Units,Adults and Health,Other Agencies - Third Party P,90211746,JEWISH CARE,"2,410.28",19/11/2019
Delivery Units,Adults and Health,Other Agencies - Third Party P,90211765,JEWISH CARE,"2,380.92",19/11/2019
Delivery Units,Adults and Health,Other Agencies - Third Party P,90211776,JEWISH CARE,"3,489.64",19/11/2019
Delivery Units,Adults and Health,Other Agencies - Third Party P,90211778,JEWISH CARE,"2,410.28",19/11/2019
Delivery Units,Adults and Health,Other Agencies - Third Party P,90211785,JEWISH CARE,"2,410.28",19/11/2019
Delivery Units,Adults and Health,Other Agencies - Third Party P,90211786,JEWISH CARE,"2,649.36",19/11/2019
Delivery Units,Adults and Health,Other Agencies - Third Party P,90211790,JEWISH CARE,"2,410.28",19/11/2019
Delivery Units,Adults and Health,Other Agencies - Third Party P,90211792,JEWISH CARE,"2,410.28",19/11/2019
Delivery Units,Adults and Health,Other Agencies - Third Party P,90207062,FERNBANK NURSING HOME.,"2,507.90",01/11/2019
Delivery Units,Adults and Health,Other Agencies - Third Party P,90207127,FERNBANK NURSING HOME.,"4,362.01",01/11/2019
Delivery Units,Adults and Health,Other Agencies - Third Party P,90207128,FERNBANK NURSING HOME.,"3,542.68",01/11/2019
Delivery Units,Adults and Health,Other Agencies - Third Party P,90207129,FERNBANK NURSING HOME.,"3,542.68",01/11/2019
Delivery Units,Adults and Health,Other Agencies - Third Party P,90207130,FERNBANK NURSING HOME.,"2,759.93",01/11/2019
Delivery Units,Adults and Health,Other Agencies - Third Party P,90207131,FERNBANK NURSING HOME.,"2,507.90",01/11/2019
Delivery Units,Adults and Health,Other Agencies - Third Party P,90207132,FERNBANK NURSING HOME.,"2,628.44",01/11/2019
Delivery Units,Adults and Health,Other Agencies - Third Party P,90207157,FERNBANK NURSING HOME.,"3,428.40",04/11/2019
Delivery Units,Adults and Health,Other Agencies - Third Party P,90213528,CEDARS NURSING HOME,"4,071.43",27/11/2019
Delivery Units,Adults and Health,Other Agencies - Third Party P,90213529,CEDARS NURSING HOME,"2,869.21",27/11/2019
Delivery Units,Adults and Health,Other Agencies - Third Party P,90213530,CEDARS NURSING HOME,"2,427.17",27/11/2019
Delivery Units,Adults and Health,Other Agencies - Third Party P,90213531,CEDARS NURSING HOME,"4,071.43",27/11/2019
Delivery Units,Adults and Health,Other Agencies - Third Party P,90213533,CEDARS NURSING HOME,"2,571.43",27/11/2019
Delivery Units,Adults and Health,Other Agencies - Third Party P,90213534,CEDARS NURSING HOME,"4,285.71",27/11/2019
Delivery Units,Adults and Health,Other Agencies - Third Party P,90207050,BUPA NURSING HOMES LTD - ARKLEY,"3,614.29",01/11/2019
Delivery Units,Adults and Health,Other Agencies - Third Party P,90207270,BUPA NURSING HOMES LTD - ARKLEY,"1,904.70",05/11/2019
Delivery Units,Adults and Health,Other Agencies - Third Party P,90208013,BUPA NURSING HOMES LTD - ARKLEY,61.98,14/11/2019
Delivery Units,Adults and Health,Other Agencies - Third Party P,90210299,BUPA NURSING HOMES LTD - ARKLEY,"2,243.20",14/11/2019
Delivery Units,Adults and Health,Other Agencies - Third Party P,90210301,BUPA NURSING HOMES LTD - ARKLEY,"4,400.00",14/11/2019
Delivery Units,Adults and Health,Other Agencies - Third Party P,90210302,BUPA NURSING HOMES LTD - ARKLEY,"2,318.76",14/11/2019
Delivery Units,Adults and Health,Other Agencies - Third Party P,90210304,BUPA NURSING HOMES LTD - ARKLEY,"2,318.76",14/11/2019
Delivery Units,Adults and Health,Other Agencies - Third Party P,90210305,BUPA NURSING HOMES LTD - ARKLEY,"2,318.76",14/11/2019
Delivery Units,Adults and Health,Other Agencies - Third Party P,90210306,BUPA NURSING HOMES LTD - ARKLEY,"2,318.76",14/11/2019
Delivery Units,Adults and Health,Other Agencies - Third Party P,90207288,AGUDAS ISRAEL HOUSING ASSCTN LTD,"2,736.86",08/11/2019
Delivery Units,Adults and Health,Other Agencies - Third Party P,90207361,WESTMINSTER HEALTH CARE LTD,"7,428.57",06/11/2019
Delivery Units,Adults and Health,Other Agencies - Third Party P,90213713,WESTMINSTER HEALTH CARE LTD,"2,427.17",27/11/2019
Delivery Units,Adults and Health,Other Agencies - Third Party P,90213714,WESTMINSTER HEALTH CARE LTD,"2,785.71",27/11/2019
Delivery Units,Adults and Health,Other Agencies - Third Party P,90213717,WESTMINSTER HEALTH CARE LTD,"4,861.89",27/11/2019
Delivery Units,Adults and Health,Other Agencies - Third Party P,90211659,HENRY NIHILL HOUSE,"2,265.36",19/11/2019
Delivery Units,Adults and Health,Other Agencies - Third Party P,90211660,HENRY NIHILL HOUSE,"2,265.36",19/11/2019
Delivery Units,Adults and Health,Other Agencies - Third Party P,90211663,HENRY NIHILL HOUSE,"2,265.36",19/11/2019
Delivery Units,Adults and Health,Other Agencies - Third Party P,90211713,HENRY NIHILL HOUSE,"2,265.36",19/11/2019
Delivery Units,Adults and Health,Other Agencies - Third Party P,90211731,HENRY NIHILL HOUSE,"2,265.36",19/11/2019
Delivery Units,Adults and Health,Other Agencies - Third Party P,90211744,HENRY NIHILL HOUSE,"2,265.36",19/11/2019
Delivery Units,Adults and Health,Other Agencies - Third Party P,90213487,HENRY NIHILL HOUSE,"16,178.57",27/11/2019
Delivery Units,Adults and Health,Other Agencies - Third Party P,90213488,HENRY NIHILL HOUSE,"3,000.00",27/11/2019
Delivery Units,Adults and Health,Other Agencies - Third Party P,90212749,THE LEONARD CHESHIRE FOUNDATION,"6,634.00",25/11/2019
Delivery Units,Adults and Health,Other Agencies - Third Party P,90207330,LIFESTYLE CARE PLC,"2,655.55",08/11/2019
Delivery Units,Adults and Health,Other Agencies - Third Party P,90207332,LIFESTYLE CARE PLC,"2,397.72",08/11/2019
Delivery Units,Adults and Health,Other Agencies - Third Party P,90207333,LIFESTYLE CARE PLC,"2,842.43",08/11/2019
Delivery Units,Adults and Health,Other Agencies - Third Party P,90207335,LIFESTYLE CARE PLC,"2,655.55",08/11/2019
Delivery Units,Adults and Health,Other Agencies - Third Party P,90207336,LIFESTYLE CARE PLC,"2,655.55",08/11/2019
Delivery Units,Adults and Health,Other Agencies - Third Party P,90207337,LIFESTYLE CARE PLC,"2,397.72",08/11/2019
Delivery Units,Adults and Health,Other Agencies - Third Party P,90207338,LIFESTYLE CARE PLC,"2,397.72",08/11/2019
Delivery Units,Adults and Health,Other Agencies - Third Party P,90207339,LIFESTYLE CARE PLC,"2,397.72",08/11/2019
Delivery Units,Adults and Health,Other Agencies - Third Party P,90207340,LIFESTYLE CARE PLC,"2,655.55",08/11/2019
Delivery Units,Adults and Health,Other Agencies - Third Party P,90207341,LIFESTYLE CARE PLC,"2,397.72",08/11/2019
Delivery Units,Adults and Health,Other Agencies - Third Party P,90213671,LIFESTYLE CARE PLC,"2,764.07",27/11/2019
Delivery Units,Adults and Health,Other Agencies - Third Party P,90213674,LIFESTYLE CARE PLC,"3,857.14",27/11/2019
Delivery Units,Adults and Health,Other Agencies - Third Party P,90213675,LIFESTYLE CARE PLC,"3,147.60",27/11/2019
Delivery Units,Adults and Health,Other Agencies - Third Party P,90213676,LIFESTYLE CARE PLC,"3,147.60",27/11/2019
Delivery Units,Adults and Health,Other Agencies - Third Party P,90213933,CARETECH COMMUNITY SERVICES LTD,"4,815.09",28/11/2019
Delivery Units,Adults and Health,Other Agencies - Third Party P,90207063,SONESTA NURSING HOME LTD.,"2,399.58",01/11/2019
Delivery Units,Adults and Health,Other Agencies - Third Party P,90207066,SONESTA NURSING HOME LTD.,"2,397.72",01/11/2019
Delivery Units,Adults and Health,Other Agencies - Third Party P,90207068,SONESTA NURSING HOME LTD.,"2,508.08",01/11/2019
Delivery Units,Adults and Health,Other Agencies - Third Party P,90207069,SONESTA NURSING HOME LTD.,"2,878.57",01/11/2019
Delivery Units,Adults and Health,Other Agencies - Third Party P,90213731,MEERA NURSING HOME LIMITED,"2,366.78",28/11/2019
Delivery Units,Adults and Health,Other Agencies - Third Party P,90213732,MEERA NURSING HOME LIMITED,"2,366.78",28/11/2019
Delivery Units,Adults and Health,Other Agencies - Third Party P,90213733,MEERA NURSING HOME LIMITED,"3,642.86",28/11/2019
Delivery Units,Adults and Health,Other Agencies - Third Party P,90213735,MEERA NURSING HOME LIMITED,"3,393.60",28/11/2019
Delivery Units,Adults and Health,Other Agencies - Third Party P,90213736,MEERA NURSING HOME LIMITED,"3,000.00",28/11/2019
Delivery Units,Adults and Health,Other Agencies - Third Party P,90207112,NEWCENTURY CARE LTD,"3,868.49",01/11/2019
Delivery Units,Adults and Health,Other Agencies - Third Party P,90207113,NEWCENTURY CARE LTD,"4,460.00",01/11/2019
Delivery Units,Adults and Health,Other Agencies - Third Party P,90207114,NEWCENTURY CARE LTD,"4,096.03",01/11/2019
Delivery Units,Adults and Health,Other Agencies - Third Party P,90207115,NEWCENTURY CARE LTD,"3,578.29",01/11/2019
Delivery Units,Adults and Health,Other Agencies - Third Party P,90207116,NEWCENTURY CARE LTD,"3,764.29",01/11/2019
Delivery Units,Adults and Health,Other Agencies - Third Party P,90207117,NEWCENTURY CARE LTD,"3,578.29",01/11/2019
Delivery Units,Adults and Health,Other Agencies - Third Party P,90210013,NEWCENTURY CARE LTD,461.72,12/11/2019
Delivery Units,Adults and Health,Other Agencies - Third Party P,90210064,NEWCENTURY CARE LTD,"21,140.00",13/11/2019
Delivery Units,Adults and Health,Other Agencies - Third Party P,90213511,NEWCENTURY CARE LTD,"3,743.70",27/11/2019
Delivery Units,Adults and Health,Other Agencies - Third Party P,90213512,NEWCENTURY CARE LTD,"4,316.23",27/11/2019
Delivery Units,Adults and Health,Other Agencies - Third Party P,90213513,NEWCENTURY CARE LTD,"3,963.90",27/11/2019
Delivery Units,Adults and Health,Other Agencies - Third Party P,90213514,NEWCENTURY CARE LTD,"3,462.86",27/11/2019
Delivery Units,Adults and Health,Other Agencies - Third Party P,90213515,NEWCENTURY CARE LTD,"3,642.86",27/11/2019
Delivery Units,Adults and Health,Other Agencies - Third Party P,90207348,BUPA CARE HOMES,"1,691.74",07/11/2019
Delivery Units,Adults and Health,Other Agencies - Third Party P,90210308,BUPA CARE HOMES,"2,563.39",13/11/2019
Delivery Units,Adults and Health,Other Agencies - Third Party P,90211631,BUPA CARE HOMES,"2,315.32",19/11/2019
Delivery Units,Adults and Health,Other Agencies - Third Party P,90211632,BUPA CARE HOMES,909.59,19/11/2019
Delivery Units,Adults and Health,Other Agencies - Third Party P,90207965,BUPA CARE HOMES,"2,508.08",08/11/2019
Delivery Units,Adults and Health,Other Agencies - Third Party P,90207966,BUPA CARE HOMES,"2,508.08",08/11/2019
Delivery Units,Adults and Health,Other Agencies - Third Party P,90207967,BUPA CARE HOMES,"2,399.58",08/11/2019
Delivery Units,Adults and Health,Other Agencies - Third Party P,90207968,BUPA CARE HOMES,"2,413.57",08/11/2019
Delivery Units,Adults and Health,Other Agencies - Third Party P,90207969,BUPA CARE HOMES,"3,210.71",08/11/2019
Delivery Units,Adults and Health,Other Agencies - Third Party P,90207971,BUPA CARE HOMES,"2,780.70",08/11/2019
Delivery Units,Adults and Health,Other Agencies - Third Party P,90207973,BUPA CARE HOMES,"2,399.58",08/11/2019
Delivery Units,Adults and Health,Other Agencies - Third Party P,90207975,BUPA CARE HOMES,"2,399.58",08/11/2019
Delivery Units,Adults and Health,Other Agencies - Third Party P,90207976,BUPA CARE HOMES,"2,760.20",08/11/2019
Delivery Units,Adults and Health,Other Agencies - Third Party P,90207977,BUPA CARE HOMES,"2,399.58",08/11/2019
Delivery Units,Adults and Health,Other Agencies - Third Party P,90210011,BUPA CARE HOMES,"2,671.16",12/11/2019
Delivery Units,Adults and Health,Other Agencies - Third Party P,90212888,BUPA CARE HOMES,"2,587.44",26/11/2019
Delivery Units,Adults and Health,Other Agencies - Third Party P,90212889,BUPA CARE HOMES,"2,345.12",26/11/2019
Delivery Units,Adults and Health,Other Agencies - Third Party P,90212890,BUPA CARE HOMES,"2,265.36",26/11/2019
Delivery Units,Adults and Health,Other Agencies - Third Party P,90212891,BUPA CARE HOMES,"2,587.44",27/11/2019
Delivery Units,Adults and Health,Other Agencies - Third Party P,90212892,BUPA CARE HOMES,"2,345.12",27/11/2019
Delivery Units,Adults and Health,Other Agencies - Third Party P,90212893,BUPA CARE HOMES,"2,265.36",27/11/2019
Delivery Units,Adults and Health,Other Agencies - Third Party P,90207369,ASPEN VILLAGES LTD,"2,657.14",06/11/2019
Delivery Units,Adults and Health,Other Agencies - Third Party P,90213519,ASPEN VILLAGES LTD,"2,571.43",27/11/2019
Delivery Units,Adults and Health,Other Agencies - Third Party P,90204188,FOUR SEASONS HEALTH CARE,"2,576.24",05/11/2019
Delivery Units,Adults and Health,Other Agencies - Third Party P,90205093,FOUR SEASONS HEALTH CARE,"2,848.00",01/11/2019
Delivery Units,Adults and Health,Other Agencies - Third Party P,90205095,FOUR SEASONS HEALTH CARE,"2,314.28",01/11/2019
Delivery Units,Adults and Health,Other Agencies - Third Party P,90205096,FOUR SEASONS HEALTH CARE,"2,576.24",01/11/2019
Delivery Units,Adults and Health,Other Agencies - Third Party P,90205097,FOUR SEASONS HEALTH CARE,"2,314.28",01/11/2019
Delivery Units,Adults and Health,Other Agencies - Third Party P,90205099,FOUR SEASONS HEALTH CARE,"2,314.28",01/11/2019
Delivery Units,Adults and Health,Other Agencies - Third Party P,90205101,FOUR SEASONS HEALTH CARE,"2,576.24",01/11/2019
Delivery Units,Adults and Health,Other Agencies - Third Party P,90205102,FOUR SEASONS HEALTH CARE,"2,576.24",01/11/2019
Delivery Units,Adults and Health,Other Agencies - Third Party P,90205103,FOUR SEASONS HEALTH CARE,"2,314.28",01/11/2019
Delivery Units,Adults and Health,Other Agencies - Third Party P,90207056,FOUR SEASONS HEALTH CARE,"2,848.00",01/11/2019
Delivery Units,Adults and Health,Other Agencies - Third Party P,90211170,FOUR SEASONS HEALTH CARE,"2,314.28",18/11/2019
Delivery Units,Adults and Health,Other Agencies - Third Party P,90211173,FOUR SEASONS HEALTH CARE,"2,576.24",18/11/2019
Delivery Units,Adults and Health,Other Agencies - Third Party P,90211174,FOUR SEASONS HEALTH CARE,"2,576.24",18/11/2019
Delivery Units,Adults and Health,Other Agencies - Third Party P,90211175,FOUR SEASONS HEALTH CARE,"2,576.24",18/11/2019
Delivery Units,Adults and Health,Other Agencies - Third Party P,90211176,FOUR SEASONS HEALTH CARE,"2,314.28",18/11/2019
Delivery Units,Adults and Health,Other Agencies - Third Party P,90211177,FOUR SEASONS HEALTH CARE,"2,576.24",18/11/2019
Delivery Units,Adults and Health,Other Agencies - Third Party P,90211178,FOUR SEASONS HEALTH CARE,"2,314.28",18/11/2019
Delivery Units,Adults and Health,Other Agencies - Third Party P,90211180,FOUR SEASONS HEALTH CARE,"2,848.00",18/11/2019
Delivery Units,Adults and Health,Other Agencies - Third Party P,90211637,FOUR SEASONS HEALTH CARE,"14,629.36",19/11/2019
Delivery Units,Adults and Health,Other Agencies - Third Party P,90213704,SANCTUARY CARE LTD,"2,459.10",27/11/2019
Delivery Units,Adults and Health,Other Agencies - Third Party P,90207999,BUPA CARE HOMES,"3,556.23",08/11/2019
Delivery Units,Adults and Health,Other Agencies - Third Party P,90208000,BUPA CARE HOMES,"2,567.20",08/11/2019
Delivery Units,Adults and Health,Other Agencies - Third Party P,90208001,BUPA CARE HOMES,"3,615.84",08/11/2019
Delivery Units,Adults and Health,Other Agencies - Third Party P,90208003,BUPA CARE HOMES,"3,412.44",08/11/2019
Delivery Units,Adults and Health,Other Agencies - Third Party P,90207185,SAGE NURSING HOME,"4,207.14",07/11/2019
Delivery Units,Adults and Health,Other Agencies - Third Party P,90207187,SAGE NURSING HOME,"2,508.08",07/11/2019
Delivery Units,Adults and Health,Other Agencies - Third Party P,90207189,SAGE NURSING HOME,"2,788.32",07/11/2019
Delivery Units,Adults and Health,Other Agencies - Third Party P,90207190,SAGE NURSING HOME,"2,517.60",07/11/2019
Delivery Units,Adults and Health,Other Agencies - Third Party P,90207192,SAGE NURSING HOME,"3,077.86",07/11/2019
Delivery Units,Adults and Health,Other Agencies - Third Party P,90210818,SAGE NURSING HOME,"2,714.20",18/11/2019
Delivery Units,Adults and Health,Other Agencies - Third Party P,90210819,SAGE NURSING HOME,"4,207.01",18/11/2019
Delivery Units,Adults and Health,Other Agencies - Third Party P,90213554,ST VINCENTS NURSING HOME,"6,428.57",27/11/2019
Delivery Units,Adults and Health,Other Agencies - Third Party P,90213556,ST VINCENTS NURSING HOME,"1,725.64",27/11/2019
Delivery Units,Adults and Health,Other Agencies - Third Party P,90213678,APPLE TREE COURT CARE HOME,"4,714.29",27/11/2019
Delivery Units,Adults and Health,Other Agencies - Third Party P,90213679,APPLE TREE COURT CARE HOME,"5,571.42",27/11/2019
Delivery Units,Adults and Health,Other Agencies - Third Party P,90213680,APPLE TREE COURT CARE HOME,"2,671.16",27/11/2019
Delivery Units,Adults and Health,Other Agencies - Third Party P,90213688,APPLE TREE COURT CARE HOME,"21,508.59",27/11/2019
Delivery Units,Adults and Health,Other Agencies - Third Party P,90213720,APPLE TREE COURT CARE HOME,"3,857.14",27/11/2019
Delivery Units,Adults and Health,Other Agencies - Third Party P,90210003,AUTUMN GARDENS,"4,800.00",12/11/2019
Delivery Units,Adults and Health,Other Agencies - Third Party P,90210006,AUTUMN GARDENS,"4,800.00",12/11/2019
Delivery Units,Adults and Health,Other Agencies - Third Party P,90210007,AUTUMN GARDENS,"3,440.00",12/11/2019
Delivery Units,Adults and Health,Other Agencies - Third Party P,90211633,SUNRISE SENIOR LIVING,"6,382.28",19/11/2019
Delivery Units,Adults and Health,Other Agencies - Third Party P,90211634,SUNRISE SENIOR LIVING,"6,382.28",19/11/2019
Delivery Units,Adults and Health,Other Agencies - Third Party P,90211635,SUNRISE SENIOR LIVING,"6,176.40",19/11/2019
Delivery Units,Adults and Health,Other Agencies - Third Party P,90211636,SUNRISE SENIOR LIVING,"6,382.28",19/11/2019
Delivery Units,Adults and Health,Other Agencies - Third Party P,90208010,ABBEY RAVENSCROFT PARK NURSING HOME,"2,698.37",08/11/2019
Delivery Units,Adults and Health,Other Agencies - Third Party P,90208011,ABBEY RAVENSCROFT PARK NURSING HOME,"3,214.29",08/11/2019
Delivery Units,Adults and Health,Other Agencies - Third Party P,90212208,ABBEY RAVENSCROFT PARK NURSING HOME,"3,885.71",22/11/2019
Delivery Units,Adults and Health,Other Agencies - Third Party P,90212209,ABBEY RAVENSCROFT PARK NURSING HOME,"2,792.86",22/11/2019
Delivery Units,Adults and Health,Other Agencies - Third Party P,90213581,ABBEY RAVENSCROFT PARK NURSING HOME,"3,642.86",27/11/2019
Delivery Units,Adults and Health,Other Agencies - Third Party P,90213583,ABBEY RAVENSCROFT PARK NURSING HOME,"3,428.57",27/11/2019
Delivery Units,Adults and Health,Other Agencies - Third Party P,90213584,ABBEY RAVENSCROFT PARK NURSING HOME,"3,642.86",27/11/2019
Delivery Units,Adults and Health,Other Agencies - Third Party P,90213586,ABBEY RAVENSCROFT PARK NURSING HOME,"3,214.29",27/11/2019
Delivery Units,Adults and Health,Other Agencies - Third Party P,90213587,ABBEY RAVENSCROFT PARK NURSING HOME,"2,698.37",27/11/2019
Delivery Units,Adults and Health,Other Agencies - Third Party P,90213588,ABBEY RAVENSCROFT PARK NURSING HOME,"4,834.29",27/11/2019
Delivery Units,Adults and Health,Other Agencies - Third Party P,90213589,ABBEY RAVENSCROFT PARK NURSING HOME,"3,214.29",27/11/2019
Delivery Units,Adults and Health,Other Agencies - Third Party P,90213590,ABBEY RAVENSCROFT PARK NURSING HOME,"3,214.29",27/11/2019
Delivery Units,Adults and Health,Other Agencies - Third Party P,90213593,ABBEY RAVENSCROFT PARK NURSING HOME,"3,642.86",27/11/2019
Delivery Units,Adults and Health,Other Agencies - Third Party P,90213595,ABBEY RAVENSCROFT PARK NURSING HOME,"3,214.29",27/11/2019
Delivery Units,Adults and Health,Other Agencies - Third Party P,90213596,ABBEY RAVENSCROFT PARK NURSING HOME,"2,698.37",27/11/2019
Delivery Units,Adults and Health,Other Agencies - Third Party P,90213598,ABBEY RAVENSCROFT PARK NURSING HOME,"2,698.37",27/11/2019
Delivery Units,Adults and Health,Other Agencies - Third Party P,90213601,ABBEY RAVENSCROFT PARK NURSING HOME,"3,214.29",27/11/2019
Delivery Units,Adults and Health,Other Agencies - Third Party P,90213602,ABBEY RAVENSCROFT PARK NURSING HOME,"3,214.29",27/11/2019
Delivery Units,Adults and Health,Other Agencies - Third Party P,90213603,ABBEY RAVENSCROFT PARK NURSING HOME,"2,698.37",27/11/2019
Delivery Units,Adults and Health,Other Agencies - Third Party P,90206804,CARLTON COURT (TLC GROUP),"4,428.57",01/11/2019
Delivery Units,Adults and Health,Other Agencies - Third Party P,90206805,CARLTON COURT (TLC GROUP),"3,736.61",01/11/2019
Delivery Units,Adults and Health,Other Agencies - Third Party P,90206809,CARLTON COURT (TLC GROUP),"2,448.78",01/11/2019
Delivery Units,Adults and Health,Other Agencies - Third Party P,90206814,CARLTON COURT (TLC GROUP),"5,978.57",01/11/2019
Delivery Units,Adults and Health,Other Agencies - Third Party P,90206815,CARLTON COURT (TLC GROUP),"4,428.57",01/11/2019
Delivery Units,Adults and Health,Other Agencies - Third Party P,90206817,CARLTON COURT (TLC GROUP),"3,764.29",01/11/2019
Delivery Units,Adults and Health,Other Agencies - Third Party P,90213785,CARLTON COURT (TLC GROUP),"4,285.71",28/11/2019
Delivery Units,Adults and Health,Other Agencies - Third Party P,90213786,CARLTON COURT (TLC GROUP),"3,616.07",28/11/2019
Delivery Units,Adults and Health,Other Agencies - Third Party P,90213790,CARLTON COURT (TLC GROUP),"2,369.79",28/11/2019
Delivery Units,Adults and Health,Other Agencies - Third Party P,90213795,CARLTON COURT (TLC GROUP),"4,285.71",28/11/2019
Delivery Units,Adults and Health,Other Agencies - Third Party P,90213797,CARLTON COURT (TLC GROUP),"3,642.86",28/11/2019
Delivery Units,Adults and Health,Other Agencies - Third Party P,90213798,CARLTON COURT (TLC GROUP),"5,785.71",28/11/2019
Delivery Units,Adults and Health,Other Agencies - Third Party P,90213799,CARLTON COURT (TLC GROUP),"-3,085.71",28/11/2019
Delivery Units,Adults and Health,Other Agencies - Third Party P,90213656,HUSKARDS NEW CARE LTD,"2,320.37",27/11/2019
Delivery Units,Adults and Health,Other Agencies - Third Party P,90207049,ASHTON LODGE CARE CENTRE,"3,695.38",01/11/2019
Delivery Units,Adults and Health,Other Agencies - Third Party P,90207349,ASHTON LODGE CARE CENTRE,"3,657.43",06/11/2019
Delivery Units,Adults and Health,Other Agencies - Third Party P,90207351,ASHTON LODGE CARE CENTRE,"3,056.70",06/11/2019
Delivery Units,Adults and Health,Other Agencies - Third Party P,90207352,ASHTON LODGE CARE CENTRE,"6,768.23",06/11/2019
Delivery Units,Adults and Health,Other Agencies - Third Party P,90207353,ASHTON LODGE CARE CENTRE,"4,293.26",06/11/2019
Delivery Units,Adults and Health,Other Agencies - Third Party P,90207354,ASHTON LODGE CARE CENTRE,"2,554.89",06/11/2019
Delivery Units,Adults and Health,Other Agencies - Third Party P,90207356,ASHTON LODGE CARE CENTRE,"2,831.31",06/11/2019
Delivery Units,Adults and Health,Other Agencies - Third Party P,90208012,ASHTON LODGE CARE CENTRE,"4,172.20",08/11/2019
Delivery Units,Adults and Health,Other Agencies - Third Party P,90210335,ASHTON LODGE CARE CENTRE,"14,685.14",15/11/2019
Delivery Units,Adults and Health,Other Agencies - Third Party P,90213722,ASHTON LODGE CARE CENTRE,"5,076.17",28/11/2019
Delivery Units,Adults and Health,Other Agencies - Third Party P,90213723,ASHTON LODGE CARE CENTRE,"2,554.89",28/11/2019
Delivery Units,Adults and Health,Other Agencies - Third Party P,90213724,ASHTON LODGE CARE CENTRE,"3,282.26",28/11/2019
Delivery Units,Adults and Health,Other Agencies - Third Party P,90213744,ASHTON LODGE CARE CENTRE,"3,488.87",28/11/2019
Delivery Units,Adults and Health,Other Agencies - Third Party P,90213745,ASHTON LODGE CARE CENTRE,"3,427.54",28/11/2019
Delivery Units,Adults and Health,Other Agencies - Third Party P,90213746,ASHTON LODGE CARE CENTRE,"2,829.64",28/11/2019
Delivery Units,Adults and Health,Other Agencies - Third Party P,90213747,ASHTON LODGE CARE CENTRE,"3,061.97",28/11/2019
Delivery Units,Adults and Health,Other Agencies - Third Party P,90213748,ASHTON LODGE CARE CENTRE,"3,524.83",28/11/2019
Delivery Units,Adults and Health,Other Agencies - Third Party P,90213749,ASHTON LODGE CARE CENTRE,"2,829.64",28/11/2019
Delivery Units,Adults and Health,Other Agencies - Third Party P,90213750,ASHTON LODGE CARE CENTRE,"4,293.26",28/11/2019
Delivery Units,Adults and Health,Other Agencies - Third Party P,90213751,ASHTON LODGE CARE CENTRE,"2,921.23",28/11/2019
Delivery Units,Adults and Health,Other Agencies - Third Party P,90213752,ASHTON LODGE CARE CENTRE,"2,831.31",28/11/2019
Delivery Units,Adults and Health,Other Agencies - Third Party P,90213755,ASHTON LODGE CARE CENTRE,"3,057.77",28/11/2019
Delivery Units,Adults and Health,Other Agencies - Third Party P,90213756,ASHTON LODGE CARE CENTRE,"3,722.87",28/11/2019
Delivery Units,Adults and Health,Other Agencies - Third Party P,90213757,ASHTON LODGE CARE CENTRE,"3,427.54",28/11/2019
Delivery Units,Adults and Health,Other Agencies - Third Party P,90213758,ASHTON LODGE CARE CENTRE,"3,576.17",28/11/2019
Delivery Units,Adults and Health,Other Agencies - Third Party P,90213760,ASHTON LODGE CARE CENTRE,"3,056.70",28/11/2019
Delivery Units,Adults and Health,Other Agencies - Third Party P,90213761,ASHTON LODGE CARE CENTRE,"3,061.97",28/11/2019
Delivery Units,Adults and Health,Other Agencies - Third Party P,90213762,ASHTON LODGE CARE CENTRE,"-3,117.81",28/11/2019
Delivery Units,Adults and Health,Other Agencies - Third Party P,90213763,ASHTON LODGE CARE CENTRE,"4,076.83",28/11/2019
Delivery Units,Adults and Health,Other Agencies - Third Party P,90213766,ASHTON LODGE CARE CENTRE,"3,657.43",28/11/2019
Delivery Units,Adults and Health,Other Agencies - Third Party P,90207963,WESTGATE HOUSE CARE CENTRE,"3,605.57",08/11/2019
Delivery Units,Adults and Health,Other Agencies - Third Party P,90207964,WESTGATE HOUSE CARE CENTRE,"3,605.57",08/11/2019
Delivery Units,Adults and Health,Other Agencies - Third Party P,90210346,WILSMERE HOUSE CARE CENTRE,"4,979.35",15/11/2019
Delivery Units,Adults and Health,Other Agencies - Third Party P,90213691,WILSMERE HOUSE CARE CENTRE,"4,818.73",27/11/2019
Delivery Units,Adults and Health,Other Agencies - Third Party P,90207635,NHS BARNET CCG,"15,590.64",08/11/2019
Delivery Units,Adults and Health,Other Agencies - Third Party P,90207637,NHS BARNET CCG,"15,590.64",08/11/2019
Delivery Units,Adults and Health,Other Agencies - Third Party P,90207649,NHS BARNET CCG,"11,478.82",08/11/2019
Delivery Units,Adults and Health,Other Agencies - Third Party P,90208016,Victoria Care Centre,"2,863.50",08/11/2019
Delivery Units,Adults and Health,Other Agencies - Third Party P,90207092,Karuna Manor,"4,207.14",01/11/2019
Delivery Units,Adults and Health,Other Agencies - Third Party P,90207093,Karuna Manor,"4,392.43",01/11/2019
Delivery Units,Adults and Health,Other Agencies - Third Party P,90207094,Karuna Manor,"2,373.71",01/11/2019
Delivery Units,Adults and Health,Other Agencies - Third Party P,90212908,Karuna Manor,"4,250.74",26/11/2019
Delivery Units,Adults and Health,Other Agencies - Third Party P,90212909,Karuna Manor,"4,071.43",26/11/2019
Delivery Units,Adults and Health,Other Agencies - Third Party P,90213960,Karuna Manor,"4,071.43",28/11/2019
Delivery Units,Adults and Health,Other Agencies - Third Party P,90213961,Karuna Manor,"4,250.74",28/11/2019
Delivery Units,Adults and Health,Other Agencies - Third Party P,90208009,St Anns Home-Little Sisters of the Poor,"2,421.72",08/11/2019
Delivery Units,Adults and Health,Other Agencies - Third Party P,90213604,Pinelodge Care Home,"2,569.89",27/11/2019
Delivery Units,Adults and Health,Other Agencies - Third Party P,90207088,Chiswick House,"3,321.34",01/11/2019
Delivery Units,Adults and Health,Other Agencies - Third Party P,90213624,Chiswick House,"3,214.20",27/11/2019
Delivery Units,Adults and Health,Other Agencies - Third Party P,90212878,Adara Healthcare Ltd,"3,400.00",26/11/2019
Delivery Units,Adults and Health,Other Agencies - Third Party P,90212879,Adara Healthcare Ltd,"3,400.00",26/11/2019
Delivery Units,Adults and Health,Other Agencies - Third Party P,90207040,Aarandale Manor Care Home,"2,129.79",01/11/2019
Delivery Units,Adults and Health,Other Agencies - Third Party P,90207041,Aarandale Manor Care Home,"4,428.57",01/11/2019
Delivery Units,Adults and Health,Other Agencies - Third Party P,90207042,Aarandale Manor Care Home,"3,741.92",01/11/2019
Delivery Units,Adults and Health,Other Agencies - Third Party P,90207043,Aarandale Manor Care Home,"2,570.56",01/11/2019
Delivery Units,Adults and Health,Other Agencies - Third Party P,90213565,Aarandale Manor Care Home,"2,061.09",27/11/2019
Delivery Units,Adults and Health,Other Agencies - Third Party P,90213566,Aarandale Manor Care Home,"4,285.71",27/11/2019
Delivery Units,Adults and Health,Other Agencies - Third Party P,90213567,Aarandale Manor Care Home,"3,621.21",27/11/2019
Delivery Units,Adults and Health,Other Agencies - Third Party P,90213568,Aarandale Manor Care Home,"2,487.64",27/11/2019
Delivery Units,Adults and Health,Other Agencies - Third Party P,90207156,St Johns Wood Care Centre,"2,850.89",04/11/2019
Delivery Units,Adults and Health,Other Agencies - Third Party P,90212210,St Johns Wood Care Centre,275.89,22/11/2019
Delivery Units,Adults and Health,Other Agencies - Third Party P,90208158,Contemplation Homes,"3,409.78",11/11/2019
Delivery Units,Adults and Health,Other Agencies - Third Party P,90213553,Contemplation Homes,"3,299.79",27/11/2019
Delivery Units,Adults and Health,Other Agencies - Third Party P,90213669,Lansglade Homes Limited,"2,635.50",27/11/2019
Delivery Units,Adults and Health,Other Agencies - Third Party P,90207981,Alliance Care (Dales Homes) Limited,"3,764.29",08/11/2019
Delivery Units,Adults and Health,Other Agencies - Third Party P,90212882,Alliance Care (Dales Homes) Limited,"3,642.86",26/11/2019
Delivery Units,Adults and Health,Other Agencies - Third Party P,90206819,Chalfont Lodge (Barchester Healthcare Ho,"7,085.71",01/11/2019
Delivery Units,Adults and Health,Other Agencies - Third Party P,90209998,Larchwood Care Homes(South)Lt,"3,400.00",12/11/2019
Delivery Units,Adults and Health,Other Agencies - Third Party P,90212029,Allington Court Care Home,"2,047.89",20/11/2019
Delivery Units,Adults and Health,Other Agencies - Third Party P,90212030,Allington Court Care Home,"2,671.16",20/11/2019
Delivery Units,Adults and Health,Other Agencies - Third Party P,90207321,DR FRENCH MEMORIAL HOME LTD,"2,601.88",08/11/2019
Delivery Units,Adults and Health,Other Agencies - Third Party P,90207322,DR FRENCH MEMORIAL HOME LTD,"3,542.86",08/11/2019
Delivery Units,Adults and Health,Other Agencies - Third Party P,90207323,DR FRENCH MEMORIAL HOME LTD,"3,542.86",08/11/2019
Delivery Units,Adults and Health,Other Agencies - Third Party P,90207324,DR FRENCH MEMORIAL HOME LTD,"3,542.86",08/11/2019
Delivery Units,Adults and Health,Other Agencies - Third Party P,90207325,DR FRENCH MEMORIAL HOME LTD,"3,764.29",08/11/2019
Delivery Units,Adults and Health,Other Agencies - Third Party P,90207326,DR FRENCH MEMORIAL HOME LTD,"3,653.57",08/11/2019
Delivery Units,Adults and Health,Other Agencies - Third Party P,90207327,DR FRENCH MEMORIAL HOME LTD,"1,092.86",08/11/2019
Delivery Units,Adults and Health,Other Agencies - Third Party P,90207328,DR FRENCH MEMORIAL HOME LTD,"3,642.86",08/11/2019
Delivery Units,Adults and Health,Other Agencies - Third Party P,90207362,DR FRENCH MEMORIAL HOME LTD,"2,064.29",13/11/2019
Delivery Units,Adults and Health,Other Agencies - Third Party P,90207363,DR FRENCH MEMORIAL HOME LTD,"3,764.29",13/11/2019
Delivery Units,Adults and Health,Other Agencies - Third Party P,90207364,DR FRENCH MEMORIAL HOME LTD,"3,642.86",13/11/2019
Delivery Units,Adults and Health,Other Agencies - Third Party P,90211626,DR FRENCH MEMORIAL HOME LTD,457.14,21/11/2019
Delivery Units,Adults and Health,Other Agencies - Third Party P,90213945,DR FRENCH MEMORIAL HOME LTD,"2,517.94",28/11/2019
Delivery Units,Adults and Health,Other Agencies - Third Party P,90213946,DR FRENCH MEMORIAL HOME LTD,"3,642.86",28/11/2019
Delivery Units,Adults and Health,Other Agencies - Third Party P,90213947,DR FRENCH MEMORIAL HOME LTD,"3,428.57",28/11/2019
Delivery Units,Adults and Health,Other Agencies - Third Party P,90213948,DR FRENCH MEMORIAL HOME LTD,"3,428.57",28/11/2019
Delivery Units,Adults and Health,Other Agencies - Third Party P,90213949,DR FRENCH MEMORIAL HOME LTD,"3,642.86",28/11/2019
Delivery Units,Adults and Health,Other Agencies - Third Party P,90213538,ROSEACRES CARE HOME LIMITED,"3,214.29",27/11/2019
Delivery Units,Adults and Health,Other Agencies - Third Party P,90213539,ROSEACRES CARE HOME LIMITED,"2,468.57",27/11/2019
Delivery Units,Adults and Health,Other Agencies - Third Party P,90213540,ROSEACRES CARE HOME LIMITED,"2,468.57",27/11/2019
Delivery Units,Adults and Health,Other Agencies - Third Party P,90213542,ROSEACRES CARE HOME LIMITED,"3,642.86",27/11/2019
Delivery Units,Adults and Health,Other Agencies - Third Party P,90213543,ROSEACRES CARE HOME LIMITED,"2,468.57",27/11/2019
Delivery Units,Adults and Health,Other Agencies - Third Party P,90213544,ROSEACRES CARE HOME LIMITED,"2,468.57",27/11/2019
Delivery Units,Adults and Health,Other Agencies - Third Party P,90213546,ROSEACRES CARE HOME LIMITED,"3,214.29",27/11/2019
Delivery Units,Adults and Health,Other Agencies - Third Party P,90213547,ROSEACRES CARE HOME LIMITED,"3,214.29",27/11/2019
Delivery Units,Adults and Health,Other Agencies - Third Party P,90213548,ROSEACRES CARE HOME LIMITED,"2,468.57",27/11/2019
Delivery Units,Adults and Health,Other Agencies - Third Party P,90213549,ROSEACRES CARE HOME LIMITED,"3,214.29",27/11/2019
Delivery Units,Adults and Health,Other Agencies - Third Party P,90213559,ROSEACRES CARE HOME LIMITED,"3,214.29",27/11/2019
Delivery Units,Adults and Health,Other Agencies - Third Party P,90210815,NIGHTINGALE HOUSE,"2,437.71",18/11/2019
Delivery Units,Adults and Health,Other Agencies - Third Party P,90210817,NIGHTINGALE HOUSE,"3,072.01",18/11/2019
Delivery Units,Adults and Health,Other Agencies - Third Party P,90207095,ELEANOR PALMER TRUST NO 2 A/C.,"3,430.46",01/11/2019
Delivery Units,Adults and Health,Other Agencies - Third Party P,90207096,ELEANOR PALMER TRUST NO 2 A/C.,"3,354.64",01/11/2019
Delivery Units,Adults and Health,Other Agencies - Third Party P,90207097,ELEANOR PALMER TRUST NO 2 A/C.,"3,354.64",01/11/2019
Delivery Units,Adults and Health,Other Agencies - Third Party P,90207098,ELEANOR PALMER TRUST NO 2 A/C.,"3,430.46",01/11/2019
Delivery Units,Adults and Health,Other Agencies - Third Party P,90207099,ELEANOR PALMER TRUST NO 2 A/C.,"2,630.35",01/11/2019
Delivery Units,Adults and Health,Other Agencies - Third Party P,90207100,ELEANOR PALMER TRUST NO 2 A/C.,"3,430.46",01/11/2019
Delivery Units,Adults and Health,Other Agencies - Third Party P,90207101,ELEANOR PALMER TRUST NO 2 A/C.,"2,630.35",01/11/2019
Delivery Units,Adults and Health,Other Agencies - Third Party P,90207102,ELEANOR PALMER TRUST NO 2 A/C.,"2,421.19",01/11/2019
Delivery Units,Adults and Health,Other Agencies - Third Party P,90207104,ELEANOR PALMER TRUST NO 2 A/C.,"3,430.46",01/11/2019
Delivery Units,Adults and Health,Other Agencies - Third Party P,90207105,ELEANOR PALMER TRUST NO 2 A/C.,"3,430.46",01/11/2019
Delivery Units,Adults and Health,Other Agencies - Third Party P,90207106,ELEANOR PALMER TRUST NO 2 A/C.,"3,430.46",01/11/2019
Delivery Units,Adults and Health,Other Agencies - Third Party P,90207107,ELEANOR PALMER TRUST NO 2 A/C.,"2,421.19",01/11/2019
Delivery Units,Adults and Health,Other Agencies - Third Party P,90207108,ELEANOR PALMER TRUST NO 2 A/C.,"2,630.35",01/11/2019
Delivery Units,Adults and Health,Other Agencies - Third Party P,90207109,ELEANOR PALMER TRUST NO 2 A/C.,"3,354.64",01/11/2019
Delivery Units,Adults and Health,Other Agencies - Third Party P,90207110,ELEANOR PALMER TRUST NO 2 A/C.,"3,321.43",01/11/2019
Delivery Units,Adults and Health,Other Agencies - Third Party P,90207111,ELEANOR PALMER TRUST NO 2 A/C.,"3,430.46",01/11/2019
Delivery Units,Adults and Health,Other Agencies - Third Party P,90213634,ELEANOR PALMER TRUST NO 2 A/C.,"3,319.80",27/11/2019
Delivery Units,Adults and Health,Other Agencies - Third Party P,90213635,ELEANOR PALMER TRUST NO 2 A/C.,"3,246.43",27/11/2019
Delivery Units,Adults and Health,Other Agencies - Third Party P,90213636,ELEANOR PALMER TRUST NO 2 A/C.,"3,246.43",27/11/2019
Delivery Units,Adults and Health,Other Agencies - Third Party P,90213637,ELEANOR PALMER TRUST NO 2 A/C.,"3,319.80",27/11/2019
Delivery Units,Adults and Health,Other Agencies - Third Party P,90213638,ELEANOR PALMER TRUST NO 2 A/C.,"2,545.50",27/11/2019
Delivery Units,Adults and Health,Other Agencies - Third Party P,90213639,ELEANOR PALMER TRUST NO 2 A/C.,"3,319.80",27/11/2019
Delivery Units,Adults and Health,Other Agencies - Third Party P,90213640,ELEANOR PALMER TRUST NO 2 A/C.,"2,545.50",27/11/2019
Delivery Units,Adults and Health,Other Agencies - Third Party P,90213641,ELEANOR PALMER TRUST NO 2 A/C.,"2,343.09",27/11/2019
Delivery Units,Adults and Health,Other Agencies - Third Party P,90213643,ELEANOR PALMER TRUST NO 2 A/C.,"3,319.80",27/11/2019
Delivery Units,Adults and Health,Other Agencies - Third Party P,90213644,ELEANOR PALMER TRUST NO 2 A/C.,"3,319.80",27/11/2019
Delivery Units,Adults and Health,Other Agencies - Third Party P,90213645,ELEANOR PALMER TRUST NO 2 A/C.,"3,319.80",27/11/2019
Delivery Units,Adults and Health,Other Agencies - Third Party P,90213646,ELEANOR PALMER TRUST NO 2 A/C.,"2,343.09",27/11/2019
Delivery Units,Adults and Health,Other Agencies - Third Party P,90213647,ELEANOR PALMER TRUST NO 2 A/C.,"2,545.50",27/11/2019
Delivery Units,Adults and Health,Other Agencies - Third Party P,90213648,ELEANOR PALMER TRUST NO 2 A/C.,"3,246.43",27/11/2019
Delivery Units,Adults and Health,Other Agencies - Third Party P,90213649,ELEANOR PALMER TRUST NO 2 A/C.,"3,214.29",27/11/2019
Delivery Units,Adults and Health,Other Agencies - Third Party P,90213650,ELEANOR PALMER TRUST NO 2 A/C.,"3,319.80",27/11/2019
Delivery Units,Adults and Health,Other Agencies - Third Party P,90207081,ELM PARK LODGE,"3,242.51",07/11/2019
Delivery Units,Adults and Health,Other Agencies - Third Party P,90207305,TORRINGTON HOMES,"3,857.14",05/11/2019
Delivery Units,Adults and Health,Other Agencies - Third Party P,90207306,TORRINGTON HOMES,"3,985.71",05/11/2019
Delivery Units,Adults and Health,Other Agencies - Third Party P,90207308,TORRINGTON HOMES,"2,249.45",05/11/2019
Delivery Units,Adults and Health,Other Agencies - Third Party P,90207309,TORRINGTON HOMES,"2,448.78",05/11/2019
Delivery Units,Adults and Health,Other Agencies - Third Party P,90207988,TORRINGTON HOMES,900.00,08/11/2019
Delivery Units,Adults and Health,Other Agencies - Third Party P,90208156,TORRINGTON HOMES,"2,350.08",11/11/2019
Delivery Units,Adults and Health,Other Agencies - Third Party P,90210321,TORRINGTON HOMES,"3,471.43",13/11/2019
Delivery Units,Adults and Health,Other Agencies - Third Party P,90212205,TORRINGTON HOMES,"2,350.08",22/11/2019
Delivery Units,Adults and Health,Other Agencies - Third Party P,90212607,TORRINGTON HOMES,"1,214.29",25/11/2019
Delivery Units,Adults and Health,Other Agencies - Third Party P,90213579,TORRINGTON HOMES,"2,369.79",27/11/2019
Delivery Units,Adults and Health,Other Agencies - Third Party P,90213580,TORRINGTON HOMES,"2,176.89",27/11/2019
Delivery Units,Adults and Health,Other Agencies - Third Party P,90211344,THE GRANGE,"2,350.08",19/11/2019
Delivery Units,Adults and Health,Other Agencies - Third Party P,90211345,THE GRANGE,"2,600.00",19/11/2019
Delivery Units,Adults and Health,Other Agencies - Third Party P,90211648,JEWISH CARE,"3,444.36",19/11/2019
Delivery Units,Adults and Health,Other Agencies - Third Party P,90211649,JEWISH CARE,"3,444.36",19/11/2019
Delivery Units,Adults and Health,Other Agencies - Third Party P,90211652,JEWISH CARE,"2,482.36",19/11/2019
Delivery Units,Adults and Health,Other Agencies - Third Party P,90211658,JEWISH CARE,"2,484.56",19/11/2019
Delivery Units,Adults and Health,Other Agencies - Third Party P,90211661,JEWISH CARE,"2,484.56",19/11/2019
Delivery Units,Adults and Health,Other Agencies - Third Party P,90211664,JEWISH CARE,"2,480.92",19/11/2019
Delivery Units,Adults and Health,Other Agencies - Third Party P,90211665,JEWISH CARE,"2,484.56",19/11/2019
Delivery Units,Adults and Health,Other Agencies - Third Party P,90211668,JEWISH CARE,"2,484.56",19/11/2019
Delivery Units,Adults and Health,Other Agencies - Third Party P,90211669,JEWISH CARE,"2,296.24",19/11/2019
Delivery Units,Adults and Health,Other Agencies - Third Party P,90211674,JEWISH CARE,"2,479.68",19/11/2019
Delivery Units,Adults and Health,Other Agencies - Third Party P,90211675,JEWISH CARE,"2,480.92",19/11/2019
Delivery Units,Adults and Health,Other Agencies - Third Party P,90211676,JEWISH CARE,"2,480.92",19/11/2019
Delivery Units,Adults and Health,Other Agencies - Third Party P,90211677,JEWISH CARE,"2,479.68",19/11/2019
Delivery Units,Adults and Health,Other Agencies - Third Party P,90211678,JEWISH CARE,"4,265.48",19/11/2019
Delivery Units,Adults and Health,Other Agencies - Third Party P,90211680,JEWISH CARE,"2,280.32",19/11/2019
Delivery Units,Adults and Health,Other Agencies - Third Party P,90211681,JEWISH CARE,"2,296.24",19/11/2019
Delivery Units,Adults and Health,Other Agencies - Third Party P,90211683,JEWISH CARE,"2,156.80",19/11/2019
Delivery Units,Adults and Health,Other Agencies - Third Party P,90211688,JEWISH CARE,"2,480.92",19/11/2019
Delivery Units,Adults and Health,Other Agencies - Third Party P,90211689,JEWISH CARE,"2,482.36",19/11/2019
Delivery Units,Adults and Health,Other Agencies - Third Party P,90211690,JEWISH CARE,"2,296.24",19/11/2019
Delivery Units,Adults and Health,Other Agencies - Third Party P,90211696,JEWISH CARE,"2,482.36",19/11/2019
Delivery Units,Adults and Health,Other Agencies - Third Party P,90211697,JEWISH CARE,"2,484.56",19/11/2019
Delivery Units,Adults and Health,Other Agencies - Third Party P,90211698,JEWISH CARE,"1,683.48",19/11/2019
Delivery Units,Adults and Health,Other Agencies - Third Party P,90211701,JEWISH CARE,"1,506.27",19/11/2019
Delivery Units,Adults and Health,Other Agencies - Third Party P,90211704,JEWISH CARE,"2,484.56",19/11/2019
Delivery Units,Adults and Health,Other Agencies - Third Party P,90211707,JEWISH CARE,"2,296.24",19/11/2019
Delivery Units,Adults and Health,Other Agencies - Third Party P,90211709,JEWISH CARE,"2,296.24",19/11/2019
Delivery Units,Adults and Health,Other Agencies - Third Party P,90211710,JEWISH CARE,"2,296.24",19/11/2019
Delivery Units,Adults and Health,Other Agencies - Third Party P,90211711,JEWISH CARE,"2,479.68",19/11/2019
Delivery Units,Adults and Health,Other Agencies - Third Party P,90211714,JEWISH CARE,"2,482.36",19/11/2019
Delivery Units,Adults and Health,Other Agencies - Third Party P,90211715,JEWISH CARE,"2,482.36",19/11/2019
Delivery Units,Adults and Health,Other Agencies - Third Party P,90211716,JEWISH CARE,"2,482.36",19/11/2019
Delivery Units,Adults and Health,Other Agencies - Third Party P,90211717,JEWISH CARE,"2,479.68",19/11/2019
Delivery Units,Adults and Health,Other Agencies - Third Party P,90211718,JEWISH CARE,"2,296.24",19/11/2019
Delivery Units,Adults and Health,Other Agencies - Third Party P,90211723,JEWISH CARE,"2,482.36",19/11/2019
Delivery Units,Adults and Health,Other Agencies - Third Party P,90211726,JEWISH CARE,"2,480.92",19/11/2019
Delivery Units,Adults and Health,Other Agencies - Third Party P,90211730,JEWISH CARE,"2,296.24",19/11/2019
Delivery Units,Adults and Health,Other Agencies - Third Party P,90211738,JEWISH CARE,"2,296.24",19/11/2019
Delivery Units,Adults and Health,Other Agencies - Third Party P,90211739,JEWISH CARE,"2,296.24",19/11/2019
Delivery Units,Adults and Health,Other Agencies - Third Party P,90211742,JEWISH CARE,-266.21,19/11/2019
Delivery Units,Adults and Health,Other Agencies - Third Party P,90211745,JEWISH CARE,"2,296.24",19/11/2019
Delivery Units,Adults and Health,Other Agencies - Third Party P,90211747,JEWISH CARE,"1,127.98",19/11/2019
Delivery Units,Adults and Health,Other Agencies - Third Party P,90211748,JEWISH CARE,"2,482.36",19/11/2019
Delivery Units,Adults and Health,Other Agencies - Third Party P,90211749,JEWISH CARE,"2,296.24",19/11/2019
Delivery Units,Adults and Health,Other Agencies - Third Party P,90211750,JEWISH CARE,"2,296.24",19/11/2019
Delivery Units,Adults and Health,Other Agencies - Third Party P,90211751,JEWISH CARE,"2,479.68",19/11/2019
Delivery Units,Adults and Health,Other Agencies - Third Party P,90211752,JEWISH CARE,"2,480.92",19/11/2019
Delivery Units,Adults and Health,Other Agencies - Third Party P,90211753,JEWISH CARE,"6,298.64",19/11/2019
Delivery Units,Adults and Health,Other Agencies - Third Party P,90211755,JEWISH CARE,"2,649.36",19/11/2019
Delivery Units,Adults and Health,Other Agencies - Third Party P,90211756,JEWISH CARE,"2,480.92",19/11/2019
Delivery Units,Adults and Health,Other Agencies - Third Party P,90211758,JEWISH CARE,"2,479.68",19/11/2019
Delivery Units,Adults and Health,Other Agencies - Third Party P,90211760,JEWISH CARE,"2,479.68",19/11/2019
Delivery Units,Adults and Health,Other Agencies - Third Party P,90211761,JEWISH CARE,"2,482.36",19/11/2019
Delivery Units,Adults and Health,Other Agencies - Third Party P,90211762,JEWISH CARE,"2,484.56",19/11/2019
Delivery Units,Adults and Health,Other Agencies - Third Party P,90211764,JEWISH CARE,"2,484.56",19/11/2019
Delivery Units,Adults and Health,Other Agencies - Third Party P,90211766,JEWISH CARE,"2,296.24",19/11/2019
Delivery Units,Adults and Health,Other Agencies - Third Party P,90211770,JEWISH CARE,"4,922.72",19/11/2019
Delivery Units,Adults and Health,Other Agencies - Third Party P,90211774,JEWISH CARE,"2,296.24",19/11/2019
Delivery Units,Adults and Health,Other Agencies - Third Party P,90211777,JEWISH CARE,"2,480.92",19/11/2019
Delivery Units,Adults and Health,Other Agencies - Third Party P,90211780,JEWISH CARE,"2,479.68",19/11/2019
Delivery Units,Adults and Health,Other Agencies - Third Party P,90211782,JEWISH CARE,"2,479.68",19/11/2019
Delivery Units,Adults and Health,Other Agencies - Third Party P,90211783,JEWISH CARE,"2,484.56",19/11/2019
Delivery Units,Adults and Health,Other Agencies - Third Party P,90211784,JEWISH CARE,"2,482.36",19/11/2019
Delivery Units,Adults and Health,Other Agencies - Third Party P,90211787,JEWISH CARE,"2,484.56",19/11/2019
Delivery Units,Adults and Health,Other Agencies - Third Party P,90211788,JEWISH CARE,"4,825.16",19/11/2019
Delivery Units,Adults and Health,Other Agencies - Third Party P,90211789,JEWISH CARE,"2,480.92",19/11/2019
Delivery Units,Adults and Health,Other Agencies - Third Party P,90211791,JEWISH CARE,"2,484.56",19/11/2019
Delivery Units,Adults and Health,Other Agencies - Third Party P,90211795,JEWISH CARE,"2,932.84",19/11/2019
Delivery Units,Adults and Health,Other Agencies - Third Party P,90211796,JEWISH CARE,792.33,19/11/2019
Delivery Units,Adults and Health,Other Agencies - Third Party P,90211797,JEWISH CARE,"3,967.96",19/11/2019
Delivery Units,Adults and Health,Other Agencies - Third Party P,90207164,CLOVELLY HOUSE RESID. HOME LTD,"2,600.00",04/11/2019
Delivery Units,Adults and Health,Other Agencies - Third Party P,90207165,CLOVELLY HOUSE RESID. HOME LTD,"3,000.00",04/11/2019
Delivery Units,Adults and Health,Other Agencies - Third Party P,90207167,CLOVELLY HOUSE RESID. HOME LTD,"2,350.08",04/11/2019
Delivery Units,Adults and Health,Other Agencies - Third Party P,90207169,CLOVELLY HOUSE RESID. HOME LTD,"2,350.08",04/11/2019
Delivery Units,Adults and Health,Other Agencies - Third Party P,90207170,CLOVELLY HOUSE RESID. HOME LTD,"3,000.00",04/11/2019
Delivery Units,Adults and Health,Other Agencies - Third Party P,90207172,CLOVELLY HOUSE RESID. HOME LTD,"2,600.00",04/11/2019
Delivery Units,Adults and Health,Other Agencies - Third Party P,90207173,CLOVELLY HOUSE RESID. HOME LTD,"3,000.00",04/11/2019
Delivery Units,Adults and Health,Other Agencies - Third Party P,90207176,CLOVELLY HOUSE RESID. HOME LTD,"2,780.00",04/11/2019
Delivery Units,Adults and Health,Other Agencies - Third Party P,90210282,CLOVELLY HOUSE RESID. HOME LTD,"3,000.00",13/11/2019
Delivery Units,Adults and Health,Other Agencies - Third Party P,90210283,CLOVELLY HOUSE RESID. HOME LTD,"2,600.00",13/11/2019
Delivery Units,Adults and Health,Other Agencies - Third Party P,90210286,CLOVELLY HOUSE RESID. HOME LTD,"3,000.00",13/11/2019
Delivery Units,Adults and Health,Other Agencies - Third Party P,90210288,CLOVELLY HOUSE RESID. HOME LTD,"3,000.00",13/11/2019
Delivery Units,Adults and Health,Other Agencies - Third Party P,90210290,CLOVELLY HOUSE RESID. HOME LTD,"2,350.08",13/11/2019
Delivery Units,Adults and Health,Other Agencies - Third Party P,90210291,CLOVELLY HOUSE RESID. HOME LTD,"2,350.08",13/11/2019
Delivery Units,Adults and Health,Other Agencies - Third Party P,90210293,CLOVELLY HOUSE RESID. HOME LTD,"2,780.00",13/11/2019
Delivery Units,Adults and Health,Other Agencies - Third Party P,90210295,CLOVELLY HOUSE RESID. HOME LTD,"2,350.08",13/11/2019
Delivery Units,Adults and Health,Other Agencies - Third Party P,90210309,CLOVELLY HOUSE RESID. HOME LTD,"2,464.28",13/11/2019
Delivery Units,Adults and Health,Other Agencies - Third Party P,90210333,CLOVELLY HOUSE RESID. HOME LTD,"3,000.00",15/11/2019
Delivery Units,Adults and Health,Other Agencies - Third Party P,90210334,CLOVELLY HOUSE RESID. HOME LTD,428.57,15/11/2019
Delivery Units,Adults and Health,Other Agencies - Third Party P,90211168,CLOVELLY HOUSE RESID. HOME LTD,-750.00,21/11/2019
Delivery Units,Adults and Health,Other Agencies - Third Party P,90213702,FINBOND LIMITED,"3,214.29",27/11/2019
Delivery Units,Adults and Health,Other Agencies - Third Party P,90210342,QUANTUM CARE LIMITED,"4,207.14",15/11/2019
Delivery Units,Adults and Health,Other Agencies - Third Party P,90210343,QUANTUM CARE LIMITED,"3,321.43",15/11/2019
Delivery Units,Adults and Health,Other Agencies - Third Party P,90213535,CEDARS NURSING HOME,"4,285.71",27/11/2019
Delivery Units,Adults and Health,Other Agencies - Third Party P,90207118,CATHERINE LODGE,"3,764.29",01/11/2019
Delivery Units,Adults and Health,Other Agencies - Third Party P,90207120,CATHERINE LODGE,"3,321.43",01/11/2019
Delivery Units,Adults and Health,Other Agencies - Third Party P,90207125,CATHERINE LODGE,"2,601.87",01/11/2019
Delivery Units,Adults and Health,Other Agencies - Third Party P,90207126,CATHERINE LODGE,"2,601.87",01/11/2019
Delivery Units,Adults and Health,Other Agencies - Third Party P,90213572,CATHERINE LODGE,"3,642.86",27/11/2019
Delivery Units,Adults and Health,Other Agencies - Third Party P,90213574,CATHERINE LODGE,"2,517.94",27/11/2019
Delivery Units,Adults and Health,Other Agencies - Third Party P,90213577,CATHERINE LODGE,"2,517.94",27/11/2019
Delivery Units,Adults and Health,Other Agencies - Third Party P,90213610,CATHERINE LODGE,"3,214.29",27/11/2019
Delivery Units,Adults and Health,Other Agencies - Third Party P,90208014,BUPA NURSING HOMES LTD - ARKLEY,-100.72,14/11/2019
Delivery Units,Adults and Health,Other Agencies - Third Party P,90208015,BUPA NURSING HOMES LTD - ARKLEY,-151.08,14/11/2019
Delivery Units,Adults and Health,Other Agencies - Third Party P,90210300,BUPA NURSING HOMES LTD - ARKLEY,"2,167.68",14/11/2019
Delivery Units,Adults and Health,Other Agencies - Third Party P,90210303,BUPA NURSING HOMES LTD - ARKLEY,"2,218.04",14/11/2019
Delivery Units,Adults and Health,Other Agencies - Third Party P,90207029,SUNRIDGE HOUSING ASSOCIATION LTD,"2,898.19",01/11/2019
Delivery Units,Adults and Health,Other Agencies - Third Party P,90207030,SUNRIDGE HOUSING ASSOCIATION LTD,"2,989.58",01/11/2019
Delivery Units,Adults and Health,Other Agencies - Third Party P,90213517,SUNRIDGE HOUSING ASSOCIATION LTD,"2,804.70",27/11/2019
Delivery Units,Adults and Health,Other Agencies - Third Party P,90213518,SUNRIDGE HOUSING ASSOCIATION LTD,"2,893.14",27/11/2019
Delivery Units,Adults and Health,Other Agencies - Third Party P,90207143,NAZARETH HOUSE,"2,186.88",04/11/2019
Delivery Units,Adults and Health,Other Agencies - Third Party P,90207342,NAZARETH HOUSE,"2,186.88",06/11/2019
Delivery Units,Adults and Health,Other Agencies - Third Party P,90207344,NAZARETH HOUSE,"2,186.88",06/11/2019
Delivery Units,Adults and Health,Other Agencies - Third Party P,90207345,NAZARETH HOUSE,"2,144.00",06/11/2019
Delivery Units,Adults and Health,Other Agencies - Third Party P,90207346,NAZARETH HOUSE,"2,450.29",06/11/2019
Delivery Units,Adults and Health,Other Agencies - Third Party P,90207979,NAZARETH HOUSE,"2,350.08",08/11/2019
Delivery Units,Adults and Health,Other Agencies - Third Party P,90207980,NAZARETH HOUSE,"2,350.08",08/11/2019
Delivery Units,Adults and Health,Other Agencies - Third Party P,90207987,NAZARETH HOUSE,"2,350.08",08/11/2019
Delivery Units,Adults and Health,Other Agencies - Third Party P,90208155,NAZARETH HOUSE,"2,186.88",11/11/2019
Delivery Units,Adults and Health,Other Agencies - Third Party P,90210009,NAZARETH HOUSE,"2,350.08",12/11/2019
Delivery Units,Adults and Health,Other Agencies - Third Party P,90210328,NAZARETH HOUSE,"2,350.08",15/11/2019
Delivery Units,Adults and Health,Other Agencies - Third Party P,90210329,NAZARETH HOUSE,"2,350.08",15/11/2019
Delivery Units,Adults and Health,Other Agencies - Third Party P,90211627,FRIARY LODGE,"3,935.71",19/11/2019
Delivery Units,Adults and Health,Other Agencies - Third Party P,90212717,FRIARY LODGE,"3,321.43",27/11/2019
Delivery Units,Adults and Health,Other Agencies - Third Party P,90212719,FRIARY LODGE,"1,928.57",27/11/2019
Delivery Units,Adults and Health,Other Agencies - Third Party P,90209967,THE WOODSIDE HOME,"2,186.88",12/11/2019
Delivery Units,Adults and Health,Other Agencies - Third Party P,90209968,THE WOODSIDE HOME,"2,186.88",12/11/2019
Delivery Units,Adults and Health,Other Agencies - Third Party P,90209970,THE WOODSIDE HOME,"2,186.88",12/11/2019
Delivery Units,Adults and Health,Other Agencies - Third Party P,90209971,THE WOODSIDE HOME,"2,186.88",12/11/2019
Delivery Units,Adults and Health,Other Agencies - Third Party P,90213712,WESTMINSTER HEALTH CARE LTD,"3,619.07",27/11/2019
Delivery Units,Adults and Health,Other Agencies - Third Party P,90207985,METHODIST HOMES FOR THE AGED,"2,631.76",08/11/2019
Delivery Units,Adults and Health,Other Agencies - Third Party P,90211769,HENRY NIHILL HOUSE,"2,186.88",19/11/2019
Delivery Units,Adults and Health,Other Agencies - Third Party P,90211793,HENRY NIHILL HOUSE,78.48,19/11/2019
Delivery Units,Adults and Health,Other Agencies - Third Party P,90212728,SYDMAR LODGE,"2,469.42",25/11/2019
Delivery Units,Adults and Health,Other Agencies - Third Party P,90212729,SYDMAR LODGE,"11,932.14",25/11/2019
Delivery Units,Adults and Health,Other Agencies - Third Party P,90212731,SYDMAR LODGE,"2,506.26",25/11/2019
Delivery Units,Adults and Health,Other Agencies - Third Party P,90212733,SYDMAR LODGE,"20,357.14",25/11/2019
Delivery Units,Adults and Health,Other Agencies - Third Party P,90212734,SYDMAR LODGE,"2,506.26",25/11/2019
Delivery Units,Adults and Health,Other Agencies - Third Party P,90212735,SYDMAR LODGE,"17,914.29",25/11/2019
Delivery Units,Adults and Health,Other Agencies - Third Party P,90212877,SYDMAR LODGE,"3,487.86",26/11/2019
Delivery Units,Adults and Health,Other Agencies - Third Party P,90213725,SYDMAR LODGE,"2,389.76",28/11/2019
Delivery Units,Adults and Health,Other Agencies - Third Party P,90213726,SYDMAR LODGE,"2,425.41",28/11/2019
Delivery Units,Adults and Health,Other Agencies - Third Party P,90213728,SYDMAR LODGE,"2,425.41",28/11/2019
Delivery Units,Adults and Health,Other Agencies - Third Party P,90211651,THE LIMES RESIDENTIAL HOME,"2,186.88",19/11/2019
Delivery Units,Adults and Health,Other Agencies - Third Party P,90211662,THE LIMES RESIDENTIAL HOME,"2,350.08",19/11/2019
Delivery Units,Adults and Health,Other Agencies - Third Party P,90211671,THE LIMES RESIDENTIAL HOME,"3,000.00",19/11/2019
Delivery Units,Adults and Health,Other Agencies - Third Party P,90211672,THE LIMES RESIDENTIAL HOME,"2,304.00",19/11/2019
Delivery Units,Adults and Health,Other Agencies - Third Party P,90211682,THE LIMES RESIDENTIAL HOME,"2,350.08",19/11/2019
Delivery Units,Adults and Health,Other Agencies - Third Party P,90211685,THE LIMES RESIDENTIAL HOME,"2,350.08",19/11/2019
Delivery Units,Adults and Health,Other Agencies - Third Party P,90211686,THE LIMES RESIDENTIAL HOME,"2,350.08",19/11/2019
Delivery Units,Adults and Health,Other Agencies - Third Party P,90211694,THE LIMES RESIDENTIAL HOME,"2,186.88",19/11/2019
Delivery Units,Adults and Health,Other Agencies - Third Party P,90211695,THE LIMES RESIDENTIAL HOME,"2,350.08",19/11/2019
Delivery Units,Adults and Health,Other Agencies - Third Party P,90211720,THE LIMES RESIDENTIAL HOME,"2,350.08",19/11/2019
Delivery Units,Adults and Health,Other Agencies - Third Party P,90211725,THE LIMES RESIDENTIAL HOME,"2,350.08",19/11/2019
Delivery Units,Adults and Health,Other Agencies - Third Party P,90211759,THE LIMES RESIDENTIAL HOME,"2,350.08",19/11/2019
Delivery Units,Adults and Health,Other Agencies - Third Party P,90211775,THE LIMES RESIDENTIAL HOME,"2,304.00",19/11/2019
Delivery Units,Adults and Health,Other Agencies - Third Party P,90211781,THE LIMES RESIDENTIAL HOME,"2,350.08",19/11/2019
Delivery Units,Adults and Health,Other Agencies - Third Party P,90211794,THE LIMES RESIDENTIAL HOME,"-2,250.00",19/11/2019
Delivery Units,Adults and Health,Other Agencies - Third Party P,90207380,SCIMITAR CARE HOTELS PLC,"3,985.71",06/11/2019
Delivery Units,Adults and Health,Other Agencies - Third Party P,90207381,SCIMITAR CARE HOTELS PLC,"3,764.29",06/11/2019
Delivery Units,Adults and Health,Other Agencies - Third Party P,90207382,SCIMITAR CARE HOTELS PLC,"4,207.14",06/11/2019
Delivery Units,Adults and Health,Other Agencies - Third Party P,90213631,SCIMITAR CARE HOTELS PLC,"3,642.86",27/11/2019
Delivery Units,Adults and Health,Other Agencies - Third Party P,90213632,SCIMITAR CARE HOTELS PLC,"4,071.43",27/11/2019
Delivery Units,Adults and Health,Other Agencies - Third Party P,90213633,SCIMITAR CARE HOTELS PLC,"3,857.14",27/11/2019
Delivery Units,Adults and Health,Other Agencies - Third Party P,90213734,MEERA NURSING HOME LIMITED,"3,428.57",28/11/2019
Delivery Units,Adults and Health,Other Agencies - Third Party P,90211343,GREEN TREES,"3,200.00",19/11/2019
Delivery Units,Adults and Health,Other Agencies - Third Party P,90207962,BUPA CARE HOMES,"2,464.59",08/11/2019
Delivery Units,Adults and Health,Other Agencies - Third Party P,90210307,BUPA CARE HOMES,"2,589.03",13/11/2019
Delivery Units,Adults and Health,Other Agencies - Third Party P,90209999,ANASTASIA LODGE,"2,800.00",12/11/2019
Delivery Units,Adults and Health,Other Agencies - Third Party P,90210000,ANASTASIA LODGE,"3,600.00",12/11/2019
Delivery Units,Adults and Health,Other Agencies - Third Party P,90207994,HILTON LODGE LTD.,"2,880.00",08/11/2019
Delivery Units,Adults and Health,Other Agencies - Third Party P,90205094,FOUR SEASONS HEALTH CARE,"2,424.00",01/11/2019
Delivery Units,Adults and Health,Other Agencies - Third Party P,90211179,FOUR SEASONS HEALTH CARE,"2,424.00",18/11/2019
Delivery Units,Adults and Health,Other Agencies - Third Party P,90207282,VENTRY RESIDENTIAL CARE LTD,"2,517.94",05/11/2019
Delivery Units,Adults and Health,Other Agencies - Third Party P,90207283,VENTRY RESIDENTIAL CARE LTD,"3,000.00",05/11/2019
Delivery Units,Adults and Health,Other Agencies - Third Party P,90211802,VENTRY RESIDENTIAL CARE LTD,"2,601.87",20/11/2019
Delivery Units,Adults and Health,Other Agencies - Third Party P,90211805,VENTRY RESIDENTIAL CARE LTD,"1,821.43",20/11/2019
Delivery Units,Adults and Health,Other Agencies - Third Party P,90211806,VENTRY RESIDENTIAL CARE LTD,"3,100.00",20/11/2019
Delivery Units,Adults and Health,Other Agencies - Third Party P,90207014,B & M CARE,"2,550.86",01/11/2019
Delivery Units,Adults and Health,Other Agencies - Third Party P,90207188,SAGE NURSING HOME,"2,657.14",07/11/2019
Delivery Units,Adults and Health,Other Agencies - Third Party P,90207191,SAGE NURSING HOME,"2,679.20",07/11/2019
Delivery Units,Adults and Health,Other Agencies - Third Party P,90207193,SAGE NURSING HOME,"2,421.19",07/11/2019
Delivery Units,Adults and Health,Other Agencies - Third Party P,90207019,EASTSIDE HOUSE RESIDENTIAL CARE HOM,"3,500.00",01/11/2019
Delivery Units,Adults and Health,Other Agencies - Third Party P,90209965,EASTSIDE HOUSE RESIDENTIAL CARE HOM,"3,500.00",12/11/2019
Delivery Units,Adults and Health,Other Agencies - Third Party P,90213687,APPLE TREE COURT CARE HOME,"3,642.86",27/11/2019
Delivery Units,Adults and Health,Other Agencies - Third Party P,90213955,TENTERDEN HOUSE,"3,829.84",28/11/2019
Delivery Units,Adults and Health,Other Agencies - Third Party P,90212726,SWANBOROUGH HOUSE,"3,988.33",25/11/2019
Delivery Units,Adults and Health,Other Agencies - Third Party P,90212727,SWANBOROUGH HOUSE,"4,121.27",25/11/2019
Delivery Units,Adults and Health,Other Agencies - Third Party P,90212748,SWANBOROUGH HOUSE,"4,121.27",25/11/2019
Delivery Units,Adults and Health,Other Agencies - Third Party P,90213673,SWANBOROUGH HOUSE,"3,988.33",27/11/2019
Delivery Units,Adults and Health,Other Agencies - Third Party P,90207272,Ashfields Residential Care Home,"2,517.94",05/11/2019
Delivery Units,Adults and Health,Other Agencies - Third Party P,90207275,Ashfields Residential Care Home,"2,343.09",05/11/2019
Delivery Units,Adults and Health,Other Agencies - Third Party P,90212720,Ashfields Residential Care Home,"2,421.19",25/11/2019
Delivery Units,Adults and Health,Other Agencies - Third Party P,90212722,Ashfields Residential Care Home,"2,601.87",25/11/2019
Delivery Units,Adults and Health,Other Agencies - Third Party P,90210002,AUTUMN GARDENS,"3,160.00",12/11/2019
Delivery Units,Adults and Health,Other Agencies - Third Party P,90210004,AUTUMN GARDENS,"2,880.00",12/11/2019
Delivery Units,Adults and Health,Other Agencies - Third Party P,90210008,AUTUMN GARDENS,"3,560.00",12/11/2019
Delivery Units,Adults and Health,Other Agencies - Third Party P,90207138,THE CHRISTIAN CARE TRUST,"2,373.15",01/11/2019
Delivery Units,Adults and Health,Other Agencies - Third Party P,90207139,THE CHRISTIAN CARE TRUST,"2,350.08",01/11/2019
Delivery Units,Adults and Health,Other Agencies - Third Party P,90207140,THE CHRISTIAN CARE TRUST,"2,350.08",01/11/2019
Delivery Units,Adults and Health,Other Agencies - Third Party P,90207141,THE CHRISTIAN CARE TRUST,"2,350.08",01/11/2019
Delivery Units,Adults and Health,Other Agencies - Third Party P,90207142,THE CHRISTIAN CARE TRUST,"2,350.08",01/11/2019
Delivery Units,Adults and Health,Other Agencies - Third Party P,90213968,THE CHRISTIAN CARE TRUST,"2,350.08",28/11/2019
Delivery Units,Adults and Health,Other Agencies - Third Party P,90213599,ABBEY RAVENSCROFT PARK NURSING HOME,"3,214.29",27/11/2019
Delivery Units,Adults and Health,Other Agencies - Third Party P,90213600,ABBEY RAVENSCROFT PARK NURSING HOME,"3,214.29",27/11/2019
Delivery Units,Adults and Health,Other Agencies - Third Party P,90206802,CARLTON COURT (TLC GROUP),"2,249.45",01/11/2019
Delivery Units,Adults and Health,Other Agencies - Third Party P,90213784,CARLTON COURT (TLC GROUP),"2,176.89",28/11/2019
Delivery Units,Adults and Health,Other Agencies - Third Party P,90207383,THE BARNETGROUP LIMITED,"2,144.00",07/11/2019
Delivery Units,Adults and Health,Other Agencies - Third Party P,90207384,THE BARNETGROUP LIMITED,"2,144.00",07/11/2019
Delivery Units,Adults and Health,Other Agencies - Third Party P,90207385,THE BARNETGROUP LIMITED,"2,304.00",07/11/2019
Delivery Units,Adults and Health,Other Agencies - Third Party P,90207386,THE BARNETGROUP LIMITED,"2,144.00",07/11/2019
Delivery Units,Adults and Health,Other Agencies - Third Party P,90207387,THE BARNETGROUP LIMITED,"2,304.00",07/11/2019
Delivery Units,Adults and Health,Other Agencies - Third Party P,90207388,THE BARNETGROUP LIMITED,"2,144.00",07/11/2019
Delivery Units,Adults and Health,Other Agencies - Third Party P,90207389,THE BARNETGROUP LIMITED,"2,144.00",07/11/2019
Delivery Units,Adults and Health,Other Agencies - Third Party P,90207390,THE BARNETGROUP LIMITED,"2,144.00",07/11/2019
Delivery Units,Adults and Health,Other Agencies - Third Party P,90207391,THE BARNETGROUP LIMITED,"2,144.00",07/11/2019
Delivery Units,Adults and Health,Other Agencies - Third Party P,90207392,THE BARNETGROUP LIMITED,"2,144.00",07/11/2019
Delivery Units,Adults and Health,Other Agencies - Third Party P,90207393,THE BARNETGROUP LIMITED,"2,144.00",07/11/2019
Delivery Units,Adults and Health,Other Agencies - Third Party P,90207394,THE BARNETGROUP LIMITED,"2,304.00",07/11/2019
Delivery Units,Adults and Health,Other Agencies - Third Party P,90207395,THE BARNETGROUP LIMITED,"1,974.86",07/11/2019
Delivery Units,Adults and Health,Other Agencies - Third Party P,90207396,THE BARNETGROUP LIMITED,"2,144.00",07/11/2019
Delivery Units,Adults and Health,Other Agencies - Third Party P,90207397,THE BARNETGROUP LIMITED,"2,304.00",07/11/2019
Delivery Units,Adults and Health,Other Agencies - Third Party P,90207398,THE BARNETGROUP LIMITED,"2,304.00",07/11/2019
Delivery Units,Adults and Health,Other Agencies - Third Party P,90207399,THE BARNETGROUP LIMITED,"2,694.00",07/11/2019
Delivery Units,Adults and Health,Other Agencies - Third Party P,90207400,THE BARNETGROUP LIMITED,"37,500.45",07/11/2019
Delivery Units,Adults and Health,Other Agencies - Third Party P,90207402,THE BARNETGROUP LIMITED,"2,144.00",07/11/2019
Delivery Units,Adults and Health,Other Agencies - Third Party P,90207403,THE BARNETGROUP LIMITED,"2,144.00",07/11/2019
Delivery Units,Adults and Health,Other Agencies - Third Party P,90207405,THE BARNETGROUP LIMITED,"2,304.00",07/11/2019
Delivery Units,Adults and Health,Other Agencies - Third Party P,90207407,THE BARNETGROUP LIMITED,"2,144.00",07/11/2019
Delivery Units,Adults and Health,Other Agencies - Third Party P,90207408,THE BARNETGROUP LIMITED,"2,144.00",07/11/2019
Delivery Units,Adults and Health,Other Agencies - Third Party P,90207409,THE BARNETGROUP LIMITED,"2,144.00",07/11/2019
Delivery Units,Adults and Health,Other Agencies - Third Party P,90207410,THE BARNETGROUP LIMITED,"2,144.00",07/11/2019
Delivery Units,Adults and Health,Other Agencies - Third Party P,90207412,THE BARNETGROUP LIMITED,"2,144.00",07/11/2019
Delivery Units,Adults and Health,Other Agencies - Third Party P,90207413,THE BARNETGROUP LIMITED,"2,057.14",07/11/2019
Delivery Units,Adults and Health,Other Agencies - Third Party P,90207414,THE BARNETGROUP LIMITED,306.29,07/11/2019
Delivery Units,Adults and Health,Other Agencies - Third Party P,90207415,THE BARNETGROUP LIMITED,"2,144.00",07/11/2019
Delivery Units,Adults and Health,Other Agencies - Third Party P,90207416,THE BARNETGROUP LIMITED,"2,144.00",07/11/2019
Delivery Units,Adults and Health,Other Agencies - Third Party P,90207418,THE BARNETGROUP LIMITED,"4,080.00",07/11/2019
Delivery Units,Adults and Health,Other Agencies - Third Party P,90207419,THE BARNETGROUP LIMITED,"2,304.00",07/11/2019
Delivery Units,Adults and Health,Other Agencies - Third Party P,90207420,THE BARNETGROUP LIMITED,"2,144.00",07/11/2019
Delivery Units,Adults and Health,Other Agencies - Third Party P,90207423,THE BARNETGROUP LIMITED,"2,304.00",07/11/2019
Delivery Units,Adults and Health,Other Agencies - Third Party P,90207424,THE BARNETGROUP LIMITED,"2,304.00",07/11/2019
Delivery Units,Adults and Health,Other Agencies - Third Party P,90207425,THE BARNETGROUP LIMITED,"2,144.00",07/11/2019
Delivery Units,Adults and Health,Other Agencies - Third Party P,90207426,THE BARNETGROUP LIMITED,"-2,057.14",07/11/2019
Delivery Units,Adults and Health,Other Agencies - Third Party P,90207427,THE BARNETGROUP LIMITED,"2,144.00",07/11/2019
Delivery Units,Adults and Health,Other Agencies - Third Party P,90207428,THE BARNETGROUP LIMITED,"2,144.00",07/11/2019
Delivery Units,Adults and Health,Other Agencies - Third Party P,90207429,THE BARNETGROUP LIMITED,"2,144.00",07/11/2019
Delivery Units,Adults and Health,Other Agencies - Third Party P,90207430,THE BARNETGROUP LIMITED,"2,144.00",07/11/2019
Delivery Units,Adults and Health,Other Agencies - Third Party P,90207432,THE BARNETGROUP LIMITED,"4,062.40",07/11/2019
Delivery Units,Adults and Health,Other Agencies - Third Party P,90207433,THE BARNETGROUP LIMITED,"2,144.00",07/11/2019
Delivery Units,Adults and Health,Other Agencies - Third Party P,90207434,THE BARNETGROUP LIMITED,"2,144.00",07/11/2019
Delivery Units,Adults and Health,Other Agencies - Third Party P,90207435,THE BARNETGROUP LIMITED,"2,144.00",07/11/2019
Delivery Units,Adults and Health,Other Agencies - Third Party P,90207436,THE BARNETGROUP LIMITED,"2,304.00",07/11/2019
Delivery Units,Adults and Health,Other Agencies - Third Party P,90207437,THE BARNETGROUP LIMITED,"2,304.00",07/11/2019
Delivery Units,Adults and Health,Other Agencies - Third Party P,90207438,THE BARNETGROUP LIMITED,"2,144.00",07/11/2019
Delivery Units,Adults and Health,Other Agencies - Third Party P,90207439,THE BARNETGROUP LIMITED,"2,144.00",07/11/2019
Delivery Units,Adults and Health,Other Agencies - Third Party P,90207440,THE BARNETGROUP LIMITED,"2,304.00",07/11/2019
Delivery Units,Adults and Health,Other Agencies - Third Party P,90207442,THE BARNETGROUP LIMITED,"2,304.00",07/11/2019
Delivery Units,Adults and Health,Other Agencies - Third Party P,90207443,THE BARNETGROUP LIMITED,"2,304.00",07/11/2019
Delivery Units,Adults and Health,Other Agencies - Third Party P,90207444,THE BARNETGROUP LIMITED,"2,304.00",07/11/2019
Delivery Units,Adults and Health,Other Agencies - Third Party P,90207445,THE BARNETGROUP LIMITED,"2,144.00",07/11/2019
Delivery Units,Adults and Health,Other Agencies - Third Party P,90207446,THE BARNETGROUP LIMITED,"2,304.00",07/11/2019
Delivery Units,Adults and Health,Other Agencies - Third Party P,90207447,THE BARNETGROUP LIMITED,"2,144.00",07/11/2019
Delivery Units,Adults and Health,Other Agencies - Third Party P,90207448,THE BARNETGROUP LIMITED,"2,304.00",07/11/2019
Delivery Units,Adults and Health,Other Agencies - Third Party P,90207449,THE BARNETGROUP LIMITED,"2,304.00",07/11/2019
Delivery Units,Adults and Health,Other Agencies - Third Party P,90207451,THE BARNETGROUP LIMITED,"2,304.00",07/11/2019
Delivery Units,Adults and Health,Other Agencies - Third Party P,90207452,THE BARNETGROUP LIMITED,"2,304.00",07/11/2019
Delivery Units,Adults and Health,Other Agencies - Third Party P,90207453,THE BARNETGROUP LIMITED,"2,304.00",07/11/2019
Delivery Units,Adults and Health,Other Agencies - Third Party P,90207454,THE BARNETGROUP LIMITED,"2,304.00",07/11/2019
Delivery Units,Adults and Health,Other Agencies - Third Party P,90207455,THE BARNETGROUP LIMITED,"2,304.00",07/11/2019
Delivery Units,Adults and Health,Other Agencies - Third Party P,90207456,THE BARNETGROUP LIMITED,"2,304.00",07/11/2019
Delivery Units,Adults and Health,Other Agencies - Third Party P,90207457,THE BARNETGROUP LIMITED,"2,144.00",07/11/2019
Delivery Units,Adults and Health,Other Agencies - Third Party P,90207458,THE BARNETGROUP LIMITED,"2,144.00",07/11/2019
Delivery Units,Adults and Health,Other Agencies - Third Party P,90207459,THE BARNETGROUP LIMITED,"2,144.00",07/11/2019
Delivery Units,Adults and Health,Other Agencies - Third Party P,90207460,THE BARNETGROUP LIMITED,"2,304.00",07/11/2019
Delivery Units,Adults and Health,Other Agencies - Third Party P,90207461,THE BARNETGROUP LIMITED,"2,144.00",07/11/2019
Delivery Units,Adults and Health,Other Agencies - Third Party P,90207462,THE BARNETGROUP LIMITED,"2,304.00",07/11/2019
Delivery Units,Adults and Health,Other Agencies - Third Party P,90207464,THE BARNETGROUP LIMITED,"3,000.00",07/11/2019
Delivery Units,Adults and Health,Other Agencies - Third Party P,90207465,THE BARNETGROUP LIMITED,0.04,07/11/2019
Delivery Units,Adults and Health,Other Agencies - Third Party P,90207466,THE BARNETGROUP LIMITED,"2,304.00",07/11/2019
Delivery Units,Adults and Health,Other Agencies - Third Party P,90207469,THE BARNETGROUP LIMITED,"2,144.00",07/11/2019
Delivery Units,Adults and Health,Other Agencies - Third Party P,90207470,THE BARNETGROUP LIMITED,"2,144.00",07/11/2019
Delivery Units,Adults and Health,Other Agencies - Third Party P,90207471,THE BARNETGROUP LIMITED,"2,304.00",07/11/2019
Delivery Units,Adults and Health,Other Agencies - Third Party P,90207472,THE BARNETGROUP LIMITED,"2,304.00",07/11/2019
Delivery Units,Adults and Health,Other Agencies - Third Party P,90207473,THE BARNETGROUP LIMITED,"2,304.00",07/11/2019
Delivery Units,Adults and Health,Other Agencies - Third Party P,90207474,THE BARNETGROUP LIMITED,"2,144.00",07/11/2019
Delivery Units,Adults and Health,Other Agencies - Third Party P,90207475,THE BARNETGROUP LIMITED,"2,304.00",07/11/2019
Delivery Units,Adults and Health,Other Agencies - Third Party P,90207476,THE BARNETGROUP LIMITED,"2,304.00",07/11/2019
Delivery Units,Adults and Health,Other Agencies - Third Party P,90207477,THE BARNETGROUP LIMITED,"3,567.52",07/11/2019
Delivery Units,Adults and Health,Other Agencies - Third Party P,90207479,THE BARNETGROUP LIMITED,0.04,07/11/2019
Delivery Units,Adults and Health,Other Agencies - Third Party P,90207480,THE BARNETGROUP LIMITED,"4,058.29",07/11/2019
Delivery Units,Adults and Health,Other Agencies - Third Party P,90207481,THE BARNETGROUP LIMITED,"4,517.71",07/11/2019
Delivery Units,Adults and Health,Other Agencies - Third Party P,90207314,BIRCHWOOD GRANGE CARE HOME,"2,657.14",05/11/2019
Delivery Units,Adults and Health,Other Agencies - Third Party P,90212609,BIRCHWOOD GRANGE CARE HOME,"2,657.14",25/11/2019
Delivery Units,Adults and Health,Other Agencies - Third Party P,90212610,BIRCHWOOD GRANGE CARE HOME,"2,571.43",25/11/2019
Delivery Units,Adults and Health,Other Agencies - Third Party P,90213619,BIRCHWOOD GRANGE CARE HOME,"2,571.43",27/11/2019
Delivery Units,Adults and Health,Other Agencies - Third Party P,90207983,AARON COURT CARE HOME,"2,144.91",08/11/2019
Delivery Units,Adults and Health,Other Agencies - Third Party P,90211798,AARON COURT CARE HOME,"2,216.41",20/11/2019
Delivery Units,Adults and Health,Other Agencies - Third Party P,90207636,NHS BARNET CCG,"15,590.64",08/11/2019
Delivery Units,Adults and Health,Other Agencies - Third Party P,90213536,Belmont Lodge Care Centre,"2,340.04",27/11/2019
Delivery Units,Adults and Health,Other Agencies - Third Party P,90207090,Karuna Manor,"4,114.14",01/11/2019
Delivery Units,Adults and Health,Other Agencies - Third Party P,90207091,Karuna Manor,"4,207.14",01/11/2019
Delivery Units,Adults and Health,Other Agencies - Third Party P,90210315,Karuna Manor,"-1,327.14",26/11/2019
Delivery Units,Adults and Health,Other Agencies - Third Party P,90212906,Karuna Manor,"4,071.43",26/11/2019
Delivery Units,Adults and Health,Other Agencies - Third Party P,90212907,Karuna Manor,"3,981.43",26/11/2019
Delivery Units,Adults and Health,Other Agencies - Third Party P,90213959,Karuna Manor,"4,071.43",28/11/2019
Delivery Units,Adults and Health,Other Agencies - Third Party P,90212608,3A Care (London) Ltd,"24,134.29",28/11/2019
Delivery Units,Adults and Health,Other Agencies - Third Party P,90207299,The Windmill Care Home,"1,812.40",05/11/2019
Delivery Units,Adults and Health,Other Agencies - Third Party P,90207358,The Windmill Care Home,"1,872.40",06/11/2019
Delivery Units,Adults and Health,Other Agencies - Third Party P,90207020,Sonnet Care Homes (Essex) Ltd,"4,871.43",01/11/2019
Delivery Units,Adults and Health,Other Agencies - Third Party P,90213625,Sonnet Care Homes (Essex) Ltd,"4,714.29",27/11/2019
Delivery Units,Adults and Health,Other Agencies - Third Party P,90207315,GCH (Hertfordshire) Ltd T/A,"2,414.68",05/11/2019
Delivery Units,Adults and Health,Other Agencies - Third Party P,90212206,GCH (Hertfordshire) Ltd T/A,"2,414.68",22/11/2019
Delivery Units,Adults and Health,Other Agencies - Third Party P,90213508,Heathcote Care Home,"4,178.40",27/11/2019
Delivery Units,Adults and Health,Other Agencies - Third Party P,90207317,GCH (North London) t/a The Tudors,"2,300.00",05/11/2019
Delivery Units,Adults and Health,Other Agencies - Third Party P,90211166,GCH (North London) t/a The Tudors,"2,300.00",18/11/2019
Delivery Units,Adults and Health,Other Agencies - Third Party P,90213661,Wilton House Ltd,"2,636.57",27/11/2019
Delivery Units,Adults and Health,Other Agencies - Third Party P,90213662,Wilton House Ltd,"6,327.77",27/11/2019
Delivery Units,Adults and Health,Other Agencies - Third Party P,90207012,B & M Care (The Radley Care Home),"3,985.71",01/11/2019
Delivery Units,Adults and Health,Other Agencies - Third Party P,90207036,South Coast Care Homes Ltd,"2,568.57",01/11/2019
Delivery Units,Adults and Health,Other Agencies - Third Party P,90213655,South Coast Care Homes Ltd,"2,485.71",27/11/2019
Delivery Units,Adults and Health,Other Agencies - Third Party P,90211800,HC-One Oval LTD,"2,178.32",20/11/2019
Delivery Units,Adults and Health,Other Agencies - Third Party P,90211801,HC-One Oval LTD,"2,178.32",20/11/2019
Delivery Units,Adults and Health,Other Agencies - Third Party P,90207051,Amron Premier Care,"2,618.44",01/11/2019
Delivery Units,Adults and Health,Other Agencies - Third Party P,90213753,Amron Premier Care,"2,533.97",28/11/2019
Delivery Units,Adults and Health,Other Agencies - Third Party P,90207089,Wordsworth House Care Home,"2,657.14",01/11/2019
Delivery Units,Adults and Health,Other Agencies - Third Party P,90213622,Wordsworth House Care Home,"2,571.43",27/11/2019
Delivery Units,Adults and Health,Other Agencies - Third Party P,90207155,Jackson Care Limited,"5,314.29",04/11/2019
Delivery Units,Adults and Health,Other Agencies - Third Party P,90213510,Jackson Care Limited,"5,142.86",27/11/2019
Delivery Units,Adults and Health,Other Agencies - Third Party P,90207996,A.H.J. David Ltd t/a Florence House,"3,200.00",08/11/2019
Delivery Units,Adults and Health,Direct Transfer Payments to So,90209199,REDACTED - PERSONAL DATA,"2,931.20",12/11/2019
Delivery Units,Adults and Health,Direct Transfer Payments to So,90208991,REDACTED - PERSONAL DATA,"3,846.40",12/11/2019
Delivery Units,Adults and Health,Direct Transfer Payments to So,90209795,REDACTED - PERSONAL DATA,"6,162.24",12/11/2019
Delivery Units,Adults and Health,Direct Transfer Payments to So,90208804,REDACTED - PERSONAL DATA,"3,834.44",12/11/2019
Delivery Units,Adults and Health,Direct Transfer Payments to So,90209183,REDACTED - PERSONAL DATA,240.00,12/11/2019
Delivery Units,Adults and Health,Direct Transfer Payments to So,90208748,REDACTED - PERSONAL DATA,295.68,12/11/2019
Delivery Units,Adults and Health,Direct Transfer Payments to So,90209492,REDACTED - PERSONAL DATA,"1,560.72",12/11/2019
Delivery Units,Adults and Health,Direct Transfer Payments to So,90208680,REDACTED - PERSONAL DATA,961.60,12/11/2019
Delivery Units,Adults and Health,Direct Transfer Payments to So,90209296,REDACTED - PERSONAL DATA,144.24,12/11/2019
Delivery Units,Adults and Health,Direct Transfer Payments to So,90208728,REDACTED - PERSONAL DATA,"2,638.76",12/11/2019
Delivery Units,Adults and Health,Direct Transfer Payments to So,90208962,REDACTED - PERSONAL DATA,"1,185.32",12/11/2019
Delivery Units,Adults and Health,Direct Transfer Payments to So,90208981,REDACTED - PERSONAL DATA,795.56,12/11/2019
Delivery Units,Adults and Health,Direct Transfer Payments to So,90208805,REDACTED - PERSONAL DATA,852.76,12/11/2019
Delivery Units,Adults and Health,Direct Transfer Payments to So,90209219,REDACTED - PERSONAL DATA,889.48,12/11/2019
Delivery Units,Adults and Health,Direct Transfer Payments to So,90208734,REDACTED - PERSONAL DATA,998.00,12/11/2019
Delivery Units,Adults and Health,Direct Transfer Payments to So,90208861,REDACTED - PERSONAL DATA,"2,703.12",12/11/2019
Delivery Units,Adults and Health,Direct Transfer Payments to So,90209566,REDACTED - PERSONAL DATA,349.12,12/11/2019
Delivery Units,Adults and Health,Direct Transfer Payments to So,90209379,REDACTED - PERSONAL DATA,377.88,12/11/2019
Delivery Units,Adults and Health,Direct Transfer Payments to So,90208937,REDACTED - PERSONAL DATA,913.52,12/11/2019
Delivery Units,Adults and Health,Direct Transfer Payments to So,90208839,REDACTED - PERSONAL DATA,"1,143.16",12/11/2019
Delivery Units,Adults and Health,Direct Transfer Payments to So,90209254,REDACTED - PERSONAL DATA,"2,933.80",12/11/2019
Delivery Units,Adults and Health,Direct Transfer Payments to So,90208775,REDACTED - PERSONAL DATA,"1,238.92",12/11/2019
Delivery Units,Adults and Health,Direct Transfer Payments to So,90208999,REDACTED - PERSONAL DATA,"1,545.48",12/11/2019
Delivery Units,Adults and Health,Direct Transfer Payments to So,90208714,REDACTED - PERSONAL DATA,"1,699.72",12/11/2019
Delivery Units,Adults and Health,Direct Transfer Payments to So,90210357,REDACTED - PERSONAL DATA,"1,175.56",15/11/2019
Delivery Units,Adults and Health,Direct Transfer Payments to So,90209569,REDACTED - PERSONAL DATA,"1,260.00",12/11/2019
Delivery Units,Adults and Health,Direct Transfer Payments to So,90209454,REDACTED - PERSONAL DATA,640.00,12/11/2019
Delivery Units,Adults and Health,Direct Transfer Payments to So,90209262,REDACTED - PERSONAL DATA,"1,029.76",12/11/2019
Delivery Units,Adults and Health,Direct Transfer Payments to So,90209008,REDACTED - PERSONAL DATA,351.52,12/11/2019
Delivery Units,Adults and Health,Direct Transfer Payments to So,90209537,REDACTED - PERSONAL DATA,"1,353.04",12/11/2019
Delivery Units,Adults and Health,Direct Transfer Payments to So,90209240,REDACTED - PERSONAL DATA,490.04,12/11/2019
Delivery Units,Adults and Health,Direct Transfer Payments to So,90209129,REDACTED - PERSONAL DATA,975.36,12/11/2019
Delivery Units,Adults and Health,Direct Transfer Payments to So,90209122,REDACTED - PERSONAL DATA,800.00,12/11/2019
Delivery Units,Adults and Health,Direct Transfer Payments to So,90209135,REDACTED - PERSONAL DATA,"2,349.16",12/11/2019
Delivery Units,Adults and Health,Direct Transfer Payments to So,90209306,REDACTED - PERSONAL DATA,966.40,12/11/2019
Delivery Units,Adults and Health,Direct Transfer Payments to So,90209249,REDACTED - PERSONAL DATA,480.80,12/11/2019
Delivery Units,Adults and Health,Direct Transfer Payments to So,90209307,REDACTED - PERSONAL DATA,"3,444.00",12/11/2019
Delivery Units,Adults and Health,Direct Transfer Payments to So,90209252,REDACTED - PERSONAL DATA,451.92,12/11/2019
Delivery Units,Adults and Health,Direct Transfer Payments to So,90209205,REDACTED - PERSONAL DATA,649.08,12/11/2019
Delivery Units,Adults and Health,Direct Transfer Payments to So,90209150,REDACTED - PERSONAL DATA,348.00,12/11/2019
Delivery Units,Adults and Health,Direct Transfer Payments to So,90209088,REDACTED - PERSONAL DATA,547.08,12/11/2019
Delivery Units,Adults and Health,Direct Transfer Payments to So,90209256,REDACTED - PERSONAL DATA,"4,093.84",12/11/2019
Delivery Units,Adults and Health,Direct Transfer Payments to So,90209032,REDACTED - PERSONAL DATA,700.00,12/11/2019
Delivery Units,Adults and Health,Direct Transfer Payments to So,90209057,REDACTED - PERSONAL DATA,"1,560.72",12/11/2019
Delivery Units,Adults and Health,Direct Transfer Payments to So,90209261,REDACTED - PERSONAL DATA,347.20,12/11/2019
Delivery Units,Adults and Health,Direct Transfer Payments to So,90209092,REDACTED - PERSONAL DATA,560.00,12/11/2019
Delivery Units,Adults and Health,Direct Transfer Payments to So,90209538,REDACTED - PERSONAL DATA,"2,316.96",12/11/2019
Delivery Units,Adults and Health,Direct Transfer Payments to So,90209156,REDACTED - PERSONAL DATA,"1,431.96",12/11/2019
Delivery Units,Adults and Health,Direct Transfer Payments to So,90209037,REDACTED - PERSONAL DATA,410.96,12/11/2019
Delivery Units,Adults and Health,Direct Transfer Payments to So,90209036,REDACTED - PERSONAL DATA,360.60,12/11/2019
Delivery Units,Adults and Health,Direct Transfer Payments to So,90209290,REDACTED - PERSONAL DATA,"1,208.00",12/11/2019
Delivery Units,Adults and Health,Direct Transfer Payments to So,90209055,REDACTED - PERSONAL DATA,"1,872.00",12/11/2019
Delivery Units,Adults and Health,Direct Transfer Payments to So,90209268,REDACTED - PERSONAL DATA,844.40,12/11/2019
Delivery Units,Adults and Health,Direct Transfer Payments to So,90209472,REDACTED - PERSONAL DATA,"3,279.20",12/11/2019
Delivery Units,Adults and Health,Direct Transfer Payments to So,90209165,REDACTED - PERSONAL DATA,960.00,12/11/2019
Delivery Units,Adults and Health,Direct Transfer Payments to So,90209046,REDACTED - PERSONAL DATA,"2,066.00",12/11/2019
Delivery Units,Adults and Health,Direct Transfer Payments to So,90209273,REDACTED - PERSONAL DATA,"2,092.96",12/11/2019
Delivery Units,Adults and Health,Direct Transfer Payments to So,90209220,REDACTED - PERSONAL DATA,231.40,12/11/2019
Delivery Units,Adults and Health,Direct Transfer Payments to So,90209486,REDACTED - PERSONAL DATA,810.00,12/11/2019
Delivery Units,Adults and Health,Direct Transfer Payments to So,90209051,REDACTED - PERSONAL DATA,478.48,12/11/2019
Delivery Units,Adults and Health,Direct Transfer Payments to So,90209170,REDACTED - PERSONAL DATA,"2,400.00",12/11/2019
Delivery Units,Adults and Health,Direct Transfer Payments to So,90209108,REDACTED - PERSONAL DATA,772.32,12/11/2019
Delivery Units,Adults and Health,Direct Transfer Payments to So,90209463,REDACTED - PERSONAL DATA,"1,586.48",12/11/2019
Delivery Units,Adults and Health,Direct Transfer Payments to So,90209061,REDACTED - PERSONAL DATA,"2,518.48",12/11/2019
Delivery Units,Adults and Health,Direct Transfer Payments to So,90209279,REDACTED - PERSONAL DATA,"1,351.56",12/11/2019
Delivery Units,Adults and Health,Direct Transfer Payments to So,90209428,REDACTED - PERSONAL DATA,792.88,12/11/2019
Delivery Units,Adults and Health,Direct Transfer Payments to So,90209462,REDACTED - PERSONAL DATA,384.64,12/11/2019
Delivery Units,Adults and Health,Direct Transfer Payments to So,90209062,REDACTED - PERSONAL DATA,321.80,12/11/2019
Delivery Units,Adults and Health,Direct Transfer Payments to So,90209435,REDACTED - PERSONAL DATA,390.00,12/11/2019
Delivery Units,Adults and Health,Direct Transfer Payments to So,90209177,REDACTED - PERSONAL DATA,"1,582.00",12/11/2019
Delivery Units,Adults and Health,Direct Transfer Payments to So,90209356,REDACTED - PERSONAL DATA,136.00,12/11/2019
Delivery Units,Adults and Health,Direct Transfer Payments to So,90209346,REDACTED - PERSONAL DATA,"1,113.44",12/11/2019
Delivery Units,Adults and Health,Direct Transfer Payments to So,90209178,REDACTED - PERSONAL DATA,"4,608.04",12/11/2019
Delivery Units,Adults and Health,Direct Transfer Payments to So,90209181,REDACTED - PERSONAL DATA,"2,520.00",12/11/2019
Delivery Units,Adults and Health,Direct Transfer Payments to So,90209297,REDACTED - PERSONAL DATA,"1,351.56",12/11/2019
Delivery Units,Adults and Health,Direct Transfer Payments to So,90209364,REDACTED - PERSONAL DATA,"2,300.00",12/11/2019
Delivery Units,Adults and Health,Direct Transfer Payments to So,90209506,REDACTED - PERSONAL DATA,589.68,12/11/2019
Delivery Units,Adults and Health,Direct Transfer Payments to So,90209546,REDACTED - PERSONAL DATA,730.92,12/11/2019
Delivery Units,Adults and Health,Direct Transfer Payments to So,90209551,REDACTED - PERSONAL DATA,"1,346.12",12/11/2019
Delivery Units,Adults and Health,Direct Transfer Payments to So,90209448,REDACTED - PERSONAL DATA,140.00,12/11/2019
Delivery Units,Adults and Health,Direct Transfer Payments to So,90209521,REDACTED - PERSONAL DATA,"1,238.92",12/11/2019
Delivery Units,Adults and Health,Direct Transfer Payments to So,90209446,REDACTED - PERSONAL DATA,903.92,12/11/2019
Delivery Units,Adults and Health,Direct Transfer Payments to So,90209385,REDACTED - PERSONAL DATA,"2,796.44",12/11/2019
Delivery Units,Adults and Health,Direct Transfer Payments to So,90209524,REDACTED - PERSONAL DATA,482.72,12/11/2019
Delivery Units,Adults and Health,Direct Transfer Payments to So,90209381,REDACTED - PERSONAL DATA,"1,238.92",12/11/2019
Delivery Units,Adults and Health,Direct Transfer Payments to So,90209423,REDACTED - PERSONAL DATA,"1,194.24",12/11/2019
Delivery Units,Adults and Health,Direct Transfer Payments to So,90209389,REDACTED - PERSONAL DATA,"3,000.00",12/11/2019
Delivery Units,Adults and Health,Direct Transfer Payments to So,90209393,REDACTED - PERSONAL DATA,"2,843.24",12/11/2019
Delivery Units,Adults and Health,Direct Transfer Payments to So,90209451,REDACTED - PERSONAL DATA,"2,751.32",12/11/2019
Delivery Units,Adults and Health,Direct Transfer Payments to So,90209396,REDACTED - PERSONAL DATA,"2,781.72",12/11/2019
Delivery Units,Adults and Health,Direct Transfer Payments to So,90209465,REDACTED - PERSONAL DATA,586.96,12/11/2019
Delivery Units,Adults and Health,Direct Transfer Payments to So,90209540,REDACTED - PERSONAL DATA,675.80,12/11/2019
Delivery Units,Adults and Health,Direct Transfer Payments to So,90209573,REDACTED - PERSONAL DATA,"2,331.60",12/11/2019
Delivery Units,Adults and Health,Direct Transfer Payments to So,90209399,REDACTED - PERSONAL DATA,"1,802.08",12/11/2019
Delivery Units,Adults and Health,Direct Transfer Payments to So,90209432,REDACTED - PERSONAL DATA,"1,351.56",12/11/2019
Delivery Units,Adults and Health,Direct Transfer Payments to So,90209466,REDACTED - PERSONAL DATA,"2,375.08",12/11/2019
Delivery Units,Adults and Health,Direct Transfer Payments to So,90209355,REDACTED - PERSONAL DATA,935.68,30/11/2019
Delivery Units,Adults and Health,Direct Transfer Payments to So,90209366,REDACTED - PERSONAL DATA,"1,550.40",30/11/2019
Delivery Units,Adults and Health,Direct Transfer Payments to So,90209368,REDACTED - PERSONAL DATA,266.20,30/11/2019
Delivery Units,Adults and Health,Direct Transfer Payments to So,90209382,REDACTED - PERSONAL DATA,215.40,30/11/2019
Delivery Units,Adults and Health,Direct Transfer Payments to So,90209405,REDACTED - PERSONAL DATA,"1,787.84",30/11/2019
Delivery Units,Adults and Health,Direct Transfer Payments to So,90209441,REDACTED - PERSONAL DATA,583.84,30/11/2019
Delivery Units,Adults and Health,Direct Transfer Payments to So,90209445,REDACTED - PERSONAL DATA,764.32,30/11/2019
Delivery Units,Adults and Health,Direct Transfer Payments to So,90209470,REDACTED - PERSONAL DATA,"1,062.00",30/11/2019
Delivery Units,Adults and Health,Direct Transfer Payments to So,90209508,REDACTED - PERSONAL DATA,990.64,30/11/2019
Delivery Units,Adults and Health,Direct Transfer Payments to So,90209509,REDACTED - PERSONAL DATA,296.48,30/11/2019
Delivery Units,Adults and Health,Direct Transfer Payments to So,90209545,REDACTED - PERSONAL DATA,"1,071.92",30/11/2019
Delivery Units,Adults and Health,Direct Transfer Payments to So,90209547,REDACTED - PERSONAL DATA,"1,022.04",30/11/2019
Delivery Units,Adults and Health,Fees and Charges,90209065,REDACTED - PERSONAL DATA,-428.72,12/11/2019
Delivery Units,Adults and Health,Fees and Charges,90209787,REDACTED - PERSONAL DATA,459.20,12/11/2019
Delivery Units,Adults and Health,Fees and Charges,90212868,REDACTED - PERSONAL DATA,532.91,26/11/2019
Delivery Units,Adults and Health,Fees and Charges,90209796,REDACTED - PERSONAL DATA,99.04,12/11/2019
Delivery Units,Adults and Health,Fees and Charges,90212875,REDACTED - PERSONAL DATA,120.26,26/11/2019
Delivery Units,Adults and Health,Fees and Charges,90210996,REDACTED - PERSONAL DATA,542.78,18/11/2019
Delivery Units,Adults and Health,Other Agencies - Third Party P,90211877,WESTMINSTER HOMECARE LTD,265.58,20/11/2019
Delivery Units,Adults and Health,Other Agencies - Third Party P,90211878,WESTMINSTER HOMECARE LTD,234.71,20/11/2019
Delivery Units,Adults and Health,Other Agencies - Third Party P,90211879,WESTMINSTER HOMECARE LTD,160.21,20/11/2019
Delivery Units,Adults and Health,Other Agencies - Third Party P,90211880,WESTMINSTER HOMECARE LTD,88.55,20/11/2019
Delivery Units,Adults and Health,Other Agencies - Third Party P,90211881,WESTMINSTER HOMECARE LTD,113.87,20/11/2019
Delivery Units,Adults and Health,Other Agencies - Third Party P,90211882,WESTMINSTER HOMECARE LTD,84.33,20/11/2019
Delivery Units,Adults and Health,Other Agencies - Third Party P,90211883,WESTMINSTER HOMECARE LTD,42.15,20/11/2019
Delivery Units,Adults and Health,Other Agencies - Third Party P,90211884,WESTMINSTER HOMECARE LTD,80.13,20/11/2019
Delivery Units,Adults and Health,Other Agencies - Third Party P,90211886,WESTMINSTER HOMECARE LTD,177.10,20/11/2019
Delivery Units,Adults and Health,Other Agencies - Third Party P,90211887,WESTMINSTER HOMECARE LTD,193.92,20/11/2019
Delivery Units,Adults and Health,Other Agencies - Third Party P,90211888,WESTMINSTER HOMECARE LTD,16.86,20/11/2019
Delivery Units,Adults and Health,Other Agencies - Third Party P,90211889,WESTMINSTER HOMECARE LTD,16.86,20/11/2019
Delivery Units,Adults and Health,Other Agencies - Third Party P,90211890,WESTMINSTER HOMECARE LTD,25.29,20/11/2019
Delivery Units,Adults and Health,Other Agencies - Third Party P,90211891,WESTMINSTER HOMECARE LTD,278.30,20/11/2019
Delivery Units,Adults and Health,Other Agencies - Third Party P,90211892,WESTMINSTER HOMECARE LTD,84.35,20/11/2019
Delivery Units,Adults and Health,Other Agencies - Third Party P,90211893,WESTMINSTER HOMECARE LTD,143.34,20/11/2019
Delivery Units,Adults and Health,Other Agencies - Third Party P,90211894,WESTMINSTER HOMECARE LTD,8.43,20/11/2019
Delivery Units,Adults and Health,Other Agencies - Third Party P,90211897,WESTMINSTER HOMECARE LTD,29.51,20/11/2019
Delivery Units,Adults and Health,Other Agencies - Third Party P,90211898,WESTMINSTER HOMECARE LTD,353.70,20/11/2019
Delivery Units,Adults and Health,Other Agencies - Third Party P,90211899,WESTMINSTER HOMECARE LTD,350.54,20/11/2019
Delivery Units,Adults and Health,Other Agencies - Third Party P,90211900,WESTMINSTER HOMECARE LTD,134.90,20/11/2019
Delivery Units,Adults and Health,Other Agencies - Third Party P,90211901,WESTMINSTER HOMECARE LTD,265.58,20/11/2019
Delivery Units,Adults and Health,Other Agencies - Third Party P,90211902,WESTMINSTER HOMECARE LTD,63.25,20/11/2019
Delivery Units,Adults and Health,Other Agencies - Third Party P,90211903,WESTMINSTER HOMECARE LTD,59.01,20/11/2019
Delivery Units,Adults and Health,Other Agencies - Third Party P,90211904,WESTMINSTER HOMECARE LTD,54.80,20/11/2019
Delivery Units,Adults and Health,Other Agencies - Third Party P,90211906,WESTMINSTER HOMECARE LTD,108.53,20/11/2019
Delivery Units,Adults and Health,Other Agencies - Third Party P,90211907,WESTMINSTER HOMECARE LTD,413.21,20/11/2019
Delivery Units,Adults and Health,Other Agencies - Third Party P,90211908,WESTMINSTER HOMECARE LTD,63.25,20/11/2019
Delivery Units,Adults and Health,Other Agencies - Third Party P,90211910,WESTMINSTER HOMECARE LTD,84.33,20/11/2019
Delivery Units,Adults and Health,Other Agencies - Third Party P,90211911,WESTMINSTER HOMECARE LTD,16.86,20/11/2019
Delivery Units,Adults and Health,Other Agencies - Third Party P,90211912,WESTMINSTER HOMECARE LTD,155.98,20/11/2019
Delivery Units,Adults and Health,Other Agencies - Third Party P,90211913,WESTMINSTER HOMECARE LTD,261.37,20/11/2019
Delivery Units,Adults and Health,Other Agencies - Third Party P,90211914,WESTMINSTER HOMECARE LTD,265.58,20/11/2019
Delivery Units,Adults and Health,Other Agencies - Third Party P,90211915,WESTMINSTER HOMECARE LTD,222.62,20/11/2019
Delivery Units,Adults and Health,Other Agencies - Third Party P,90211916,WESTMINSTER HOMECARE LTD,143.34,20/11/2019
Delivery Units,Adults and Health,Other Agencies - Third Party P,90211917,WESTMINSTER HOMECARE LTD,71.68,20/11/2019
Delivery Units,Adults and Health,Other Agencies - Third Party P,90211918,WESTMINSTER HOMECARE LTD,71.68,20/11/2019
Delivery Units,Adults and Health,Other Agencies - Third Party P,90211919,WESTMINSTER HOMECARE LTD,75.89,20/11/2019
Delivery Units,Adults and Health,Other Agencies - Third Party P,90211920,WESTMINSTER HOMECARE LTD,42.15,20/11/2019
Delivery Units,Adults and Health,Other Agencies - Third Party P,90211921,WESTMINSTER HOMECARE LTD,81.54,20/11/2019
Delivery Units,Adults and Health,Other Agencies - Third Party P,90211923,WESTMINSTER HOMECARE LTD,168.38,20/11/2019
Delivery Units,Adults and Health,Other Agencies - Third Party P,90211924,WESTMINSTER HOMECARE LTD,206.57,20/11/2019
Delivery Units,Adults and Health,Other Agencies - Third Party P,90211925,WESTMINSTER HOMECARE LTD,16.86,20/11/2019
Delivery Units,Adults and Health,Other Agencies - Third Party P,90211926,WESTMINSTER HOMECARE LTD,16.86,20/11/2019
Delivery Units,Adults and Health,Other Agencies - Third Party P,90211927,WESTMINSTER HOMECARE LTD,8.43,20/11/2019
Delivery Units,Adults and Health,Other Agencies - Third Party P,90211928,WESTMINSTER HOMECARE LTD,278.30,20/11/2019
Delivery Units,Adults and Health,Other Agencies - Third Party P,90211929,WESTMINSTER HOMECARE LTD,67.45,20/11/2019
Delivery Units,Adults and Health,Other Agencies - Third Party P,90211930,WESTMINSTER HOMECARE LTD,139.14,20/11/2019
Delivery Units,Adults and Health,Other Agencies - Third Party P,90211931,WESTMINSTER HOMECARE LTD,8.43,20/11/2019
Delivery Units,Adults and Health,Other Agencies - Third Party P,90211934,WESTMINSTER HOMECARE LTD,33.46,20/11/2019
Delivery Units,Adults and Health,Other Agencies - Third Party P,90211935,WESTMINSTER HOMECARE LTD,351.44,20/11/2019
Delivery Units,Adults and Health,Other Agencies - Third Party P,90211936,WESTMINSTER HOMECARE LTD,348.29,20/11/2019
Delivery Units,Adults and Health,Other Agencies - Third Party P,90211937,WESTMINSTER HOMECARE LTD,134.90,20/11/2019
Delivery Units,Adults and Health,Other Agencies - Third Party P,90211938,WESTMINSTER HOMECARE LTD,261.37,20/11/2019
Delivery Units,Adults and Health,Other Agencies - Third Party P,90211939,WESTMINSTER HOMECARE LTD,63.25,20/11/2019
Delivery Units,Adults and Health,Other Agencies - Third Party P,90211940,WESTMINSTER HOMECARE LTD,54.80,20/11/2019
Delivery Units,Adults and Health,Other Agencies - Third Party P,90211941,WESTMINSTER HOMECARE LTD,59.01,20/11/2019
Delivery Units,Adults and Health,Other Agencies - Third Party P,90211942,WESTMINSTER HOMECARE LTD,100.66,20/11/2019
Delivery Units,Adults and Health,Other Agencies - Third Party P,90211945,WESTMINSTER HOMECARE LTD,117.53,20/11/2019
Delivery Units,Adults and Health,Other Agencies - Third Party P,90211946,WESTMINSTER HOMECARE LTD,413.21,20/11/2019
Delivery Units,Adults and Health,Other Agencies - Third Party P,90211947,WESTMINSTER HOMECARE LTD,50.60,20/11/2019
Delivery Units,Adults and Health,Other Agencies - Third Party P,90211949,WESTMINSTER HOMECARE LTD,88.55,20/11/2019
Delivery Units,Adults and Health,Other Agencies - Third Party P,90211950,WESTMINSTER HOMECARE LTD,16.86,20/11/2019
Delivery Units,Adults and Health,Other Agencies - Third Party P,90211951,WESTMINSTER HOMECARE LTD,147.55,20/11/2019
Delivery Units,Adults and Health,Other Agencies - Third Party P,90211952,WESTMINSTER HOMECARE LTD,261.37,20/11/2019
Delivery Units,Adults and Health,Other Agencies - Third Party P,90211953,WESTMINSTER HOMECARE LTD,231.34,20/11/2019
Delivery Units,Adults and Health,Other Agencies - Third Party P,90211954,WESTMINSTER HOMECARE LTD,123.95,20/11/2019
Delivery Units,Adults and Health,Other Agencies - Third Party P,90211955,WESTMINSTER HOMECARE LTD,63.25,20/11/2019
Delivery Units,Adults and Health,Other Agencies - Third Party P,90211956,WESTMINSTER HOMECARE LTD,109.65,20/11/2019
Delivery Units,Adults and Health,Other Agencies - Third Party P,90211957,WESTMINSTER HOMECARE LTD,88.55,20/11/2019
Delivery Units,Adults and Health,Other Agencies - Third Party P,90211958,WESTMINSTER HOMECARE LTD,42.15,20/11/2019
Delivery Units,Adults and Health,Other Agencies - Third Party P,90211959,WESTMINSTER HOMECARE LTD,80.13,20/11/2019
Delivery Units,Adults and Health,Other Agencies - Third Party P,90211961,WESTMINSTER HOMECARE LTD,154.03,20/11/2019
Delivery Units,Adults and Health,Other Agencies - Third Party P,90211962,WESTMINSTER HOMECARE LTD,139.12,20/11/2019
Delivery Units,Adults and Health,Other Agencies - Third Party P,90211963,WESTMINSTER HOMECARE LTD,16.86,20/11/2019
Delivery Units,Adults and Health,Other Agencies - Third Party P,90211964,WESTMINSTER HOMECARE LTD,16.86,20/11/2019
Delivery Units,Adults and Health,Other Agencies - Third Party P,90211965,WESTMINSTER HOMECARE LTD,16.86,20/11/2019
Delivery Units,Adults and Health,Other Agencies - Third Party P,90211966,WESTMINSTER HOMECARE LTD,274.08,20/11/2019
Delivery Units,Adults and Health,Other Agencies - Third Party P,90211967,WESTMINSTER HOMECARE LTD,246.79,20/11/2019
Delivery Units,Adults and Health,Other Agencies - Third Party P,90211968,WESTMINSTER HOMECARE LTD,134.91,20/11/2019
Delivery Units,Adults and Health,Other Agencies - Third Party P,90211969,WESTMINSTER HOMECARE LTD,8.43,20/11/2019
Delivery Units,Adults and Health,Other Agencies - Third Party P,90211972,WESTMINSTER HOMECARE LTD,42.17,20/11/2019
Delivery Units,Adults and Health,Other Agencies - Third Party P,90211973,WESTMINSTER HOMECARE LTD,307.58,20/11/2019
Delivery Units,Adults and Health,Other Agencies - Third Party P,90211974,WESTMINSTER HOMECARE LTD,341.26,20/11/2019
Delivery Units,Adults and Health,Other Agencies - Third Party P,90211975,WESTMINSTER HOMECARE LTD,134.90,20/11/2019
Delivery Units,Adults and Health,Other Agencies - Third Party P,90211976,WESTMINSTER HOMECARE LTD,244.51,20/11/2019
Delivery Units,Adults and Health,Other Agencies - Third Party P,90211977,WESTMINSTER HOMECARE LTD,63.25,20/11/2019
Delivery Units,Adults and Health,Other Agencies - Third Party P,90211978,WESTMINSTER HOMECARE LTD,50.59,20/11/2019
Delivery Units,Adults and Health,Other Agencies - Third Party P,90211979,WESTMINSTER HOMECARE LTD,59.01,20/11/2019
Delivery Units,Adults and Health,Other Agencies - Third Party P,90211980,WESTMINSTER HOMECARE LTD,111.06,20/11/2019
Delivery Units,Adults and Health,Other Agencies - Third Party P,90211983,WESTMINSTER HOMECARE LTD,113.31,20/11/2019
Delivery Units,Adults and Health,Other Agencies - Third Party P,90211984,WESTMINSTER HOMECARE LTD,396.34,20/11/2019
Delivery Units,Adults and Health,Other Agencies - Third Party P,90211985,WESTMINSTER HOMECARE LTD,42.16,20/11/2019
Delivery Units,Adults and Health,Other Agencies - Third Party P,90211987,WESTMINSTER HOMECARE LTD,88.55,20/11/2019
Delivery Units,Adults and Health,Other Agencies - Third Party P,90211988,WESTMINSTER HOMECARE LTD,16.86,20/11/2019
Delivery Units,Adults and Health,Other Agencies - Third Party P,90211989,WESTMINSTER HOMECARE LTD,134.90,20/11/2019
Delivery Units,Adults and Health,Other Agencies - Third Party P,90211990,WESTMINSTER HOMECARE LTD,244.51,20/11/2019
Delivery Units,Adults and Health,Other Agencies - Third Party P,90211991,WESTMINSTER HOMECARE LTD,234.42,20/11/2019
Delivery Units,Adults and Health,Other Agencies - Third Party P,90211992,WESTMINSTER HOMECARE LTD,147.56,20/11/2019
Delivery Units,Adults and Health,Other Agencies - Third Party P,90211993,WESTMINSTER HOMECARE LTD,84.33,20/11/2019
Delivery Units,Adults and Health,Other Agencies - Third Party P,90211994,WESTMINSTER HOMECARE LTD,96.43,20/11/2019
Delivery Units,Adults and Health,Other Agencies - Third Party P,90211995,WESTMINSTER HOMECARE LTD,75.89,20/11/2019
Delivery Units,Adults and Health,Other Agencies - Third Party P,90211996,WESTMINSTER HOMECARE LTD,42.15,20/11/2019
Delivery Units,Adults and Health,Other Agencies - Third Party P,90211997,WESTMINSTER HOMECARE LTD,80.13,20/11/2019
Delivery Units,Adults and Health,Other Agencies - Third Party P,90211999,WESTMINSTER HOMECARE LTD,164.17,20/11/2019
Delivery Units,Adults and Health,Other Agencies - Third Party P,90212000,WESTMINSTER HOMECARE LTD,198.14,20/11/2019
Delivery Units,Adults and Health,Other Agencies - Third Party P,90212001,WESTMINSTER HOMECARE LTD,12.65,20/11/2019
Delivery Units,Adults and Health,Other Agencies - Third Party P,90212002,WESTMINSTER HOMECARE LTD,8.43,20/11/2019
Delivery Units,Adults and Health,Other Agencies - Third Party P,90212003,WESTMINSTER HOMECARE LTD,16.86,20/11/2019
Delivery Units,Adults and Health,Other Agencies - Third Party P,90212004,WESTMINSTER HOMECARE LTD,278.30,20/11/2019
Delivery Units,Adults and Health,Other Agencies - Third Party P,90212005,WESTMINSTER HOMECARE LTD,240.33,20/11/2019
Delivery Units,Adults and Health,Other Agencies - Third Party P,90212006,WESTMINSTER HOMECARE LTD,143.34,20/11/2019
Delivery Units,Adults and Health,Other Agencies - Third Party P,90212007,WESTMINSTER HOMECARE LTD,4.22,20/11/2019
Delivery Units,Adults and Health,Other Agencies - Third Party P,90212010,WESTMINSTER HOMECARE LTD,33.73,20/11/2019
Delivery Units,Adults and Health,Other Agencies - Third Party P,90212011,WESTMINSTER HOMECARE LTD,252.78,20/11/2019
Delivery Units,Adults and Health,Other Agencies - Third Party P,90212012,WESTMINSTER HOMECARE LTD,349.42,20/11/2019
Delivery Units,Adults and Health,Other Agencies - Third Party P,90212013,WESTMINSTER HOMECARE LTD,126.47,20/11/2019
Delivery Units,Adults and Health,Other Agencies - Third Party P,90212014,WESTMINSTER HOMECARE LTD,265.58,20/11/2019
Delivery Units,Adults and Health,Other Agencies - Third Party P,90212015,WESTMINSTER HOMECARE LTD,63.25,20/11/2019
Delivery Units,Adults and Health,Other Agencies - Third Party P,90212016,WESTMINSTER HOMECARE LTD,42.16,20/11/2019
Delivery Units,Adults and Health,Other Agencies - Third Party P,90212017,WESTMINSTER HOMECARE LTD,46.37,20/11/2019
Delivery Units,Adults and Health,Other Agencies - Third Party P,90212018,WESTMINSTER HOMECARE LTD,98.41,20/11/2019
Delivery Units,Adults and Health,Other Agencies - Third Party P,90212021,WESTMINSTER HOMECARE LTD,113.31,20/11/2019
Delivery Units,Adults and Health,Other Agencies - Third Party P,90212022,WESTMINSTER HOMECARE LTD,413.21,20/11/2019
Delivery Units,Adults and Health,Other Agencies - Third Party P,90212023,WESTMINSTER HOMECARE LTD,59.03,20/11/2019
Delivery Units,Adults and Health,Other Agencies - Third Party P,90212025,WESTMINSTER HOMECARE LTD,75.90,20/11/2019
Delivery Units,Adults and Health,Other Agencies - Third Party P,90212026,WESTMINSTER HOMECARE LTD,16.86,20/11/2019
Delivery Units,Adults and Health,Other Agencies - Third Party P,90212027,WESTMINSTER HOMECARE LTD,160.20,20/11/2019
Delivery Units,Adults and Health,Other Agencies - Third Party P,90212028,WESTMINSTER HOMECARE LTD,248.73,20/11/2019
Delivery Units,Adults and Health,Other Agencies - Third Party P,60142147,ENARA COMMUNITY CARE,"2,617.20",22/11/2019
Delivery Units,Adults and Health,Other Agencies - Third Party P,90208166,DYNAMIC PEOPLE LTD,138.04,11/11/2019
Delivery Units,Adults and Health,Other Agencies - Third Party P,90208167,DYNAMIC PEOPLE LTD,248.43,11/11/2019
Delivery Units,Adults and Health,Other Agencies - Third Party P,90208169,DYNAMIC PEOPLE LTD,82.81,11/11/2019
Delivery Units,Adults and Health,Other Agencies - Third Party P,90208170,DYNAMIC PEOPLE LTD,153.81,11/11/2019
Delivery Units,Adults and Health,Other Agencies - Third Party P,90208171,DYNAMIC PEOPLE LTD,193.27,11/11/2019
Delivery Units,Adults and Health,Other Agencies - Third Party P,90208172,DYNAMIC PEOPLE LTD,82.79,11/11/2019
Delivery Units,Adults and Health,Other Agencies - Third Party P,90208173,DYNAMIC PEOPLE LTD,82.81,11/11/2019
Delivery Units,Adults and Health,Other Agencies - Third Party P,90208174,DYNAMIC PEOPLE LTD,276.08,11/11/2019
Delivery Units,Adults and Health,Other Agencies - Third Party P,90208177,DYNAMIC PEOPLE LTD,248.50,11/11/2019
Delivery Units,Adults and Health,Other Agencies - Third Party P,90208179,DYNAMIC PEOPLE LTD,138.04,11/11/2019
Delivery Units,Adults and Health,Other Agencies - Third Party P,90208181,DYNAMIC PEOPLE LTD,82.81,11/11/2019
Delivery Units,Adults and Health,Other Agencies - Third Party P,90208182,DYNAMIC PEOPLE LTD,220.85,11/11/2019
Delivery Units,Adults and Health,Other Agencies - Third Party P,90208183,DYNAMIC PEOPLE LTD,138.04,11/11/2019
Delivery Units,Adults and Health,Other Agencies - Third Party P,90208184,DYNAMIC PEOPLE LTD,35.49,11/11/2019
Delivery Units,Adults and Health,Other Agencies - Third Party P,90208185,DYNAMIC PEOPLE LTD,110.39,11/11/2019
Delivery Units,Adults and Health,Other Agencies - Third Party P,90208186,DYNAMIC PEOPLE LTD,386.54,11/11/2019
Delivery Units,Adults and Health,Other Agencies - Third Party P,90208188,DYNAMIC PEOPLE LTD,331.24,11/11/2019
Delivery Units,Adults and Health,Other Agencies - Third Party P,90208189,DYNAMIC PEOPLE LTD,220.85,11/11/2019
Delivery Units,Adults and Health,Other Agencies - Third Party P,90208191,DYNAMIC PEOPLE LTD,110.39,11/11/2019
Delivery Units,Adults and Health,Other Agencies - Third Party P,90208192,DYNAMIC PEOPLE LTD,141.93,11/11/2019
Delivery Units,Adults and Health,Other Agencies - Third Party P,90208193,DYNAMIC PEOPLE LTD,220.78,11/11/2019
Delivery Units,Adults and Health,Other Agencies - Third Party P,90208194,DYNAMIC PEOPLE LTD,193.27,11/11/2019
Delivery Units,Adults and Health,Other Agencies - Third Party P,90208195,DYNAMIC PEOPLE LTD,220.92,11/11/2019
Delivery Units,Adults and Health,Other Agencies - Third Party P,90208196,DYNAMIC PEOPLE LTD,287.88,11/11/2019
Delivery Units,Adults and Health,Other Agencies - Third Party P,90208197,DYNAMIC PEOPLE LTD,138.04,11/11/2019
Delivery Units,Adults and Health,Other Agencies - Third Party P,90208201,DYNAMIC PEOPLE LTD,260.26,11/11/2019
Delivery Units,Adults and Health,Other Agencies - Third Party P,90208202,DYNAMIC PEOPLE LTD,193.27,11/11/2019
Delivery Units,Adults and Health,Other Agencies - Third Party P,90208203,DYNAMIC PEOPLE LTD,169.56,11/11/2019
Delivery Units,Adults and Health,Other Agencies - Third Party P,90208204,DYNAMIC PEOPLE LTD,177.51,11/11/2019
Delivery Units,Adults and Health,Other Agencies - Third Party P,90208205,DYNAMIC PEOPLE LTD,299.74,11/11/2019
Delivery Units,Adults and Health,Other Agencies - Third Party P,90208206,DYNAMIC PEOPLE LTD,165.62,11/11/2019
Delivery Units,Adults and Health,Other Agencies - Third Party P,90208207,DYNAMIC PEOPLE LTD,63.11,11/11/2019
Delivery Units,Adults and Health,Other Agencies - Third Party P,90208208,DYNAMIC PEOPLE LTD,497.00,11/11/2019
Delivery Units,Adults and Health,Other Agencies - Third Party P,90208209,DYNAMIC PEOPLE LTD,138.04,11/11/2019
Delivery Units,Adults and Health,Other Agencies - Third Party P,90208211,DYNAMIC PEOPLE LTD,193.20,11/11/2019
Delivery Units,Adults and Health,Other Agencies - Third Party P,90208212,DYNAMIC PEOPLE LTD,220.85,11/11/2019
Delivery Units,Adults and Health,Other Agencies - Third Party P,90208213,DYNAMIC PEOPLE LTD,82.81,11/11/2019
Delivery Units,Adults and Health,Other Agencies - Third Party P,90208216,DYNAMIC PEOPLE LTD,70.96,11/11/2019
Delivery Units,Adults and Health,Other Agencies - Third Party P,90208217,DYNAMIC PEOPLE LTD,59.15,11/11/2019
Delivery Units,Adults and Health,Other Agencies - Third Party P,90208218,DYNAMIC PEOPLE LTD,193.27,11/11/2019
Delivery Units,Adults and Health,Other Agencies - Third Party P,90208219,DYNAMIC PEOPLE LTD,177.43,11/11/2019
Delivery Units,Adults and Health,Other Agencies - Third Party P,90208220,DYNAMIC PEOPLE LTD,350.95,11/11/2019
Delivery Units,Adults and Health,Other Agencies - Third Party P,90208221,DYNAMIC PEOPLE LTD,31.54,11/11/2019
Delivery Units,Adults and Health,Other Agencies - Third Party P,90208222,DYNAMIC PEOPLE LTD,86.77,11/11/2019
Delivery Units,Adults and Health,Other Agencies - Third Party P,90208223,DYNAMIC PEOPLE LTD,67.02,11/11/2019
Delivery Units,Adults and Health,Other Agencies - Third Party P,90208224,DYNAMIC PEOPLE LTD,82.81,11/11/2019
Delivery Units,Adults and Health,Other Agencies - Third Party P,90208226,DYNAMIC PEOPLE LTD,98.56,11/11/2019
Delivery Units,Adults and Health,Other Agencies - Third Party P,90208228,DYNAMIC PEOPLE LTD,59.16,11/11/2019
Delivery Units,Adults and Health,Other Agencies - Third Party P,90208229,DYNAMIC PEOPLE LTD,70.96,11/11/2019
Delivery Units,Adults and Health,Other Agencies - Third Party P,90208230,DYNAMIC PEOPLE LTD,303.59,11/11/2019
Delivery Units,Adults and Health,Other Agencies - Third Party P,90208231,DYNAMIC PEOPLE LTD,165.62,11/11/2019
Delivery Units,Adults and Health,Other Agencies - Third Party P,90208233,DYNAMIC PEOPLE LTD,138.04,11/11/2019
Delivery Units,Adults and Health,Other Agencies - Third Party P,90208234,DYNAMIC PEOPLE LTD,82.81,11/11/2019
Delivery Units,Adults and Health,Other Agencies - Third Party P,90208235,DYNAMIC PEOPLE LTD,63.08,11/11/2019
Delivery Units,Adults and Health,Other Agencies - Third Party P,90208236,DYNAMIC PEOPLE LTD,51.25,11/11/2019
Delivery Units,Adults and Health,Other Agencies - Third Party P,90208237,DYNAMIC PEOPLE LTD,55.23,11/11/2019
Delivery Units,Adults and Health,Other Agencies - Third Party P,90208239,DYNAMIC PEOPLE LTD,749.18,11/11/2019
Delivery Units,Adults and Health,Other Agencies - Third Party P,90208241,DYNAMIC PEOPLE LTD,138.04,11/11/2019
Delivery Units,Adults and Health,Other Agencies - Third Party P,90208242,DYNAMIC PEOPLE LTD,228.74,11/11/2019
Delivery Units,Adults and Health,Other Agencies - Third Party P,90208243,DYNAMIC PEOPLE LTD,110.46,11/11/2019
Delivery Units,Adults and Health,Other Agencies - Third Party P,90208244,DYNAMIC PEOPLE LTD,106.51,11/11/2019
Delivery Units,Adults and Health,Other Agencies - Third Party P,90208246,DYNAMIC PEOPLE LTD,31.54,11/11/2019
Delivery Units,Adults and Health,Other Agencies - Third Party P,90208247,DYNAMIC PEOPLE LTD,145.92,11/11/2019
Delivery Units,Adults and Health,Other Agencies - Third Party P,90208249,DYNAMIC PEOPLE LTD,122.22,11/11/2019
Delivery Units,Adults and Health,Other Agencies - Third Party P,90208250,DYNAMIC PEOPLE LTD,248.40,11/11/2019
Delivery Units,Adults and Health,Other Agencies - Third Party P,90208251,DYNAMIC PEOPLE LTD,122.26,11/11/2019
Delivery Units,Adults and Health,Other Agencies - Third Party P,90208252,DYNAMIC PEOPLE LTD,181.36,11/11/2019
Delivery Units,Adults and Health,Other Agencies - Third Party P,90208253,DYNAMIC PEOPLE LTD,240.55,11/11/2019
Delivery Units,Adults and Health,Other Agencies - Third Party P,90208254,DYNAMIC PEOPLE LTD,59.15,11/11/2019
Delivery Units,Adults and Health,Other Agencies - Third Party P,90208255,DYNAMIC PEOPLE LTD,70.98,11/11/2019
Delivery Units,Adults and Health,Other Agencies - Third Party P,90208257,DYNAMIC PEOPLE LTD,165.62,11/11/2019
Delivery Units,Adults and Health,Other Agencies - Third Party P,90208258,DYNAMIC PEOPLE LTD,264.26,11/11/2019
Delivery Units,Adults and Health,Other Agencies - Third Party P,90208259,DYNAMIC PEOPLE LTD,114.33,11/11/2019
Delivery Units,Adults and Health,Other Agencies - Third Party P,90208260,DYNAMIC PEOPLE LTD,82.81,11/11/2019
Delivery Units,Adults and Health,Other Agencies - Third Party P,90208261,DYNAMIC PEOPLE LTD,74.91,11/11/2019
Delivery Units,Adults and Health,Other Agencies - Third Party P,90208265,DYNAMIC PEOPLE LTD,35.49,11/11/2019
Delivery Units,Adults and Health,Other Agencies - Third Party P,90208266,DYNAMIC PEOPLE LTD,23.67,11/11/2019
Delivery Units,Adults and Health,Other Agencies - Third Party P,90208268,DYNAMIC PEOPLE LTD,244.55,11/11/2019
Delivery Units,Adults and Health,Other Agencies - Third Party P,90208269,DYNAMIC PEOPLE LTD,7.89,11/11/2019
Delivery Units,Adults and Health,Other Agencies - Third Party P,90208270,DYNAMIC PEOPLE LTD,106.45,11/11/2019
Delivery Units,Adults and Health,Other Agencies - Third Party P,90208271,DYNAMIC PEOPLE LTD,82.81,11/11/2019
Delivery Units,Adults and Health,Other Agencies - Third Party P,90208273,DYNAMIC PEOPLE LTD,185.38,11/11/2019
Delivery Units,Adults and Health,Other Agencies - Third Party P,90208274,DYNAMIC PEOPLE LTD,134.10,11/11/2019
Delivery Units,Adults and Health,Other Agencies - Third Party P,90208275,DYNAMIC PEOPLE LTD,47.32,11/11/2019
Delivery Units,Adults and Health,Other Agencies - Third Party P,90208276,DYNAMIC PEOPLE LTD,55.23,11/11/2019
Delivery Units,Adults and Health,Other Agencies - Third Party P,90208278,DYNAMIC PEOPLE LTD,39.45,11/11/2019
Delivery Units,Adults and Health,Other Agencies - Third Party P,90208282,DYNAMIC PEOPLE LTD,311.46,11/11/2019
Delivery Units,Adults and Health,Other Agencies - Third Party P,90208283,DYNAMIC PEOPLE LTD,39.44,11/11/2019
Delivery Units,Adults and Health,Other Agencies - Third Party P,90208287,DYNAMIC PEOPLE LTD,212.90,11/11/2019
Delivery Units,Adults and Health,Other Agencies - Third Party P,90208288,DYNAMIC PEOPLE LTD,287.90,11/11/2019
Delivery Units,Adults and Health,Other Agencies - Third Party P,90208289,DYNAMIC PEOPLE LTD,47.31,11/11/2019
Delivery Units,Adults and Health,Other Agencies - Third Party P,90208290,DYNAMIC PEOPLE LTD,268.12,11/11/2019
Delivery Units,Adults and Health,Other Agencies - Third Party P,90208291,DYNAMIC PEOPLE LTD,82.81,11/11/2019
Delivery Units,Adults and Health,Other Agencies - Third Party P,90208292,DYNAMIC PEOPLE LTD,110.39,11/11/2019
Delivery Units,Adults and Health,Other Agencies - Third Party P,90208294,DYNAMIC PEOPLE LTD,193.25,11/11/2019
Delivery Units,Adults and Health,Other Agencies - Third Party P,90208295,DYNAMIC PEOPLE LTD,15.78,11/11/2019
Delivery Units,Adults and Health,Other Agencies - Third Party P,90208296,DYNAMIC PEOPLE LTD,78.90,11/11/2019
Delivery Units,Adults and Health,Other Agencies - Third Party P,90208298,DYNAMIC PEOPLE LTD,47.32,11/11/2019
Delivery Units,Adults and Health,Other Agencies - Third Party P,90208300,DYNAMIC PEOPLE LTD,276.01,11/11/2019
Delivery Units,Adults and Health,Other Agencies - Third Party P,90208301,DYNAMIC PEOPLE LTD,90.73,11/11/2019
Delivery Units,Adults and Health,Other Agencies - Third Party P,90208302,DYNAMIC PEOPLE LTD,15.77,11/11/2019
Delivery Units,Adults and Health,Other Agencies - Third Party P,90208303,DYNAMIC PEOPLE LTD,82.81,11/11/2019
Delivery Units,Adults and Health,Other Agencies - Third Party P,90208304,DYNAMIC PEOPLE LTD,106.45,11/11/2019
Delivery Units,Adults and Health,Other Agencies - Third Party P,90208307,DYNAMIC PEOPLE LTD,138.04,11/11/2019
Delivery Units,Adults and Health,Other Agencies - Third Party P,90208308,DYNAMIC PEOPLE LTD,248.43,11/11/2019
Delivery Units,Adults and Health,Other Agencies - Third Party P,90208309,DYNAMIC PEOPLE LTD,70.96,11/11/2019
Delivery Units,Adults and Health,Other Agencies - Third Party P,90208311,DYNAMIC PEOPLE LTD,82.81,11/11/2019
Delivery Units,Adults and Health,Other Agencies - Third Party P,90208312,DYNAMIC PEOPLE LTD,153.81,11/11/2019
Delivery Units,Adults and Health,Other Agencies - Third Party P,90208313,DYNAMIC PEOPLE LTD,193.27,11/11/2019
Delivery Units,Adults and Health,Other Agencies - Third Party P,90208314,DYNAMIC PEOPLE LTD,82.79,11/11/2019
Delivery Units,Adults and Health,Other Agencies - Third Party P,90208315,DYNAMIC PEOPLE LTD,276.08,11/11/2019
Delivery Units,Adults and Health,Other Agencies - Third Party P,90208317,DYNAMIC PEOPLE LTD,94.62,11/11/2019
Delivery Units,Adults and Health,Other Agencies - Third Party P,90208319,DYNAMIC PEOPLE LTD,248.50,11/11/2019
Delivery Units,Adults and Health,Other Agencies - Third Party P,90208320,DYNAMIC PEOPLE LTD,138.04,11/11/2019
Delivery Units,Adults and Health,Other Agencies - Third Party P,90208321,DYNAMIC PEOPLE LTD,82.81,11/11/2019
Delivery Units,Adults and Health,Other Agencies - Third Party P,90208323,DYNAMIC PEOPLE LTD,138.04,11/11/2019
Delivery Units,Adults and Health,Other Agencies - Third Party P,90208325,DYNAMIC PEOPLE LTD,110.46,11/11/2019
Delivery Units,Adults and Health,Other Agencies - Third Party P,90208326,DYNAMIC PEOPLE LTD,82.81,11/11/2019
Delivery Units,Adults and Health,Other Agencies - Third Party P,90208327,DYNAMIC PEOPLE LTD,138.04,11/11/2019
Delivery Units,Adults and Health,Other Agencies - Third Party P,90208328,DYNAMIC PEOPLE LTD,70.98,11/11/2019
Delivery Units,Adults and Health,Other Agencies - Third Party P,90208330,DYNAMIC PEOPLE LTD,110.39,11/11/2019
Delivery Units,Adults and Health,Other Agencies - Third Party P,90208331,DYNAMIC PEOPLE LTD,276.09,11/11/2019
Delivery Units,Adults and Health,Other Agencies - Third Party P,90208332,DYNAMIC PEOPLE LTD,386.54,11/11/2019
Delivery Units,Adults and Health,Other Agencies - Third Party P,90208333,DYNAMIC PEOPLE LTD,331.24,11/11/2019
Delivery Units,Adults and Health,Other Agencies - Third Party P,90208336,DYNAMIC PEOPLE LTD,248.50,11/11/2019
Delivery Units,Adults and Health,Other Agencies - Third Party P,90208337,DYNAMIC PEOPLE LTD,110.39,11/11/2019
Delivery Units,Adults and Health,Other Agencies - Third Party P,90208338,DYNAMIC PEOPLE LTD,141.93,11/11/2019
Delivery Units,Adults and Health,Other Agencies - Third Party P,90208339,DYNAMIC PEOPLE LTD,220.78,11/11/2019
Delivery Units,Adults and Health,Other Agencies - Third Party P,90208340,DYNAMIC PEOPLE LTD,193.27,11/11/2019
Delivery Units,Adults and Health,Other Agencies - Third Party P,90208341,DYNAMIC PEOPLE LTD,165.69,11/11/2019
Delivery Units,Adults and Health,Other Agencies - Third Party P,90208342,DYNAMIC PEOPLE LTD,256.32,11/11/2019
Delivery Units,Adults and Health,Other Agencies - Third Party P,90208343,DYNAMIC PEOPLE LTD,138.04,11/11/2019
Delivery Units,Adults and Health,Other Agencies - Third Party P,90208346,DYNAMIC PEOPLE LTD,193.27,11/11/2019
Delivery Units,Adults and Health,Other Agencies - Third Party P,90208347,DYNAMIC PEOPLE LTD,82.80,11/11/2019
Delivery Units,Adults and Health,Other Agencies - Third Party P,90208348,DYNAMIC PEOPLE LTD,276.08,11/11/2019
Delivery Units,Adults and Health,Other Agencies - Third Party P,90208349,DYNAMIC PEOPLE LTD,169.56,11/11/2019
Delivery Units,Adults and Health,Other Agencies - Third Party P,90208350,DYNAMIC PEOPLE LTD,177.51,11/11/2019
Delivery Units,Adults and Health,Other Agencies - Third Party P,90208351,DYNAMIC PEOPLE LTD,299.74,11/11/2019
Delivery Units,Adults and Health,Other Agencies - Third Party P,90208352,DYNAMIC PEOPLE LTD,165.62,11/11/2019
Delivery Units,Adults and Health,Other Agencies - Third Party P,90208353,DYNAMIC PEOPLE LTD,82.81,11/11/2019
Delivery Units,Adults and Health,Other Agencies - Third Party P,90208354,DYNAMIC PEOPLE LTD,63.11,11/11/2019
Delivery Units,Adults and Health,Other Agencies - Third Party P,90208355,DYNAMIC PEOPLE LTD,110.39,11/11/2019
Delivery Units,Adults and Health,Other Agencies - Third Party P,90208357,DYNAMIC PEOPLE LTD,193.20,11/11/2019
Delivery Units,Adults and Health,Other Agencies - Third Party P,90208358,DYNAMIC PEOPLE LTD,276.01,11/11/2019
Delivery Units,Adults and Health,Other Agencies - Third Party P,90208359,DYNAMIC PEOPLE LTD,220.85,11/11/2019
Delivery Units,Adults and Health,Other Agencies - Third Party P,90208360,DYNAMIC PEOPLE LTD,82.81,11/11/2019
Delivery Units,Adults and Health,Other Agencies - Third Party P,90208363,DYNAMIC PEOPLE LTD,59.15,11/11/2019
Delivery Units,Adults and Health,Other Agencies - Third Party P,90208364,DYNAMIC PEOPLE LTD,209.05,11/11/2019
Delivery Units,Adults and Health,Other Agencies - Third Party P,90208365,DYNAMIC PEOPLE LTD,177.43,11/11/2019
Delivery Units,Adults and Health,Other Agencies - Third Party P,90208366,DYNAMIC PEOPLE LTD,354.90,11/11/2019
Delivery Units,Adults and Health,Other Agencies - Third Party P,90208367,DYNAMIC PEOPLE LTD,31.54,11/11/2019
Delivery Units,Adults and Health,Other Agencies - Third Party P,90208368,DYNAMIC PEOPLE LTD,98.59,11/11/2019
Delivery Units,Adults and Health,Other Agencies - Third Party P,90208369,DYNAMIC PEOPLE LTD,82.81,11/11/2019
Delivery Units,Adults and Health,Other Agencies - Third Party P,90208370,DYNAMIC PEOPLE LTD,82.81,11/11/2019
Delivery Units,Adults and Health,Other Agencies - Third Party P,90208373,DYNAMIC PEOPLE LTD,59.16,11/11/2019
Delivery Units,Adults and Health,Other Agencies - Third Party P,90208374,DYNAMIC PEOPLE LTD,70.96,11/11/2019
Delivery Units,Adults and Health,Other Agencies - Third Party P,90208375,DYNAMIC PEOPLE LTD,303.59,11/11/2019
Delivery Units,Adults and Health,Other Agencies - Third Party P,90208376,DYNAMIC PEOPLE LTD,165.62,11/11/2019
Delivery Units,Adults and Health,Other Agencies - Third Party P,90208378,DYNAMIC PEOPLE LTD,47.31,11/11/2019
Delivery Units,Adults and Health,Other Agencies - Third Party P,90208379,DYNAMIC PEOPLE LTD,51.25,11/11/2019
Delivery Units,Adults and Health,Other Agencies - Third Party P,90208380,DYNAMIC PEOPLE LTD,55.23,11/11/2019
Delivery Units,Adults and Health,Other Agencies - Third Party P,90208382,DYNAMIC PEOPLE LTD,260.24,11/11/2019
Delivery Units,Adults and Health,Other Agencies - Third Party P,90208384,DYNAMIC PEOPLE LTD,138.04,11/11/2019
Delivery Units,Adults and Health,Other Agencies - Third Party P,90208385,DYNAMIC PEOPLE LTD,197.20,11/11/2019
Delivery Units,Adults and Health,Other Agencies - Third Party P,90208386,DYNAMIC PEOPLE LTD,110.46,11/11/2019
Delivery Units,Adults and Health,Other Agencies - Third Party P,90208388,DYNAMIC PEOPLE LTD,31.54,11/11/2019
Delivery Units,Adults and Health,Other Agencies - Third Party P,90208389,DYNAMIC PEOPLE LTD,205.07,11/11/2019
Delivery Units,Adults and Health,Other Agencies - Third Party P,90208390,DYNAMIC PEOPLE LTD,134.09,11/11/2019
Delivery Units,Adults and Health,Other Agencies - Third Party P,90208392,DYNAMIC PEOPLE LTD,126.16,11/11/2019
Delivery Units,Adults and Health,Other Agencies - Third Party P,90208393,DYNAMIC PEOPLE LTD,236.59,11/11/2019
Delivery Units,Adults and Health,Other Agencies - Third Party P,90208394,DYNAMIC PEOPLE LTD,122.26,11/11/2019
Delivery Units,Adults and Health,Other Agencies - Third Party P,90208395,DYNAMIC PEOPLE LTD,275.98,11/11/2019
Delivery Units,Adults and Health,Other Agencies - Third Party P,90208396,DYNAMIC PEOPLE LTD,244.48,11/11/2019
Delivery Units,Adults and Health,Other Agencies - Third Party P,90208397,DYNAMIC PEOPLE LTD,59.15,11/11/2019
Delivery Units,Adults and Health,Other Agencies - Third Party P,90208398,DYNAMIC PEOPLE LTD,35.49,11/11/2019
Delivery Units,Adults and Health,Other Agencies - Third Party P,90208399,DYNAMIC PEOPLE LTD,161.67,11/11/2019
Delivery Units,Adults and Health,Other Agencies - Third Party P,90208401,DYNAMIC PEOPLE LTD,114.33,11/11/2019
Delivery Units,Adults and Health,Other Agencies - Third Party P,90208402,DYNAMIC PEOPLE LTD,35.49,11/11/2019
Delivery Units,Adults and Health,Other Agencies - Third Party P,90208404,DYNAMIC PEOPLE LTD,78.85,11/11/2019
Delivery Units,Adults and Health,Other Agencies - Third Party P,90208407,DYNAMIC PEOPLE LTD,35.49,11/11/2019
Delivery Units,Adults and Health,Other Agencies - Third Party P,90208408,DYNAMIC PEOPLE LTD,27.61,11/11/2019
Delivery Units,Adults and Health,Other Agencies - Third Party P,90208409,DYNAMIC PEOPLE LTD,220.85,11/11/2019
Delivery Units,Adults and Health,Other Agencies - Third Party P,90208411,DYNAMIC PEOPLE LTD,106.45,11/11/2019
Delivery Units,Adults and Health,Other Agencies - Third Party P,90208412,DYNAMIC PEOPLE LTD,82.81,11/11/2019
Delivery Units,Adults and Health,Other Agencies - Third Party P,90208414,DYNAMIC PEOPLE LTD,141.97,11/11/2019
Delivery Units,Adults and Health,Other Agencies - Third Party P,90208415,DYNAMIC PEOPLE LTD,193.27,11/11/2019
Delivery Units,Adults and Health,Other Agencies - Third Party P,90208416,DYNAMIC PEOPLE LTD,138.04,11/11/2019
Delivery Units,Adults and Health,Other Agencies - Third Party P,90208417,DYNAMIC PEOPLE LTD,55.23,11/11/2019
Delivery Units,Adults and Health,Other Agencies - Third Party P,90208419,DYNAMIC PEOPLE LTD,31.56,11/11/2019
Delivery Units,Adults and Health,Other Agencies - Third Party P,90208423,DYNAMIC PEOPLE LTD,299.63,11/11/2019
Delivery Units,Adults and Health,Other Agencies - Third Party P,90208424,DYNAMIC PEOPLE LTD,256.31,11/11/2019
Delivery Units,Adults and Health,Other Agencies - Third Party P,90208426,DYNAMIC PEOPLE LTD,71.00,11/11/2019
Delivery Units,Adults and Health,Other Agencies - Third Party P,90208427,DYNAMIC PEOPLE LTD,27.60,11/11/2019
Delivery Units,Adults and Health,Other Agencies - Third Party P,90208429,DYNAMIC PEOPLE LTD,319.41,11/11/2019
Delivery Units,Adults and Health,Other Agencies - Third Party P,90208431,DYNAMIC PEOPLE LTD,205.01,11/11/2019
Delivery Units,Adults and Health,Other Agencies - Third Party P,90208432,DYNAMIC PEOPLE LTD,47.31,11/11/2019
Delivery Units,Adults and Health,Other Agencies - Third Party P,90208433,DYNAMIC PEOPLE LTD,264.18,11/11/2019
Delivery Units,Adults and Health,Other Agencies - Third Party P,90208435,DYNAMIC PEOPLE LTD,493.04,11/11/2019
Delivery Units,Adults and Health,Other Agencies - Third Party P,90208436,DYNAMIC PEOPLE LTD,193.27,11/11/2019
Delivery Units,Adults and Health,Other Agencies - Third Party P,90208437,DYNAMIC PEOPLE LTD,138.04,11/11/2019
Delivery Units,Adults and Health,Other Agencies - Third Party P,90208438,DYNAMIC PEOPLE LTD,15.78,11/11/2019
Delivery Units,Adults and Health,Other Agencies - Third Party P,90208439,DYNAMIC PEOPLE LTD,74.95,11/11/2019
Delivery Units,Adults and Health,Other Agencies - Third Party P,90208441,DYNAMIC PEOPLE LTD,47.32,11/11/2019
Delivery Units,Adults and Health,Other Agencies - Third Party P,90208443,DYNAMIC PEOPLE LTD,90.73,11/11/2019
Delivery Units,Adults and Health,Other Agencies - Third Party P,90208444,DYNAMIC PEOPLE LTD,78.87,11/11/2019
Delivery Units,Adults and Health,Other Agencies - Third Party P,90208445,DYNAMIC PEOPLE LTD,110.39,11/11/2019
Delivery Units,Adults and Health,Other Agencies - Third Party P,90208448,DYNAMIC PEOPLE LTD,138.04,11/11/2019
Delivery Units,Adults and Health,Other Agencies - Third Party P,90208449,DYNAMIC PEOPLE LTD,248.43,11/11/2019
Delivery Units,Adults and Health,Other Agencies - Third Party P,90208450,DYNAMIC PEOPLE LTD,59.15,11/11/2019
Delivery Units,Adults and Health,Other Agencies - Third Party P,90208452,DYNAMIC PEOPLE LTD,193.20,11/11/2019
Delivery Units,Adults and Health,Other Agencies - Third Party P,90208453,DYNAMIC PEOPLE LTD,153.81,11/11/2019
Delivery Units,Adults and Health,Other Agencies - Third Party P,90208454,DYNAMIC PEOPLE LTD,82.79,11/11/2019
Delivery Units,Adults and Health,Other Agencies - Third Party P,90208455,DYNAMIC PEOPLE LTD,276.08,11/11/2019
Delivery Units,Adults and Health,Other Agencies - Third Party P,90208458,DYNAMIC PEOPLE LTD,248.50,11/11/2019
Delivery Units,Adults and Health,Other Agencies - Third Party P,90208459,DYNAMIC PEOPLE LTD,165.62,11/11/2019
Delivery Units,Adults and Health,Other Agencies - Third Party P,90208460,DYNAMIC PEOPLE LTD,138.04,11/11/2019
Delivery Units,Adults and Health,Other Agencies - Third Party P,90208462,DYNAMIC PEOPLE LTD,276.08,11/11/2019
Delivery Units,Adults and Health,Other Agencies - Third Party P,90208463,DYNAMIC PEOPLE LTD,138.04,11/11/2019
Delivery Units,Adults and Health,Other Agencies - Third Party P,90208464,DYNAMIC PEOPLE LTD,248.43,11/11/2019
Delivery Units,Adults and Health,Other Agencies - Third Party P,90208466,DYNAMIC PEOPLE LTD,165.62,11/11/2019
Delivery Units,Adults and Health,Other Agencies - Third Party P,90208467,DYNAMIC PEOPLE LTD,276.09,11/11/2019
Delivery Units,Adults and Health,Other Agencies - Third Party P,90208468,DYNAMIC PEOPLE LTD,331.24,11/11/2019
Delivery Units,Adults and Health,Other Agencies - Third Party P,90208470,DYNAMIC PEOPLE LTD,248.50,11/11/2019
Delivery Units,Adults and Health,Other Agencies - Third Party P,90208471,DYNAMIC PEOPLE LTD,110.39,11/11/2019
Delivery Units,Adults and Health,Other Agencies - Third Party P,90208472,DYNAMIC PEOPLE LTD,141.93,11/11/2019
Delivery Units,Adults and Health,Other Agencies - Third Party P,90208473,DYNAMIC PEOPLE LTD,220.78,11/11/2019
Delivery Units,Adults and Health,Other Agencies - Third Party P,90208474,DYNAMIC PEOPLE LTD,193.27,11/11/2019
Delivery Units,Adults and Health,Other Agencies - Third Party P,90208475,DYNAMIC PEOPLE LTD,165.69,11/11/2019
Delivery Units,Adults and Health,Other Agencies - Third Party P,90208476,DYNAMIC PEOPLE LTD,248.43,11/11/2019
Delivery Units,Adults and Health,Other Agencies - Third Party P,90208477,DYNAMIC PEOPLE LTD,138.04,11/11/2019
Delivery Units,Adults and Health,Other Agencies - Third Party P,90208479,DYNAMIC PEOPLE LTD,193.27,11/11/2019
Delivery Units,Adults and Health,Other Agencies - Third Party P,90208480,DYNAMIC PEOPLE LTD,193.27,11/11/2019
Delivery Units,Adults and Health,Other Agencies - Third Party P,90208482,DYNAMIC PEOPLE LTD,193.20,11/11/2019
Delivery Units,Adults and Health,Other Agencies - Third Party P,90208483,DYNAMIC PEOPLE LTD,276.08,11/11/2019
Delivery Units,Adults and Health,Other Agencies - Third Party P,90208484,DYNAMIC PEOPLE LTD,169.56,11/11/2019
Delivery Units,Adults and Health,Other Agencies - Third Party P,90208485,DYNAMIC PEOPLE LTD,177.51,11/11/2019
Delivery Units,Adults and Health,Other Agencies - Third Party P,90208486,DYNAMIC PEOPLE LTD,165.62,11/11/2019
Delivery Units,Adults and Health,Other Agencies - Third Party P,90208487,DYNAMIC PEOPLE LTD,82.81,11/11/2019
Delivery Units,Adults and Health,Other Agencies - Third Party P,90208488,DYNAMIC PEOPLE LTD,63.11,11/11/2019
Delivery Units,Adults and Health,Other Agencies - Third Party P,90208489,DYNAMIC PEOPLE LTD,110.39,11/11/2019
Delivery Units,Adults and Health,Other Agencies - Third Party P,90208490,DYNAMIC PEOPLE LTD,497.00,11/11/2019
Delivery Units,Adults and Health,Other Agencies - Third Party P,90208491,DYNAMIC PEOPLE LTD,193.27,11/11/2019
Delivery Units,Adults and Health,Other Agencies - Third Party P,90208493,DYNAMIC PEOPLE LTD,193.20,11/11/2019
Delivery Units,Adults and Health,Other Agencies - Third Party P,90208495,DYNAMIC PEOPLE LTD,276.01,11/11/2019
Delivery Units,Adults and Health,Other Agencies - Third Party P,90208496,DYNAMIC PEOPLE LTD,220.85,11/11/2019
Delivery Units,Adults and Health,Other Agencies - Third Party P,90208497,DYNAMIC PEOPLE LTD,82.81,11/11/2019
Delivery Units,Adults and Health,Other Agencies - Third Party P,90208500,DYNAMIC PEOPLE LTD,67.02,11/11/2019
Delivery Units,Adults and Health,Other Agencies - Third Party P,90208501,DYNAMIC PEOPLE LTD,193.27,11/11/2019
Delivery Units,Adults and Health,Other Agencies - Third Party P,90208502,DYNAMIC PEOPLE LTD,347.01,11/11/2019
Delivery Units,Adults and Health,Other Agencies - Third Party P,90208503,DYNAMIC PEOPLE LTD,31.54,11/11/2019
Delivery Units,Adults and Health,Other Agencies - Third Party P,90208504,DYNAMIC PEOPLE LTD,78.87,11/11/2019
Delivery Units,Adults and Health,Other Agencies - Third Party P,90208505,DYNAMIC PEOPLE LTD,86.77,11/11/2019
Delivery Units,Adults and Health,Other Agencies - Third Party P,90208506,DYNAMIC PEOPLE LTD,193.27,11/11/2019
Delivery Units,Adults and Health,Other Agencies - Third Party P,90208507,DYNAMIC PEOPLE LTD,70.98,11/11/2019
Delivery Units,Adults and Health,Other Agencies - Third Party P,90208509,DYNAMIC PEOPLE LTD,82.81,11/11/2019
Delivery Units,Adults and Health,Other Agencies - Third Party P,90208510,DYNAMIC PEOPLE LTD,94.62,11/11/2019
Delivery Units,Adults and Health,Other Agencies - Third Party P,90208512,DYNAMIC PEOPLE LTD,59.16,11/11/2019
Delivery Units,Adults and Health,Other Agencies - Third Party P,90208513,DYNAMIC PEOPLE LTD,70.96,11/11/2019
Delivery Units,Adults and Health,Other Agencies - Third Party P,90208514,DYNAMIC PEOPLE LTD,303.59,11/11/2019
Delivery Units,Adults and Health,Other Agencies - Third Party P,90208516,DYNAMIC PEOPLE LTD,138.04,11/11/2019
Delivery Units,Adults and Health,Other Agencies - Third Party P,90208517,DYNAMIC PEOPLE LTD,82.81,11/11/2019
Delivery Units,Adults and Health,Other Agencies - Third Party P,90208519,DYNAMIC PEOPLE LTD,51.25,11/11/2019
Delivery Units,Adults and Health,Other Agencies - Third Party P,90208520,DYNAMIC PEOPLE LTD,55.23,11/11/2019
Delivery Units,Adults and Health,Other Agencies - Third Party P,90208523,DYNAMIC PEOPLE LTD,138.04,11/11/2019
Delivery Units,Adults and Health,Other Agencies - Third Party P,90208524,DYNAMIC PEOPLE LTD,110.46,11/11/2019
Delivery Units,Adults and Health,Other Agencies - Third Party P,90208525,DYNAMIC PEOPLE LTD,110.46,11/11/2019
Delivery Units,Adults and Health,Other Agencies - Third Party P,90208527,DYNAMIC PEOPLE LTD,31.54,11/11/2019
Delivery Units,Adults and Health,Other Agencies - Third Party P,90208528,DYNAMIC PEOPLE LTD,220.85,11/11/2019
Delivery Units,Adults and Health,Other Agencies - Third Party P,90208529,DYNAMIC PEOPLE LTD,126.21,11/11/2019
Delivery Units,Adults and Health,Other Agencies - Third Party P,90208531,DYNAMIC PEOPLE LTD,118.28,11/11/2019
Delivery Units,Adults and Health,Other Agencies - Third Party P,90208532,DYNAMIC PEOPLE LTD,122.26,11/11/2019
Delivery Units,Adults and Health,Other Agencies - Third Party P,90208533,DYNAMIC PEOPLE LTD,358.77,11/11/2019
Delivery Units,Adults and Health,Other Agencies - Third Party P,90208534,DYNAMIC PEOPLE LTD,240.55,11/11/2019
Delivery Units,Adults and Health,Other Agencies - Third Party P,90208535,DYNAMIC PEOPLE LTD,59.15,11/11/2019
Delivery Units,Adults and Health,Other Agencies - Third Party P,90208536,DYNAMIC PEOPLE LTD,23.66,11/11/2019
Delivery Units,Adults and Health,Other Agencies - Third Party P,90208537,DYNAMIC PEOPLE LTD,35.49,11/11/2019
Delivery Units,Adults and Health,Other Agencies - Third Party P,90208538,DYNAMIC PEOPLE LTD,98.56,11/11/2019
Delivery Units,Adults and Health,Other Agencies - Third Party P,90208540,DYNAMIC PEOPLE LTD,114.33,11/11/2019
Delivery Units,Adults and Health,Other Agencies - Third Party P,90208541,DYNAMIC PEOPLE LTD,386.54,11/11/2019
Delivery Units,Adults and Health,Other Agencies - Third Party P,90208543,DYNAMIC PEOPLE LTD,78.85,11/11/2019
Delivery Units,Adults and Health,Other Agencies - Third Party P,90208547,DYNAMIC PEOPLE LTD,35.49,11/11/2019
Delivery Units,Adults and Health,Other Agencies - Third Party P,90208548,DYNAMIC PEOPLE LTD,23.67,11/11/2019
Delivery Units,Adults and Health,Other Agencies - Third Party P,90208549,DYNAMIC PEOPLE LTD,220.85,11/11/2019
Delivery Units,Adults and Health,Other Agencies - Third Party P,90208551,DYNAMIC PEOPLE LTD,98.57,11/11/2019
Delivery Units,Adults and Health,Other Agencies - Third Party P,90208552,DYNAMIC PEOPLE LTD,70.98,11/11/2019
Delivery Units,Adults and Health,Other Agencies - Third Party P,90208554,DYNAMIC PEOPLE LTD,240.53,11/11/2019
Delivery Units,Adults and Health,Other Agencies - Third Party P,90208555,DYNAMIC PEOPLE LTD,193.27,11/11/2019
Delivery Units,Adults and Health,Other Agencies - Third Party P,90208556,DYNAMIC PEOPLE LTD,138.03,11/11/2019
Delivery Units,Adults and Health,Other Agencies - Third Party P,90208557,DYNAMIC PEOPLE LTD,55.23,11/11/2019
Delivery Units,Adults and Health,Other Agencies - Third Party P,90208559,DYNAMIC PEOPLE LTD,39.45,11/11/2019
Delivery Units,Adults and Health,Other Agencies - Third Party P,90208563,DYNAMIC PEOPLE LTD,331.18,11/11/2019
Delivery Units,Adults and Health,Other Agencies - Third Party P,90208564,DYNAMIC PEOPLE LTD,19.72,11/11/2019
Delivery Units,Adults and Health,Other Agencies - Third Party P,90208565,DYNAMIC PEOPLE LTD,228.70,11/11/2019
Delivery Units,Adults and Health,Other Agencies - Third Party P,90208567,DYNAMIC PEOPLE LTD,86.75,11/11/2019
Delivery Units,Adults and Health,Other Agencies - Third Party P,90208568,DYNAMIC PEOPLE LTD,35.49,11/11/2019
Delivery Units,Adults and Health,Other Agencies - Third Party P,90208569,DYNAMIC PEOPLE LTD,141.94,11/11/2019
Delivery Units,Adults and Health,Other Agencies - Third Party P,90208570,DYNAMIC PEOPLE LTD,63.10,11/11/2019
Delivery Units,Adults and Health,Other Agencies - Third Party P,90208572,DYNAMIC PEOPLE LTD,208.95,11/11/2019
Delivery Units,Adults and Health,Other Agencies - Third Party P,90208573,DYNAMIC PEOPLE LTD,47.31,11/11/2019
Delivery Units,Adults and Health,Other Agencies - Third Party P,90208574,DYNAMIC PEOPLE LTD,299.74,11/11/2019
Delivery Units,Adults and Health,Other Agencies - Third Party P,90208575,DYNAMIC PEOPLE LTD,268.12,11/11/2019
Delivery Units,Adults and Health,Other Agencies - Third Party P,90208577,DYNAMIC PEOPLE LTD,138.03,11/11/2019
Delivery Units,Adults and Health,Other Agencies - Third Party P,90208578,DYNAMIC PEOPLE LTD,19.72,11/11/2019
Delivery Units,Adults and Health,Other Agencies - Third Party P,90208579,DYNAMIC PEOPLE LTD,78.90,11/11/2019
Delivery Units,Adults and Health,Other Agencies - Third Party P,90208580,DYNAMIC PEOPLE LTD,47.32,11/11/2019
Delivery Units,Adults and Health,Other Agencies - Third Party P,90208582,DYNAMIC PEOPLE LTD,90.73,11/11/2019
Delivery Units,Adults and Health,Other Agencies - Third Party P,90208583,DYNAMIC PEOPLE LTD,35.49,11/11/2019
Delivery Units,Adults and Health,Other Agencies - Third Party P,90208584,DYNAMIC PEOPLE LTD,70.98,11/11/2019
Delivery Units,Adults and Health,Other Agencies - Third Party P,90208585,DYNAMIC PEOPLE LTD,94.62,11/11/2019
Delivery Units,Adults and Health,Other Agencies - Third Party P,90210620,DYNAMIC PEOPLE LTD,138.04,18/11/2019
Delivery Units,Adults and Health,Other Agencies - Third Party P,90210621,DYNAMIC PEOPLE LTD,248.43,18/11/2019
Delivery Units,Adults and Health,Other Agencies - Third Party P,90210623,DYNAMIC PEOPLE LTD,153.81,18/11/2019
Delivery Units,Adults and Health,Other Agencies - Third Party P,90210624,DYNAMIC PEOPLE LTD,193.27,18/11/2019
Delivery Units,Adults and Health,Other Agencies - Third Party P,90210625,DYNAMIC PEOPLE LTD,276.08,18/11/2019
Delivery Units,Adults and Health,Other Agencies - Third Party P,90210626,DYNAMIC PEOPLE LTD,82.81,18/11/2019
Delivery Units,Adults and Health,Other Agencies - Third Party P,90210627,DYNAMIC PEOPLE LTD,94.62,18/11/2019
Delivery Units,Adults and Health,Other Agencies - Third Party P,90210629,DYNAMIC PEOPLE LTD,248.50,18/11/2019
Delivery Units,Adults and Health,Other Agencies - Third Party P,90210630,DYNAMIC PEOPLE LTD,165.62,18/11/2019
Delivery Units,Adults and Health,Other Agencies - Third Party P,90210631,DYNAMIC PEOPLE LTD,138.04,18/11/2019
Delivery Units,Adults and Health,Other Agencies - Third Party P,90210632,DYNAMIC PEOPLE LTD,276.08,18/11/2019
Delivery Units,Adults and Health,Other Agencies - Third Party P,90210633,DYNAMIC PEOPLE LTD,220.85,18/11/2019
Delivery Units,Adults and Health,Other Agencies - Third Party P,90210634,DYNAMIC PEOPLE LTD,138.04,18/11/2019
Delivery Units,Adults and Health,Other Agencies - Third Party P,90210635,DYNAMIC PEOPLE LTD,276.09,18/11/2019
Delivery Units,Adults and Health,Other Agencies - Third Party P,90210636,DYNAMIC PEOPLE LTD,331.24,18/11/2019
Delivery Units,Adults and Health,Other Agencies - Third Party P,90210638,DYNAMIC PEOPLE LTD,110.39,18/11/2019
Delivery Units,Adults and Health,Other Agencies - Third Party P,90210639,DYNAMIC PEOPLE LTD,141.93,18/11/2019
Delivery Units,Adults and Health,Other Agencies - Third Party P,90210640,DYNAMIC PEOPLE LTD,82.81,18/11/2019
Delivery Units,Adults and Health,Other Agencies - Third Party P,90210641,DYNAMIC PEOPLE LTD,220.78,18/11/2019
Delivery Units,Adults and Health,Other Agencies - Third Party P,90210642,DYNAMIC PEOPLE LTD,303.66,18/11/2019
Delivery Units,Adults and Health,Other Agencies - Third Party P,90210643,DYNAMIC PEOPLE LTD,193.27,18/11/2019
Delivery Units,Adults and Health,Other Agencies - Third Party P,90210644,DYNAMIC PEOPLE LTD,193.27,18/11/2019
Delivery Units,Adults and Health,Other Agencies - Third Party P,90210645,DYNAMIC PEOPLE LTD,248.43,18/11/2019
Delivery Units,Adults and Health,Other Agencies - Third Party P,90210646,DYNAMIC PEOPLE LTD,55.23,18/11/2019
Delivery Units,Adults and Health,Other Agencies - Third Party P,90210648,DYNAMIC PEOPLE LTD,331.28,18/11/2019
Delivery Units,Adults and Health,Other Agencies - Third Party P,90210649,DYNAMIC PEOPLE LTD,193.27,18/11/2019
Delivery Units,Adults and Health,Other Agencies - Third Party P,90210650,DYNAMIC PEOPLE LTD,193.27,18/11/2019
Delivery Units,Adults and Health,Other Agencies - Third Party P,90210652,DYNAMIC PEOPLE LTD,193.20,18/11/2019
Delivery Units,Adults and Health,Other Agencies - Third Party P,90210653,DYNAMIC PEOPLE LTD,220.85,18/11/2019
Delivery Units,Adults and Health,Other Agencies - Third Party P,90210654,DYNAMIC PEOPLE LTD,59.15,18/11/2019
Delivery Units,Adults and Health,Other Agencies - Third Party P,90210655,DYNAMIC PEOPLE LTD,220.85,18/11/2019
Delivery Units,Adults and Health,Other Agencies - Third Party P,90210656,DYNAMIC PEOPLE LTD,276.08,18/11/2019
Delivery Units,Adults and Health,Other Agencies - Third Party P,90210657,DYNAMIC PEOPLE LTD,177.51,18/11/2019
Delivery Units,Adults and Health,Other Agencies - Third Party P,90210658,DYNAMIC PEOPLE LTD,47.31,18/11/2019
Delivery Units,Adults and Health,Other Agencies - Third Party P,90210659,DYNAMIC PEOPLE LTD,165.62,18/11/2019
Delivery Units,Adults and Health,Other Agencies - Third Party P,90210660,DYNAMIC PEOPLE LTD,110.39,18/11/2019
Delivery Units,Adults and Health,Other Agencies - Third Party P,90210661,DYNAMIC PEOPLE LTD,497.00,18/11/2019
Delivery Units,Adults and Health,Other Agencies - Third Party P,90210664,DYNAMIC PEOPLE LTD,276.01,18/11/2019
Delivery Units,Adults and Health,Other Agencies - Third Party P,90210665,DYNAMIC PEOPLE LTD,220.85,18/11/2019
Delivery Units,Adults and Health,Other Agencies - Third Party P,90210666,DYNAMIC PEOPLE LTD,82.81,18/11/2019
Delivery Units,Adults and Health,Other Agencies - Third Party P,90210667,DYNAMIC PEOPLE LTD,35.49,18/11/2019
Delivery Units,Adults and Health,Other Agencies - Third Party P,90210669,DYNAMIC PEOPLE LTD,398.32,18/11/2019
Delivery Units,Adults and Health,Other Agencies - Third Party P,90210672,DYNAMIC PEOPLE LTD,70.96,18/11/2019
Delivery Units,Adults and Health,Other Agencies - Third Party P,90210673,DYNAMIC PEOPLE LTD,59.15,18/11/2019
Delivery Units,Adults and Health,Other Agencies - Third Party P,90210674,DYNAMIC PEOPLE LTD,201.16,18/11/2019
Delivery Units,Adults and Health,Other Agencies - Third Party P,90210675,DYNAMIC PEOPLE LTD,193.20,18/11/2019
Delivery Units,Adults and Health,Other Agencies - Third Party P,90210676,DYNAMIC PEOPLE LTD,350.95,18/11/2019
Delivery Units,Adults and Health,Other Agencies - Third Party P,90210677,DYNAMIC PEOPLE LTD,31.54,18/11/2019
Delivery Units,Adults and Health,Other Agencies - Third Party P,90210678,DYNAMIC PEOPLE LTD,82.81,18/11/2019
Delivery Units,Adults and Health,Other Agencies - Third Party P,90210679,DYNAMIC PEOPLE LTD,94.65,18/11/2019
Delivery Units,Adults and Health,Other Agencies - Third Party P,90210680,DYNAMIC PEOPLE LTD,63.08,18/11/2019
Delivery Units,Adults and Health,Other Agencies - Third Party P,90210681,DYNAMIC PEOPLE LTD,82.81,18/11/2019
Delivery Units,Adults and Health,Other Agencies - Third Party P,90210685,DYNAMIC PEOPLE LTD,59.16,18/11/2019
Delivery Units,Adults and Health,Other Agencies - Third Party P,90210686,DYNAMIC PEOPLE LTD,31.54,18/11/2019
Delivery Units,Adults and Health,Other Agencies - Third Party P,90210687,DYNAMIC PEOPLE LTD,303.59,18/11/2019
Delivery Units,Adults and Health,Other Agencies - Third Party P,90210689,DYNAMIC PEOPLE LTD,82.81,18/11/2019
Delivery Units,Adults and Health,Other Agencies - Third Party P,90210691,DYNAMIC PEOPLE LTD,31.54,18/11/2019
Delivery Units,Adults and Health,Other Agencies - Third Party P,90210692,DYNAMIC PEOPLE LTD,138.04,18/11/2019
Delivery Units,Adults and Health,Other Agencies - Third Party P,90210694,DYNAMIC PEOPLE LTD,51.25,18/11/2019
Delivery Units,Adults and Health,Other Agencies - Third Party P,90210695,DYNAMIC PEOPLE LTD,55.23,18/11/2019
Delivery Units,Adults and Health,Other Agencies - Third Party P,90210698,DYNAMIC PEOPLE LTD,138.04,18/11/2019
Delivery Units,Adults and Health,Other Agencies - Third Party P,90210699,DYNAMIC PEOPLE LTD,110.46,18/11/2019
Delivery Units,Adults and Health,Other Agencies - Third Party P,90210700,DYNAMIC PEOPLE LTD,114.40,18/11/2019
Delivery Units,Adults and Health,Other Agencies - Third Party P,90210701,DYNAMIC PEOPLE LTD,27.60,18/11/2019
Delivery Units,Adults and Health,Other Agencies - Third Party P,90210703,DYNAMIC PEOPLE LTD,31.54,18/11/2019
Delivery Units,Adults and Health,Other Agencies - Third Party P,90210704,DYNAMIC PEOPLE LTD,149.86,18/11/2019
Delivery Units,Adults and Health,Other Agencies - Third Party P,90210706,DYNAMIC PEOPLE LTD,130.10,18/11/2019
Delivery Units,Adults and Health,Other Agencies - Third Party P,90210707,DYNAMIC PEOPLE LTD,236.59,18/11/2019
Delivery Units,Adults and Health,Other Agencies - Third Party P,90210708,DYNAMIC PEOPLE LTD,110.43,18/11/2019
Delivery Units,Adults and Health,Other Agencies - Third Party P,90210709,DYNAMIC PEOPLE LTD,358.77,18/11/2019
Delivery Units,Adults and Health,Other Agencies - Third Party P,90210710,DYNAMIC PEOPLE LTD,244.48,18/11/2019
Delivery Units,Adults and Health,Other Agencies - Third Party P,90210711,DYNAMIC PEOPLE LTD,59.15,18/11/2019
Delivery Units,Adults and Health,Other Agencies - Third Party P,90210712,DYNAMIC PEOPLE LTD,35.49,18/11/2019
Delivery Units,Adults and Health,Other Agencies - Third Party P,90210714,DYNAMIC PEOPLE LTD,78.85,18/11/2019
Delivery Units,Adults and Health,Other Agencies - Third Party P,90210715,DYNAMIC PEOPLE LTD,161.68,18/11/2019
Delivery Units,Adults and Health,Other Agencies - Third Party P,90210716,DYNAMIC PEOPLE LTD,110.39,18/11/2019
Delivery Units,Adults and Health,Other Agencies - Third Party P,90210717,DYNAMIC PEOPLE LTD,386.54,18/11/2019
Delivery Units,Adults and Health,Other Agencies - Third Party P,90210719,DYNAMIC PEOPLE LTD,74.91,18/11/2019
Delivery Units,Adults and Health,Other Agencies - Third Party P,90210722,DYNAMIC PEOPLE LTD,35.49,18/11/2019
Delivery Units,Adults and Health,Other Agencies - Third Party P,90210723,DYNAMIC PEOPLE LTD,7.89,18/11/2019
Delivery Units,Adults and Health,Other Agencies - Third Party P,90210724,DYNAMIC PEOPLE LTD,220.85,18/11/2019
Delivery Units,Adults and Health,Other Agencies - Third Party P,90210726,DYNAMIC PEOPLE LTD,240.60,18/11/2019
Delivery Units,Adults and Health,Other Agencies - Third Party P,90210727,DYNAMIC PEOPLE LTD,114.33,18/11/2019
Delivery Units,Adults and Health,Other Agencies - Third Party P,90210729,DYNAMIC PEOPLE LTD,118.29,18/11/2019
Delivery Units,Adults and Health,Other Agencies - Third Party P,90210730,DYNAMIC PEOPLE LTD,102.57,18/11/2019
Delivery Units,Adults and Health,Other Agencies - Third Party P,90210731,DYNAMIC PEOPLE LTD,63.11,18/11/2019
Delivery Units,Adults and Health,Other Agencies - Third Party P,90210732,DYNAMIC PEOPLE LTD,122.26,18/11/2019
Delivery Units,Adults and Health,Other Agencies - Third Party P,90210734,DYNAMIC PEOPLE LTD,39.45,18/11/2019
Delivery Units,Adults and Health,Other Agencies - Third Party P,90210738,DYNAMIC PEOPLE LTD,212.91,18/11/2019
Delivery Units,Adults and Health,Other Agencies - Third Party P,90210740,DYNAMIC PEOPLE LTD,86.75,18/11/2019
Delivery Units,Adults and Health,Other Agencies - Third Party P,90210741,DYNAMIC PEOPLE LTD,82.81,18/11/2019
Delivery Units,Adults and Health,Other Agencies - Third Party P,90210742,DYNAMIC PEOPLE LTD,23.66,18/11/2019
Delivery Units,Adults and Health,Other Agencies - Third Party P,90210743,DYNAMIC PEOPLE LTD,78.85,18/11/2019
Delivery Units,Adults and Health,Other Agencies - Third Party P,90210745,DYNAMIC PEOPLE LTD,169.56,18/11/2019
Delivery Units,Adults and Health,Other Agencies - Third Party P,90210746,DYNAMIC PEOPLE LTD,299.74,18/11/2019
Delivery Units,Adults and Health,Other Agencies - Third Party P,90210747,DYNAMIC PEOPLE LTD,216.86,18/11/2019
Delivery Units,Adults and Health,Other Agencies - Third Party P,90210748,DYNAMIC PEOPLE LTD,82.81,18/11/2019
Delivery Units,Adults and Health,Other Agencies - Third Party P,90210749,DYNAMIC PEOPLE LTD,63.11,18/11/2019
Delivery Units,Adults and Health,Other Agencies - Third Party P,90210751,DYNAMIC PEOPLE LTD,193.27,18/11/2019
Delivery Units,Adults and Health,Other Agencies - Third Party P,90210752,DYNAMIC PEOPLE LTD,138.04,18/11/2019
Delivery Units,Adults and Health,Other Agencies - Third Party P,90210753,DYNAMIC PEOPLE LTD,15.78,18/11/2019
Delivery Units,Adults and Health,Other Agencies - Third Party P,90210754,DYNAMIC PEOPLE LTD,78.90,18/11/2019
Delivery Units,Adults and Health,Other Agencies - Third Party P,90210755,DYNAMIC PEOPLE LTD,193.20,18/11/2019
Delivery Units,Adults and Health,Other Agencies - Third Party P,90210756,DYNAMIC PEOPLE LTD,35.49,18/11/2019
Delivery Units,Adults and Health,Other Agencies - Third Party P,90210758,DYNAMIC PEOPLE LTD,86.79,18/11/2019
Delivery Units,Adults and Health,Other Agencies - Third Party P,90210759,DYNAMIC PEOPLE LTD,82.81,18/11/2019
Delivery Units,Adults and Health,Other Agencies - Third Party P,90210760,DYNAMIC PEOPLE LTD,110.39,18/11/2019
Delivery Units,Adults and Health,Other Agencies - Third Party P,90212332,DYNAMIC PEOPLE LTD,138.04,25/11/2019
Delivery Units,Adults and Health,Other Agencies - Third Party P,90212333,DYNAMIC PEOPLE LTD,248.43,25/11/2019
Delivery Units,Adults and Health,Other Agencies - Third Party P,90212335,DYNAMIC PEOPLE LTD,193.20,25/11/2019
Delivery Units,Adults and Health,Other Agencies - Third Party P,90212336,DYNAMIC PEOPLE LTD,153.81,25/11/2019
Delivery Units,Adults and Health,Other Agencies - Third Party P,90212337,DYNAMIC PEOPLE LTD,193.27,25/11/2019
Delivery Units,Adults and Health,Other Agencies - Third Party P,90212338,DYNAMIC PEOPLE LTD,276.08,25/11/2019
Delivery Units,Adults and Health,Other Agencies - Third Party P,90212340,DYNAMIC PEOPLE LTD,138.04,25/11/2019
Delivery Units,Adults and Health,Other Agencies - Third Party P,90212341,DYNAMIC PEOPLE LTD,82.81,25/11/2019
Delivery Units,Adults and Health,Other Agencies - Third Party P,90212342,DYNAMIC PEOPLE LTD,94.62,25/11/2019
Delivery Units,Adults and Health,Other Agencies - Third Party P,90212343,DYNAMIC PEOPLE LTD,59.16,25/11/2019
Delivery Units,Adults and Health,Other Agencies - Third Party P,90212346,DYNAMIC PEOPLE LTD,138.04,25/11/2019
Delivery Units,Adults and Health,Other Agencies - Third Party P,90212347,DYNAMIC PEOPLE LTD,138.04,25/11/2019
Delivery Units,Adults and Health,Other Agencies - Third Party P,90212350,DYNAMIC PEOPLE LTD,138.04,25/11/2019
Delivery Units,Adults and Health,Other Agencies - Third Party P,90212351,DYNAMIC PEOPLE LTD,276.08,25/11/2019
Delivery Units,Adults and Health,Other Agencies - Third Party P,90212352,DYNAMIC PEOPLE LTD,220.85,25/11/2019
Delivery Units,Adults and Health,Other Agencies - Third Party P,90212353,DYNAMIC PEOPLE LTD,138.04,25/11/2019
Delivery Units,Adults and Health,Other Agencies - Third Party P,90212354,DYNAMIC PEOPLE LTD,264.19,25/11/2019
Delivery Units,Adults and Health,Other Agencies - Third Party P,90212355,DYNAMIC PEOPLE LTD,110.39,25/11/2019
Delivery Units,Adults and Health,Other Agencies - Third Party P,90212356,DYNAMIC PEOPLE LTD,165.62,25/11/2019
Delivery Units,Adults and Health,Other Agencies - Third Party P,90212357,DYNAMIC PEOPLE LTD,331.24,25/11/2019
Delivery Units,Adults and Health,Other Agencies - Third Party P,90212358,DYNAMIC PEOPLE LTD,78.85,25/11/2019
Delivery Units,Adults and Health,Other Agencies - Third Party P,90212360,DYNAMIC PEOPLE LTD,110.39,25/11/2019
Delivery Units,Adults and Health,Other Agencies - Third Party P,90212361,DYNAMIC PEOPLE LTD,141.93,25/11/2019
Delivery Units,Adults and Health,Other Agencies - Third Party P,90212362,DYNAMIC PEOPLE LTD,82.81,25/11/2019
Delivery Units,Adults and Health,Other Agencies - Third Party P,90212363,DYNAMIC PEOPLE LTD,386.40,25/11/2019
Delivery Units,Adults and Health,Other Agencies - Third Party P,90212364,DYNAMIC PEOPLE LTD,303.66,25/11/2019
Delivery Units,Adults and Health,Other Agencies - Third Party P,90212365,DYNAMIC PEOPLE LTD,193.27,25/11/2019
Delivery Units,Adults and Health,Other Agencies - Third Party P,90212366,DYNAMIC PEOPLE LTD,193.27,25/11/2019
Delivery Units,Adults and Health,Other Agencies - Third Party P,90212368,DYNAMIC PEOPLE LTD,331.28,25/11/2019
Delivery Units,Adults and Health,Other Agencies - Third Party P,90212369,DYNAMIC PEOPLE LTD,193.27,25/11/2019
Delivery Units,Adults and Health,Other Agencies - Third Party P,90212370,DYNAMIC PEOPLE LTD,82.81,25/11/2019
Delivery Units,Adults and Health,Other Agencies - Third Party P,90212371,DYNAMIC PEOPLE LTD,193.20,25/11/2019
Delivery Units,Adults and Health,Other Agencies - Third Party P,90212372,DYNAMIC PEOPLE LTD,220.85,25/11/2019
Delivery Units,Adults and Health,Other Agencies - Third Party P,90212373,DYNAMIC PEOPLE LTD,276.08,25/11/2019
Delivery Units,Adults and Health,Other Agencies - Third Party P,90212374,DYNAMIC PEOPLE LTD,169.56,25/11/2019
Delivery Units,Adults and Health,Other Agencies - Third Party P,90212375,DYNAMIC PEOPLE LTD,177.51,25/11/2019
Delivery Units,Adults and Health,Other Agencies - Third Party P,90212376,DYNAMIC PEOPLE LTD,299.74,25/11/2019
Delivery Units,Adults and Health,Other Agencies - Third Party P,90212377,DYNAMIC PEOPLE LTD,165.62,25/11/2019
Delivery Units,Adults and Health,Other Agencies - Third Party P,90212378,DYNAMIC PEOPLE LTD,82.81,25/11/2019
Delivery Units,Adults and Health,Other Agencies - Third Party P,90212379,DYNAMIC PEOPLE LTD,497.00,25/11/2019
Delivery Units,Adults and Health,Other Agencies - Third Party P,90212380,DYNAMIC PEOPLE LTD,193.27,25/11/2019
Delivery Units,Adults and Health,Other Agencies - Third Party P,90212382,DYNAMIC PEOPLE LTD,193.20,25/11/2019
Delivery Units,Adults and Health,Other Agencies - Third Party P,90212383,DYNAMIC PEOPLE LTD,276.01,25/11/2019
Delivery Units,Adults and Health,Other Agencies - Third Party P,90212384,DYNAMIC PEOPLE LTD,220.85,25/11/2019
Delivery Units,Adults and Health,Other Agencies - Third Party P,90212385,DYNAMIC PEOPLE LTD,82.81,25/11/2019
Delivery Units,Adults and Health,Other Agencies - Third Party P,90212386,DYNAMIC PEOPLE LTD,82.81,25/11/2019
Delivery Units,Adults and Health,Other Agencies - Third Party P,90212389,DYNAMIC PEOPLE LTD,70.96,25/11/2019
Delivery Units,Adults and Health,Other Agencies - Third Party P,90212390,DYNAMIC PEOPLE LTD,59.15,25/11/2019
Delivery Units,Adults and Health,Other Agencies - Third Party P,90212391,DYNAMIC PEOPLE LTD,201.16,25/11/2019
Delivery Units,Adults and Health,Other Agencies - Third Party P,90212392,DYNAMIC PEOPLE LTD,362.78,25/11/2019
Delivery Units,Adults and Health,Other Agencies - Third Party P,90212393,DYNAMIC PEOPLE LTD,31.54,25/11/2019
Delivery Units,Adults and Health,Other Agencies - Third Party P,90212394,DYNAMIC PEOPLE LTD,82.81,25/11/2019
Delivery Units,Adults and Health,Other Agencies - Third Party P,90212395,DYNAMIC PEOPLE LTD,94.65,25/11/2019
Delivery Units,Adults and Health,Other Agencies - Third Party P,90212396,DYNAMIC PEOPLE LTD,82.79,25/11/2019
Delivery Units,Adults and Health,Other Agencies - Third Party P,90212397,DYNAMIC PEOPLE LTD,82.81,25/11/2019
Delivery Units,Adults and Health,Other Agencies - Third Party P,90212400,DYNAMIC PEOPLE LTD,70.96,25/11/2019
Delivery Units,Adults and Health,Other Agencies - Third Party P,90212401,DYNAMIC PEOPLE LTD,303.59,25/11/2019
Delivery Units,Adults and Health,Other Agencies - Third Party P,90212402,DYNAMIC PEOPLE LTD,248.50,25/11/2019
Delivery Units,Adults and Health,Other Agencies - Third Party P,90212403,DYNAMIC PEOPLE LTD,165.62,25/11/2019
Delivery Units,Adults and Health,Other Agencies - Third Party P,90212404,DYNAMIC PEOPLE LTD,82.81,25/11/2019
Delivery Units,Adults and Health,Other Agencies - Third Party P,90212406,DYNAMIC PEOPLE LTD,63.08,25/11/2019
Delivery Units,Adults and Health,Other Agencies - Third Party P,90212407,DYNAMIC PEOPLE LTD,47.31,25/11/2019
Delivery Units,Adults and Health,Other Agencies - Third Party P,90212408,DYNAMIC PEOPLE LTD,55.23,25/11/2019
Delivery Units,Adults and Health,Other Agencies - Third Party P,90212410,DYNAMIC PEOPLE LTD,110.46,25/11/2019
Delivery Units,Adults and Health,Other Agencies - Third Party P,90212411,DYNAMIC PEOPLE LTD,110.46,25/11/2019
Delivery Units,Adults and Health,Other Agencies - Third Party P,90212412,DYNAMIC PEOPLE LTD,82.81,25/11/2019
Delivery Units,Adults and Health,Other Agencies - Third Party P,90212414,DYNAMIC PEOPLE LTD,31.54,25/11/2019
Delivery Units,Adults and Health,Other Agencies - Third Party P,90212415,DYNAMIC PEOPLE LTD,153.80,25/11/2019
Delivery Units,Adults and Health,Other Agencies - Third Party P,90212417,DYNAMIC PEOPLE LTD,126.16,25/11/2019
Delivery Units,Adults and Health,Other Agencies - Third Party P,90212418,DYNAMIC PEOPLE LTD,122.26,25/11/2019
Delivery Units,Adults and Health,Other Agencies - Third Party P,90212419,DYNAMIC PEOPLE LTD,350.88,25/11/2019
Delivery Units,Adults and Health,Other Agencies - Third Party P,90212420,DYNAMIC PEOPLE LTD,59.15,25/11/2019
Delivery Units,Adults and Health,Other Agencies - Third Party P,90212421,DYNAMIC PEOPLE LTD,35.49,25/11/2019
Delivery Units,Adults and Health,Other Agencies - Third Party P,90212423,DYNAMIC PEOPLE LTD,272.15,25/11/2019
Delivery Units,Adults and Health,Other Agencies - Third Party P,90212424,DYNAMIC PEOPLE LTD,110.39,25/11/2019
Delivery Units,Adults and Health,Other Agencies - Third Party P,90212425,DYNAMIC PEOPLE LTD,386.54,25/11/2019
Delivery Units,Adults and Health,Other Agencies - Third Party P,90212427,DYNAMIC PEOPLE LTD,78.85,25/11/2019
Delivery Units,Adults and Health,Other Agencies - Third Party P,90212431,DYNAMIC PEOPLE LTD,35.49,25/11/2019
Delivery Units,Adults and Health,Other Agencies - Third Party P,90212432,DYNAMIC PEOPLE LTD,220.85,25/11/2019
Delivery Units,Adults and Health,Other Agencies - Third Party P,90212433,DYNAMIC PEOPLE LTD,248.50,25/11/2019
Delivery Units,Adults and Health,Other Agencies - Third Party P,90212434,DYNAMIC PEOPLE LTD,110.39,25/11/2019
Delivery Units,Adults and Health,Other Agencies - Third Party P,90212436,DYNAMIC PEOPLE LTD,11.83,25/11/2019
Delivery Units,Adults and Health,Other Agencies - Third Party P,90212437,DYNAMIC PEOPLE LTD,82.84,25/11/2019
Delivery Units,Adults and Health,Other Agencies - Third Party P,90212438,DYNAMIC PEOPLE LTD,185.38,25/11/2019
Delivery Units,Adults and Health,Other Agencies - Third Party P,90212439,DYNAMIC PEOPLE LTD,303.66,25/11/2019
Delivery Units,Adults and Health,Other Agencies - Third Party P,90212440,DYNAMIC PEOPLE LTD,55.23,25/11/2019
Delivery Units,Adults and Health,Other Agencies - Third Party P,90212441,DYNAMIC PEOPLE LTD,102.54,25/11/2019
Delivery Units,Adults and Health,Other Agencies - Third Party P,90212443,DYNAMIC PEOPLE LTD,39.45,25/11/2019
Delivery Units,Adults and Health,Other Agencies - Third Party P,90212448,DYNAMIC PEOPLE LTD,228.68,25/11/2019
Delivery Units,Adults and Health,Other Agencies - Third Party P,90212449,DYNAMIC PEOPLE LTD,19.72,25/11/2019
Delivery Units,Adults and Health,Other Agencies - Third Party P,90212451,DYNAMIC PEOPLE LTD,82.81,25/11/2019
Delivery Units,Adults and Health,Other Agencies - Third Party P,90212452,DYNAMIC PEOPLE LTD,35.49,25/11/2019
Delivery Units,Adults and Health,Other Agencies - Third Party P,90212453,DYNAMIC PEOPLE LTD,78.85,25/11/2019
Delivery Units,Adults and Health,Other Agencies - Third Party P,90212455,DYNAMIC PEOPLE LTD,82.81,25/11/2019
Delivery Units,Adults and Health,Other Agencies - Third Party P,90212458,DYNAMIC PEOPLE LTD,216.84,25/11/2019
Delivery Units,Adults and Health,Other Agencies - Third Party P,90212459,DYNAMIC PEOPLE LTD,47.31,25/11/2019
Delivery Units,Adults and Health,Other Agencies - Third Party P,90212460,DYNAMIC PEOPLE LTD,208.98,25/11/2019
Delivery Units,Adults and Health,Other Agencies - Third Party P,90212461,DYNAMIC PEOPLE LTD,63.11,25/11/2019
Delivery Units,Adults and Health,Other Agencies - Third Party P,90212462,DYNAMIC PEOPLE LTD,110.39,25/11/2019
Delivery Units,Adults and Health,Other Agencies - Third Party P,90212464,DYNAMIC PEOPLE LTD,138.04,25/11/2019
Delivery Units,Adults and Health,Other Agencies - Third Party P,90212465,DYNAMIC PEOPLE LTD,15.78,25/11/2019
Delivery Units,Adults and Health,Other Agencies - Third Party P,90212466,DYNAMIC PEOPLE LTD,78.90,25/11/2019
Delivery Units,Adults and Health,Other Agencies - Third Party P,90212468,DYNAMIC PEOPLE LTD,47.32,25/11/2019
Delivery Units,Adults and Health,Other Agencies - Third Party P,90212470,DYNAMIC PEOPLE LTD,86.79,25/11/2019
Delivery Units,Adults and Health,Other Agencies - Third Party P,90212471,DYNAMIC PEOPLE LTD,35.49,25/11/2019
Delivery Units,Adults and Health,Other Agencies - Third Party P,90212472,DYNAMIC PEOPLE LTD,110.39,25/11/2019
Delivery Units,Adults and Health,Other Agencies - Third Party P,90212474,DYNAMIC PEOPLE LTD,441.70,25/11/2019
Delivery Units,Adults and Health,Other Agencies - Third Party P,90210527,HARTWIG CARE LIMITED,274.56,18/11/2019
Delivery Units,Adults and Health,Other Agencies - Third Party P,90210528,HARTWIG CARE LIMITED,287.43,18/11/2019
Delivery Units,Adults and Health,Other Agencies - Third Party P,90210529,HARTWIG CARE LIMITED,180.18,18/11/2019
Delivery Units,Adults and Health,Other Agencies - Third Party P,90210530,HARTWIG CARE LIMITED,90.09,18/11/2019
Delivery Units,Adults and Health,Other Agencies - Third Party P,90210531,HARTWIG CARE LIMITED,180.18,18/11/2019
Delivery Units,Adults and Health,Other Agencies - Third Party P,90210532,HARTWIG CARE LIMITED,300.30,18/11/2019
Delivery Units,Adults and Health,Other Agencies - Third Party P,90210533,HARTWIG CARE LIMITED,120.12,18/11/2019
Delivery Units,Adults and Health,Other Agencies - Third Party P,90210537,HARTWIG CARE LIMITED,120.12,18/11/2019
Delivery Units,Adults and Health,Other Agencies - Third Party P,90210539,HARTWIG CARE LIMITED,300.30,18/11/2019
Delivery Units,Adults and Health,Other Agencies - Third Party P,90210541,HARTWIG CARE LIMITED,300.30,18/11/2019
Delivery Units,Adults and Health,Other Agencies - Third Party P,90210542,HARTWIG CARE LIMITED,188.76,18/11/2019
Delivery Units,Adults and Health,Other Agencies - Third Party P,90210543,HARTWIG CARE LIMITED,64.35,18/11/2019
Delivery Units,Adults and Health,Other Agencies - Third Party P,90210545,HARTWIG CARE LIMITED,300.30,18/11/2019
Delivery Units,Adults and Health,Other Agencies - Third Party P,90210546,HARTWIG CARE LIMITED,210.21,18/11/2019
Delivery Units,Adults and Health,Other Agencies - Third Party P,90210547,HARTWIG CARE LIMITED,107.25,18/11/2019
Delivery Units,Adults and Health,Other Agencies - Third Party P,90210548,HARTWIG CARE LIMITED,180.18,18/11/2019
Delivery Units,Adults and Health,Other Agencies - Third Party P,90210549,HARTWIG CARE LIMITED,175.89,18/11/2019
Delivery Units,Adults and Health,Other Agencies - Third Party P,90210551,HARTWIG CARE LIMITED,960.96,18/11/2019
